Workbook

Sheet Menu
E26: Empresa: | G26: Empresa ABCDE

Sheet Sumário Executivo
B10: Empresa: | C10: =Menu!G26 -> Empresa ABCDE
B12: SUMÁRIO EXECUTIVO
B13: As principais definições do seu Negócio
B15: Resumo do Negócio | C15: Qual o negócio da empresa? (Resumo dos produtos e serviços prestados, clientes, concorrentes, fornecedores, etc).
B17: Dados dos Futuros Empresários | C17: Quantidade de Sócios, formação, experiência profissional, habilidades em destaque e pontos de melhoria.
B19: Setor que a Empresa Atuará | C19: Indústria (bens duráveis ou de Consumo), Comércio (varejo x atacado, serviços, etc.)
B21: Forma Jurídica | C21: Será um empresário individual ? Sociedade Limitada ? Quantos Sócios ? Como será a divisão da sociedade ? Que regime tributário pretende participar ?
B23: Fontes de Recursos | C23: A empresa utizará capital próprio dos empresários ? Terá outros investidores ? Buscará financiamento em bancos ?

Sheet Identificação das Necessidades
B11: Empresa: | C11: =Menu!G26 -> Empresa ABCDE
B13: IDENTIFICAÇÃO DAS NECESSIDADES
B14: O que seu produto atenderá?
B15: 1. Descrição da NECESSIDADE e/ou DESEJOS de seus Clientes
B17: 2. Descrição do PRODUTO e/ou SERVIÇO oferecido
B19: CICLO DE VIDA DO PRODUTO - Escolha em que estágio está o produto que você quer vender (marque com X a sua escolha)
B20: INTRODUÇÃO | D20: CRESCIMENTO | F20: MATURIDADE | H20: DECLÍNIO
B21: Momento em que o produto está sendo conhecido por todos, ritmo lento de vendas e magens altas | D21: Nesse momento o produto começa a ser popularmente consumido, havendo um grande aumento nas vendas | F21: As vendas neste mercado se estabilizam e o esforço é direcionado para manter a marca e reduzir custos | H21: As vendas e os lucros estão diminuindo neste mercado e o produto necessita ser recriado para um novo ciclo de vida

Sheet Segmentação de Mercado-Clientes
B11: Empresa: | C11: =Menu!G26 -> Empresa ABCDE
B13: SEGMENTAÇÃO DO MERCADO
B14: Quem será o nosso cliente?
B16: 1 - GEOGRÁFICA (Países, Regiões, Cidades, Exemplo: Moradores do Centro)
B24: 2 - DEMOGRÁFICA (Sexo, idade, renda, educação - Exemplo: Público de 18 a 24 anos da Classe A e B)
B32: 3 - CULTURAL (Valores, crenças, hábitos, tradições - Exemplo: torcedores do Flamengo, católicos, etc.)
B40: 4 - PSICOGRÁFICA (Atitudes, medos, estilo de vida. Exemplo: pessoas preocupadas com a saúde e com alimentação).
B48: 5 - CARACTERÍSCTICAS ORGANIZACIONAIS (caso seu cliente seja uma outra empresa que mercado atendem, de que cadeia de produção fazem parte, são pequenas ou grandes empresas, atacado ou varejo, etc.)

Sheet ConsumidoresPF
B11: Empresa: | C11: =Menu!G26 -> Empresa ABCDE
B13: CONSUMIDORES - PESSOA FÍSICA
B15: 1 - Perfil do consumidor:
B16: A - Idade
B21: B - Perfil Familiar
B26: C - Posição Profissional
B31: D - Poder Aquisitivo
B36: E - Local de residência ou trabalho
B40: 2 - Comportamento de consumo
B41: A - Como costuma se informar sobre este tipo de produto
B49: B - Local que costumam comprar este tipo de produto
B57: C - Qual a importância atribuída à conveniência
B65: D - Principais benefícios que procuram no produto
B90: 3.7 - Preços praticados, de acordo com padrões diferentes dos pontos de venda
B98: 3.8 - Estratégias de comunicação, propaganda, promoção usadas
B115: E - Critérios aplicados para tomar suas decisões de compra
B123: F - Quem toma a decisão de compra
B131: G - Regularidade de compra
B146: 3.7 - Preços praticados, de acordo com padrões diferentes dos pontos de venda
B154: 3.8 - Estratégias de comunicação, propaganda, promoção usadas
B163: H - Qual a média de gasto por compra

Sheet ConsumidoresPJ
B11: Empresa: | C11: =Menu!G26 -> Empresa ABCDE
B13: CONSUMIDORES - PESSOA JURÍDICA
B15: 1 - Perfil do consumidor:
B16: A - Tamanho da empresa
B21: B - Posição no mercado e perspectivas
B26: C - Situação financeira e perspectivas
B31: 2 - Comportamento de consumo
B32: A - Com que frequência compra
B40: B - Tomador de decisões de compra e quem as influencia
B48: C - Principais benefícios que procuram no produto
B56: D - Critérios aplicados para tomar suas decisões de compra
B64: E - Importância atribuída a suporte técnico, serviços de apoio e formas de pagamento e financimento
B72: F - Sazonalidade e Gasto Médio
B80: G - Canal de Atendimento (Telefone, internet, email, etc)

Sheet Fornecedor
B11: Empresa: | C11: =Menu!G26 -> Empresa ABCDE
B13: FORNECEDORES
B15: PRODUTO / INSUMO | C15: FORNECEDORES | D15: PERIODICIDADE DE COMPRA | E15: VOLUMES MINIMOS | F15: CONDIÇOES DE PAGAMENTO E ENTREGA | G15: OUTRAS

Sheet Concorrentes
B11: Empresa: | C11: =Menu!G26 -> Empresa ABCDE
B13: CONCORRENTES
B15: NOME | C15: DIRETO / INDIRETO | D15: PRODUTOS / SERVIÇOS | E15: PONTOS FORTES | F15: PONTOS FRACOS

Sheet FOFA
B10: Empresa: | D10: =Menu!G26 -> Empresa ABCDE
B12: ANALISE DE CENÁRIO
B22: MATRIZ SWOT (FOFA)
C25: FORÇAS | I25: FRAQUEZAS
C55: OPORTUNIDADES | I55: AMEAÇAS

Sheet Estratégia de Produto - Valor
B11: Empresa: | C11: =Menu!G26 -> Empresa ABCDE
B13: ESTRATÉGIA DE PRODUTO | I13: Concorrência
B14: Valor ao Cliente | I14: Inferior | J14: Igual | K14: Superior
B15: 1. QUALIDADE (durabilidade, resistência, confiabilidade)
B17: 2. IMAGEM (embalagem, logomarca, status associados, etc)
B19: 3. INOVAÇÃO (o que seu produto ou serviço possui de novo no mercado)
B21: 4. INFORMAÇÃO (que informações facilitarão a compra do seu cliente ?)
B23: 5. GARANTIA (como o cliente terá menos risco ao comprar seu produto)
B25: 6. CONVENIÊNCIA ( como você economizará tempo e esforço do cliente)
B27: 7. SERVIÇOS (que serviços estarão associados ao seu produto ?)
B29: 8. OUTROS ASPECTOS DE VALOR AO CLIENTE
B31: TOTAL DE PONTOS | I31: =COUNTIF(I15:I29,"X") -> 0 | J31: =COUNTIF(J15:J29,"X") -> 0 | K31: =COUNTIF(K15:K29,"X") -> 0

Sheet Estratégia de Preço
B11: Empresa: | C11: =Menu!G26 -> Empresa ABCDE
B13: ESTRATÉGIA DE PREÇOS
B14: Escreva abaixo em qual estratégia de posicionamento de Preço estará seu produto ou serviço
B15: (Menor - QUALIDADE - Maior) | C15: (Maior - PREÇO - Menor)
C16: Preço Prêmium (Alta Qualidade e Alto Preço) | E16: Alto Valor (Alta Qualidade e Médio Preço) | G16: Super Valor (Alta Qualidade e Baixo Preço)
C17: Preço Excessivo (Média Qualidade e Alto Preço) | E17: Preço Médio (Media Qualidade e Médio Preço) | G17: Valor Bom (Média Qualidade e Baixo Preço)
C18: Assalto ao Cliente (Baixa Qualidade e Alto Preço) | E18: Falsa Economia (Baixa Qualidade e Médio Preço) | G18: Economia (Baixa Qualidade e Baixo Preço)
B20: CONDIÇÕES DE PAGAMENTO (Cartão de Débito, Cheque, Cartão de Crédito, Fatura, etc.)
B22: PRAZOS DE PAGAMENTO (A vista, 30 dias, 30 e 60, 1+4, 5 x sem entrada, etc.)
B24: DADOS CADASTRAIS NECESSÁRIOS PARA APROVAÇÃO DE CRÉDITO (nome, telefone, tempo de residência, SPC negativo)

Sheet Estratégia de Promoção
B11: Empresa: | C11: =Menu!G26 -> Empresa ABCDE
B13: ESTRATÉGIA DE PROMOÇÃO
B14: As ofertas que irão atrair seus clientes?
B15: Concursos e Premiações | C15: Preenchimento de Cupons para concorrer a prêmios, podendo ser produtos ou serviços.
B17: Liquidações e Descontos | C17: Pague 2 leve 3, semana com 50% de desconto em todas as peças, descontos por compra em atacado, etc.
B19: Cartões | C19: Cartões de Desconto, quem possui o cartão recebe benefícios quando compra.
B21: Brindes e Presentes | C21: Na compra de qualquer produto, o cliente ganha um outro produto, ou um brinde.
B23: Eventos (Almoço de Negócios, coquetéis e Demonstrações) | C23: A empresa oferece a clientes especiais eventos para estreitar o relacionamento com os mesmos.
B25: Parcerias | C25: A empresa utiliza de parceiras para estabelecer estratégias de promoção
B27: Outros | C27: Outras opções de promoções não listadas acima

Sheet Estratégia de Comunicação
B11: Empresa: | C11: =Menu!G26 -> Empresa ABCDE
B13: COMUNICAÇÃO
B14: Como o cliente saberá da sua oferta?
B15: Qual o objetivo da mensagem? | C15: Informações que lembre os clientes a existência dos produtos ou serviços e de suas vantagens.
B17: Para quem se destina a mensagem? | C17: Pessoas físicas ou Pessoas Jurídicas, sejam elas: consumidoras, representantes, distribuidoras ou revendedoras.
B19: Que veículo de mídia utilizar? | C19: Anúncio no rádio, na TV, no jornal, na internet, Folders, plafletos, Mala direta, ou até mesmo em todos esses veículos, que o cliente que perceba sua mensagem.
B21: PANFLETOS, FOLDERS
B23: INTERNET E EMAIL MARKETING
B25: CATÁLOGOS, MALA DIRETA E CADASTRO
B27: RÁDIO E TELEVISÃO
B29: OUTDOOR, BANNER, FAIXA
B31: REVISTA, JORNAL
B33: OUTROS

Sheet Estratégia de Distribuição
B11: Empresa: | C11: =Menu!G26 -> Empresa ABCDE
B13: DISTRIBUIÇÃO
B14: Como vai entregar ou distribuir o seu produto?
B15: Que canais de venda e distribuição sua empresa terá? | D15: Atacado | G15: Representantes Comerciais
D16: Lojas de Varejo em Geral | G16: Lojas de Varejo Especializadas
D17: Loja Própria | G17: Internet
D18: Venda por Catálogo | G18: Venda por Telefone
D19: Franquias | G19: Outros (Especificar Abaixo)
B23: DESCREVA AS CARACTERÍSTICAS DE SEU PONTO COMERCIAL
B25: Como é o contrato de locação ? É locado ? Por quanto tempo ? Possui alvará ?
B27: Visibilidade (É fácil de localizar o ponto ? Existe algum obstáculo para visualizar a loja ?)
B29: Acessibilidade (Existem obstáculos para entrar na loja ? - escadas, degraus, falta estacionamento, etc )
B31: Fluxo - como é o fluxo de pessoas na frente da loja ?
B33: Concorrência - existem concorrentes diretos ou indiretos nas proximidades ?
B35: Qual a sua estratégia para destacar e facilitar a compra em seu ponto comercial ?

Sheet Força de Vendas
B11: Empresa: | C11: =Menu!G26 -> Empresa ABCDE
B13: FORÇA DE VENDAS
B15: Perfil dos vendedores | C15: Serão especializados no produto ? Terão curso de vendas ? Deverão possuir experiência anterior em vendas ? Etc.
B17: Organização da equipe | C17: Quantos Vendedores ? Quantos Supervisores ? Háverá divisão entre vendedores juniores e plenos ? Etc.
B19: Remuneração da equipe | C19: Serão comissionados ? Possuem metas a cumprir ? Existe uma premiação por resultado coletivo ? Que tipo de remuneraçao receberão ? Etc.
B21: Treinamentos | C21: Quais os conhecimentos sobre o produto e sobre vendas que sua equipe deverá adquirir ?
B23: Aptidões | C23: Quais as aptidões e habilidades que sua equipe deverá adquirir ?

Sheet POperacional
B11: Empresa: | C11: =Menu!G26 -> Empresa ABCDE
B13: PROCESSO OPERACIONAL
B15: 1 - Qual será a capacidade máxima de produção ou atendimento?
B23: 2 - Qual será o volume de produção/atendimento inicial?
B31: 3- Quais serão os estoques iniciais de matéria-prima? Como serão armazenados?
B39: 4 - Quais serão as funções e quem as desempenhará na empresa?

Sheet Lay-out
B11: Empresa: | C11: =Menu!G26 -> Empresa ABCDE
B13: LAY-OUT
B45: Por onde ocorrerão os fluxos de fabricação ou de tramitação de processos?
B46: Qual o espaço útil disponível?
B47: Qual será a disposição física dos postos de trabalho?
B48: Qual será a movimentação de pessoas, produtos, materiais e documentos dentro da empresa?
B49: O ambiente será favorável para o trabalho e o aumento da produtividade?
B50: Haverá uma situação confortável a clientes e visitantes?
B51: Quais serão as áreas de acesso restrito?
B52: Lembre-se: não esqueça das necessidades especiais dos portadores de deficiências físicas!

Sheet InvestFixo
B13: INVESTIMENTO FIXO
B15: DISCRIMINAÇÃO | C15: VALOR R$ | D15: %*
B16: Construções | C16: =SUM(C17) -> 0 | D16: 0.04
B18: Máquinas e Equipamentos | C18: =SUM(C19:C28) -> 350 | D18: 0.1
B19: gteste 1 | C19: 100
B20: teste 2 | C20: 250
B29: Móveis e Utensílios | C29: =SUM(C30:C39) -> 100 | D29: 0.1
B30: teste 3 | C30: 100
B40: Computadores | C40: =SUM(C41:C50) -> 100 | D40: 0.2
B41: teste 4 | C41: 100
B51: Taxa de Franquia | C51: =C52 -> 0 | D51: 0
B53: Veículos | C53: =SUM(C54:C56) -> 0 | D53: 0.2
B57: Outros | C57: =SUM(C58:C67) -> 0 | D57: =IF(E57=0,0,E57/C57) -> 0 | E57: =SUM(E58:E67) -> 0
E58: =C58*D58 -> 0
E59: =C59*D59 -> 0
E60: 0
E61: 0
E62: 0
E63: 0
E64: 0
E65: 0
E66: 0
E67: 0
B68: Total Investimento Fixo | C68: =C16+C18+C29+C40+C51+C53+C57 -> 550 | D68: =((C16*D16)+(C18*D18)+(C29*D29)+(C40*D40)+(C51*D51)+(C53*D53)+(E57))/12 -> 5.416666667
B69: * - Percentual de depreciação por grupo.

Sheet PrazosEstoques
B13: PRAZOS E ESTOQUES
B15: POLÍTICA DE VENDA
B16: Prazo médio de venda das mercadorias | C16: % | D16: Dias
B17: Venda à Vista | C17: =100-C18 -> 50 | D17: -
B18: Venda a Prazo | C18: 50
B19: Este quadro apresenta a divisão das vendas à vista e a prazo | C19: Prazo Médio | D19: =D18*C18/100 -> 0
B20: em relação às vendas totais.
B21: POLÍTICA DE COMPRA
B22: Prazo médio de compras | C22: % | D22: Dias
B23: À Vista | C23: =100-C24 -> 60 | D23: -
B24: A Prazo | C24: 40
B25: Este quadro apresenta a divisão das compras à vista e a prazo | C25: Prazo Médio | D25: =D24*C24/100 -> 0
B26: em relação às compras totais.
B27: POLÍTICA DE ESTOQUE | C27: Dias
B28: Necessidade média de estoques | C28: 12
B29: Este quadro define qual deve ser o estoque mínimo necessário
B30: em dias.
B31: ESTIMATIVA DE ESTOQUE INICIAL | C31: R$
B32: Estoque Inicial | C32: 150
B33: Este quadro define o valor do estoque inicial

Sheet Faturamento
B13: ESTIMATIVA DE FATURAMENTO MENSAL
E15: Custo Direto | F15: Faturamento | G15: % do Faturamento
D16: Produtos | E16: =CMV -> 12000 | F16: =G127 -> 19700 | G16: =F16/Faturamento -> 0.9403341289
D17: Serviços | E17: =D199 -> 500 | F17: =G199 -> 1250 | G17: =F17/Faturamento -> 0.05966587112
D18: Total | E18: =SUM(E16:E17) -> 12500 | F18: =SUM(F16:F17) -> 20950
B22: PRODUTOS
B24: Descrição do Produto | C24: Estimativa de Custos | F24: Estimativa de Vendas
C25: Vendas Unitárias | D25: Custo Unit. | E25: Custo da Mercadoria | F25: Preço de Venda Unitário | G25: Faturamento
B26: teste 1 | C26: 10 | D26: 50 | E26: =D26*C26 -> 500 | F26: 70 | G26: =C26*F26 -> 700
B27: teste 2 | C27: 100 | D27: 15 | E27: 1500 | F27: 30 | G27: =C27*F27 -> 3000
B28: teste 3 | C28: 20 | D28: 500 | E28: 10000 | F28: 800 | G28: 16000
E29: 0 | G29: 0
E30: 0 | G30: 0
E31: 0 | G31: 0
E32: 0 | G32: 0
E33: 0 | G33: 0
E34: 0 | G34: 0
E35: 0 | G35: 0
E36: 0 | G36: 0
E37: 0 | G37: 0
E38: 0 | G38: 0
E39: 0 | G39: 0
E40: 0 | G40: 0
E41: 0 | G41: 0
E42: 0 | G42: 0
E43: 0 | G43: 0
E44: 0 | G44: 0
E45: 0 | G45: 0
E46: 0 | G46: 0
E47: 0 | G47: 0
E48: 0 | G48: 0
E49: 0 | G49: 0
E50: 0 | G50: 0
E51: 0 | G51: 0
E52: 0 | G52: 0
E53: 0 | G53: 0
E54: 0 | G54: 0
E55: 0 | G55: 0
E56: 0 | G56: 0
E57: 0 | G57: 0
E58: 0 | G58: 0
E59: 0 | G59: 0
E60: 0 | G60: 0
E61: 0 | G61: 0
E62: 0 | G62: 0
E63: 0 | G63: 0
E64: 0 | G64: 0
E65: 0 | G65: 0
E66: 0 | G66: 0
E67: 0 | G67: 0
E68: 0 | G68: 0
E69: 0 | G69: 0
E70: 0 | G70: 0
E71: 0 | G71: 0
E72: 0 | G72: 0
E73: 0 | G73: 0
E74: 0 | G74: 0
E75: 0 | G75: 0
E76: 0 | G76: 0
E77: 0 | G77: 0
E78: 0 | G78: 0
E79: 0 | G79: 0
E80: 0 | G80: 0
E81: 0 | G81: 0
E82: 0 | G82: 0
E83: 0 | G83: 0
E84: 0 | G84: 0
E85: 0 | G85: 0
E86: 0 | G86: 0
E87: 0 | G87: 0
E88: 0 | G88: 0
E89: 0 | G89: 0
E90: 0 | G90: 0
E91: 0 | G91: 0
E92: 0 | G92: 0
E93: 0 | G93: 0
E94: 0 | G94: 0
E95: 0 | G95: 0
E96: 0 | G96: 0
E97: 0 | G97: 0
E98: 0 | G98: 0
E99: 0 | G99: 0
E100: 0 | G100: 0
E101: 0 | G101: 0
E102: 0 | G102: 0
E103: 0 | G103: 0
E104: 0 | G104: 0
E105: 0 | G105: 0
E106: 0 | G106: 0
E107: 0 | G107: 0
E108: 0 | G108: 0
E109: 0 | G109: 0
E110: 0 | G110: 0
E111: 0 | G111: 0
E112: 0 | G112: 0
E113: 0 | G113: 0
E114: 0
E115: 0 | G115: 0
E116: 0 | G116: 0
E117: 0 | G117: 0
E118: 0 | G118: 0
E119: 0 | G119: 0
E120: 0 | G120: 0
E121: 0 | G121: 0
E122: 0 | G122: 0
E123: 0 | G123: 0
E124: 0 | G124: 0
E125: 0 | G125: 0
E126: 0 | G126: 0
C127: CMV | D127: =SUM(E26:E126) -> 12000 | E127: TOTAL DE PRODUTOS | G127: =SUM(G26:G126) -> 19700
B130: SERVIÇOS
B133: Descrição do Serviço | C133: Estimativa de Custos | F133: Estimativa de Vendas
C134: Vendas Unitárias | D134: Custo Unit. | E134: Custo Direto do Serviço | F134: Preço de Venda Unitário | G134: Faturamento
B135: teste 11 | C135: 50 | D135: 10 | E135: 500 | F135: 25 | G135: 1250
E136: 0 | G136: 0
E137: 0 | G137: 0
E138: 0 | G138: 0
E139: 0 | G139: 0
E140: 0 | G140: 0
E141: 0 | G141: 0
E142: 0 | G142: 0
E143: 0 | G143: 0
E144: 0 | G144: 0
E145: 0 | G145: 0
E146: 0 | G146: 0
E147: 0 | G147: 0
E148: 0 | G148: 0
E149: 0 | G149: 0
E150: 0 | G150: 0
E151: 0 | G151: 0
E152: 0 | G152: 0
E153: 0 | G153: 0
E154: 0 | G154: 0
E155: 0 | G155: 0
E156: 0 | G156: 0
E157: 0 | G157: 0
E158: 0 | G158: 0
E159: 0 | G159: 0
E160: 0 | G160: 0
E161: 0 | G161: 0
E162: 0 | G162: 0
E163: 0 | G163: 0
E164: 0 | G164: 0
E165: 0 | G165: 0
E166: 0 | G166: 0
E167: 0 | G167: 0
E168: 0 | G168: 0
E169: 0 | G169: 0
E170: 0 | G170: 0
E171: 0 | G171: 0
E172: 0 | G172: 0
E173: 0 | G173: 0
E174: 0 | G174: 0
E175: 0 | G175: 0
E176: 0 | G176: 0
E177: 0 | G177: 0
E178: 0 | G178: 0
E179: 0 | G179: 0
E180: 0 | G180: 0
E181: 0 | G181: 0
E182: 0 | G182: 0
E183: 0 | G183: 0
E184: 0 | G184: 0
E185: 0 | G185: 0
E186: 0 | G186: 0
E187: 0 | G187: 0
E188: 0 | G188: 0
E189: 0 | G189: 0
E190: 0 | G190: 0
E191: 0 | G191: 0
E192: 0 | G192: 0
E193: 0 | G193: 0
E194: 0 | G194: 0
E195: 0 | G195: 0
E196: 0 | G196: 0
E197: 0 | G197: 0
E198: 0 | G198: 0
C199: Custo Direto | D199: =SUM(E135:E198) -> 500 | E199: TOTAL DE SERVIÇOS | G199: =SUM(G135:G198) -> 1250
E259: Índice | F259: Anterior

Sheet MaodeObra
B13: CUSTOS COM MÃO DE OBRA
B15: Cargo/Função | C15: Qtde de Funcionários | D15: Salário | E15: %* | F15: Encargos | G15: Total
B16: lilki | C16: 123 | D16: 1000 | E16: =IF(ALIQUOTAMO<>0,ALIQUOTAMO,IF(OR(Esimples="V",EEI="V"),IF(OR(Eanexo4="V",Eanexo5="V"),AliquotaMOIV,AliquotaMOSimples),AliquotaMOPres)) -> 0.6634 | F16: =D16*E16 -> 663.4 | G16: =(D16+F16)*C16 -> 204598.2
B17: ala | C17: 321 | D17: 850 | E17: =$E$16 -> 0.6634 | F17: =D17*E17 -> 563.89 | G17: =(D17+F17)*C17 -> 453858.69
E18: =$E$16 -> 0.6634 | F18: 0 | G18: 0
E19: 0.6634 | F19: 0 | G19: 0
E20: 0.6634 | F20: 0 | G20: 0
E21: 0.6634 | F21: 0 | G21: 0
E22: 0.6634 | F22: 0 | G22: 0
E23: 0.6634 | F23: 0 | G23: 0
E24: 0.6634 | F24: 0 | G24: 0
E25: 0.6634 | F25: 0 | G25: 0
E26: 0.6634 | F26: 0 | G26: 0
B27: Comissões (vide aba Comissões) | D27: =Comissões.Total -> 523.75 | E27: 0.6634 | F27: =D27*E27 -> 347.45575 | G27: =D27+F27 -> 871.20575
B28: TOTAL | C28: =SUM(C16:C26) -> 444 | D28: =SUM(C16:C26*D16:D26) -> 395850 | F28: =SUM(C16:C26*F16:F26) -> 262606.89 | G28: =SUM(G16:G26) -> 658456.89
B31: Retirada dos Sócios (Pró-Labore)
B32: Valor a ser retirado mensalmente | C32: 2000
B33: Alíquota de INSS | C33: 0.11

Sheet Previsão ProLabore
B13: ORÇAMENTO FAMILIAR DO MÊS
B15: Despesas | C15: R$
B16: Água | C16: 100
B17: Telefone | C17: 50
B18: Energia Elétrica | C18: 80
B19: Supermercado | C19: 45
B20: Padaria | C20: 67
B21: Aluguel | C21: 80
B22: Combustível | C22: 1000
B23: Taxas/Juros Bancários | C23: 250
B24: Financiamento Casa
B25: Financiamento Veículo
B26: Consórcio / Título
B27: Vestuário / Presentes
B28: Lazer / Passeios
B29: Reformas/Consertos
B30: Empregada
B31: Escola
B32: Cursinhos / Palestras
B33: Internet
B34: Plano de Saúde
B35: Dentista
B36: Farmácia / Hospital
B37: Vigilância Residencial
B38: Seguro Residencial
B39: Seguro Veículo
B40: IPVA
B41: IPTU
B42: Cartão de Crédito
B43: Clube / Acadêmia
B44: Outros
B45: Total Despesas / Saídas | C45: =SUM(C16:C44) -> 1672
B48: Ganho próprio / Salário | C48: 690
B49: Ganho com Aposentadoria | C49: 300
B50: Ganho com juros Financeiros
B51: Ganho com Alugueis
B52: Outros
B53: Ganhos / Receitas | C53: =SUM(C48:C52) -> 990
B57: Necessidade de Retirada de Pró-labore | D57: =C45-C53 -> 682

Sheet Calculo Encargos
B13: MEMORIA DE CALCULO DOS ENCARGOS
B15: LUCRO PRESUMIDO OU REAL
B17: ENCARGOS RECOLHIDOS MENSALMENTE
B19: Encargos | C19: Alíquotas
B20: INSS | C20: 0.2
B21: SESI, SESC OU SEST | C21: 0.015
B22: SENAI,SENAC OU SENAT | C22: 0.01
B23: SEBRAE | C23: 0.006
B24: INCRA | C24: 0.002
B25: FGTS | C25: 0.08
B26: Acidente de Trabalho | C26: 0.03
B27: Salário Educação | C27: 0.025
C28: =SUM(C20:C27) -> 0.368
B29: PROVISÕES
B31: Encargos | C31: Alíquotas
B32: Férias | C32: 0.133
B33: Feriados | C33: 0.04
B34: Aviso Prévio | C34: 0.0025
B35: Auxílio Enfermidade | C35: 0.0042
B36: 13° Salário | C36: 0.0833
C37: =SUM(C32:C36) -> 0.263
B38: PASSIVO TRABALHISTA
B40: Encargos | C40: Alíquotas
B41: Depósito para Rescisão | C41: 0.004
B42: Incidência grupo A sobre B | C42: 0.0217
B43: FGTS sobre 13° Salário | C43: 0.0067
C44: =SUM(C41:C43) -> 0.0324
B46: TOTAL | C46: =SUM(C28,C37,C44) -> 0.6634
B51: SIMPLES - ANEXOS I, II E III
B53: ENCARGOS RECOLHIDOS MENSALMENTE
B55: Encargos | C55: Alíquotas
B56: INSS | C56: 0
B57: SESI, SESC OU SEST | C57: 0
B58: SENAI,SENAC OU SENAT | C58: 0
B59: SEBRAE | C59: 0
B60: INCRA | C60: 0
B61: FGTS | C61: 0.08
B62: Acidente de Trabalho | C62: 0
B63: Salário Educação | C63: 0
C64: =SUM(C56:C63) -> 0.08
B65: PROVISÕES
B67: Encargos | C67: Alíquotas
B68: Férias | C68: 0.133
B69: Feriados | C69: 0.04
B70: Aviso Prévio | C70: 0.0025
B71: Auxílio Enfermidade | C71: 0.0042
B72: 13° Salário | C72: 0.0833
C73: =SUM(C68:C72) -> 0.263
B74: PASSIVO TRABALHISTA
B76: Encargos | C76: Alíquotas
B77: Depósito para Rescisão | C77: 0.004
B78: Incidência grupo A sobre B | C78: 0.0217
B79: FGTS sobre 13° Salário | C79: 0.0067
C80: =SUM(C77:C79) -> 0.0324
B82: TOTAL | C82: =SUM(C64,C73,C80) -> 0.3754
B87: SIMPLES ANEXO IV E ANEXO V
B89: ENCARGOS RECOLHIDOS MENSALMENTE
B91: Encargos | C91: Alíquotas
B92: INSS | C92: 0.2
B93: SESI, SESC OU SEST | C93: 0
B94: SENAI,SENAC OU SENAT | C94: 0
B95: SEBRAE | C95: 0
B96: INCRA | C96: 0
B97: FGTS | C97: 0.08
B98: Acidente de Trabalho | C98: 0.03
B99: Salário Educação | C99: 0
C100: =SUM(C92:C99) -> 0.31
B101: PROVISÕES
B103: Encargos | C103: Alíquotas
B104: Férias | C104: 0.133
B105: Feriados | C105: 0.04
B106: Aviso Prévio | C106: 0.0025
B107: Auxílio Enfermidade | C107: 0.0042
B108: 13° Salário | C108: 0.0833
C109: =SUM(C104:C108) -> 0.263
B110: PASSIVO TRABALHISTA
B112: Encargos | C112: Alíquotas
B113: Depósito para Rescisão | C113: 0.004
B114: Incidência grupo A sobre B | C114: 0.0217
B115: FGTS sobre 13° Salário | C115: 0.0067
C116: =SUM(C113:C115) -> 0.0324
B119: TOTAL | C119: =SUM(C100,C109,C116) -> 0.6054
B123: Se desejar utilizar outra aliquota, preencha a célula abaixo:
B125: DESEJO UTILIZAR ESTA ALIQUOTA

Sheet CustoFixo
B13: CUSTOS FIXOS
C15: Discriminação | D15: Valor R$
C16: Mão-de-Obra + Encargos | D16: =MaodeObra!G28 -> 658456.89
C17: Retirada dos Sócios (Pró-Labore) | D17: =MaodeObra!C32*(1+MaodeObra!C33) -> 2220
C18: Água | D18: 100
C19: Luz | D19: 56
C20: Telefone | D20: 35
C21: Contador | D21: 98
C22: Despesas com Veículos
C23: Material de Expediente e Consumo
C24: Aluguel
C25: Seguros
C26: Propaganda e Publicidade
C27: Depreciação Mensal | D27: =((InvestFixo!C16*InvestFixo!D16)+(InvestFixo!C18*InvestFixo!D18)+(InvestFixo!C29*InvestFixo!D29)+(InvestFixo!C40*InvestFixo!D40)+(InvestFixo!C53*InvestFixo!D53)+(InvestFixo!C57*InvestFixo!D57))/12 -> 5.416666667
C28: Manutenção
C29: Condomínio
C30: Despesas de Viagem
C31: Serviços de Terceiros
C32: Ônibus, Táxis e Selos
C33: Outros | D33: =SUM(D34:D68) -> 0
C69: TOTAL | D69: =SUM(D16:D33) -> 660971.3067

Sheet TributosSimples
B13: SIMULADOR TRIBUTÁRIO - ETAPA 1
B15: Receita Bruta Anual | C15: =C16*12 -> 251400
B16: Faturamento Mensal | C16: =Faturamento -> 20950
B18: Atividade | E18: Receita Bruta Mensal (*)
A19: =IF(B19="","",VLOOKUP(B19,Atividades,2,0)) -> 1 | B19: Comércio | E19: 21000
B31: Total | E31: =SUM(E19:E30) -> 21000
B33: (*) Ao realizar este passo deve-se atentar para atividade desenvolvida pelo o empreendedor.
B34: Na sequência escolha a atividade pretendida, separando a receita correspondente de cada uma.
B35: A separação das receitas será útil, de maneira a utilizar a alíquota correta de acordo com a
B36: tributação vigente para cada atividade mercantil.
B40: =IF(E31<>C16,"O Valor Total da Receita Bruta Mensal difere do Valor do Faturamento Mensal, isto poderá resultar em erro de cálculo dos Tributos. Sugere-se ajustar os valores da Receita Bruta Mensal de acordo com o Faturamento Mensal","") -> O Valor Total da Receita Bruta Mensal difere do Valor do Faturamento Mensal, isto poderá resultar em erro de cálculo dos Tributos. Sugere-se ajustar os valores da Receita Bruta Mensal de acordo com o Faturamento Mensal

Sheet TributosEI
B13: SIMULADOR TRIBUTÁRIO - ETAPA 2
B15: Receita Bruta Anual | C15: =Rbruta -> 251400
B17: ATIVIDADES PERMITIDAS NO EI
B21: ATIVIDADE COMBINADA
B23: =IF(C15<=LimiteEI,"(*) Pelo seu faturamento Bruto anual de sua empresa, você poderá ser enquadrada no MEI, verifique na lista de atividades acima, se a sua empresa poderá ser enquadrada.","(*) Pelo Faturamento Bruto anual de sua empresa, o valor excede o valor maximo permitido pelo MEI") -> (*) Pelo Faturamento Bruto anual de sua empresa, o valor excede o valor maximo permitido pelo MEI

Sheet TributosPres
B13: SIMULADOR TRIBUTÁRIO - ETAPA 3
B16: DEBITO ICMS
B17: Destino Produto/UF | C17: Vendas | D17: Alíquota | E17: Valor do Débito
B18: Paraná | C18: =Faturamento!F16 -> 19700 | D18: 0.18 | E18: =C18*D18 -> 3546
B19: Sul / Sudeste | D19: 0.12 | E19: =C19*D19 -> 0
B20: Norte / Nordeste / MT / MS | D20: 0.07 | E20: =C20*D20 -> 0
B21: TOTAL | E21: =SUM(E18:E20) -> 3546
B23: Crédito de ICMS
B24: Destino Produto/UF | C24: Compras | D24: Alíquota | E24: Valor do Crédito
B25: Paraná | C25: =CMV -> 12000 | D25: 0.12 | E25: =C25*D25 -> 1440
B26: Sul / Sudeste | D26: 0.12 | E26: =C26*D26 -> 0
B27: Norte / Nordeste / MT / MS | D27: 0.17 | E27: =C27*D27 -> 0
B28: TOTAL | E28: =SUM(E25:E27) -> 1440
B30: ICMS DEVIDO | E30: =E21-E28 -> 2106
B34: DEBITO IPI | D34: Aliquota
B35: Valor do Débito | C35: =Faturamento!F16 -> 19700 | D35: 0.08 | E35: =C35*D35 -> 1576
B37: CREDITO IPI | D37: Aliquota
B38: Valor do Crédito | C38: =CMV -> 12000 | D38: 0.08 | E38: =C38*D38 -> 960
B40: IPI DEVIDO | E40: =E35-E38 -> 616
B44: Alíquota de ISS do Município
B45: 0.05

Sheet TributosReal
B13: SIMULADOR TRIBUTÁRIO - ETAPA 4
B16: A. DEBITO PIS | D16: Aliquota
B17: Valor do Débito | C17: =Faturamento -> 20950 | D17: 0.0165 | E17: =C17*D17 -> 345.675
B19: B. CREDITO PIS | D19: Alíquota
B20: Valor do Crédito | C20: =Despesas+CDT+TributosPres!E30+TributosPres!E40 -> 676193.3067 | D20: 0.0165 | E20: =C20*D20 -> 11157.18956
B22: PIS DEVIDO | E22: =IF((E17-E20)<0,0,E17-E20) -> 0
B26: DEBITO COFINS | D26: Aliquota
B27: Valor do Débito | C27: =Faturamento -> 20950 | D27: 0.076 | E27: =C27*D27 -> 1592.2
B29: CREDITO COFINS | D29: Aliquota
B30: Valor do Crédito | C30: =Despesas+CDT+TributosPres!E30+TributosPres!E40 -> 676193.3067 | D30: 0.076 | E30: =C30*D30 -> 51390.69131
B32: COFINS DEVIDO | E32: =IF((E27-E30)<0,0,E27-E30) -> 0

Sheet Tributos
B13: SIMULADOR TRIBUTÁRIO -- TOTAL
B15: Faturamento Mensal | C15: =Faturamento -> 20950
B17: IMPOSTOS | C17: EI | E17: SIMPLES | G17: LUCRO PRESUMIDO | I17: LUCRO REAL
B18: IR - Imposto de Renda | C18: =IF(Rbruta>LimiteEI,"FATURAMENTO EXCEDE O PERMITIDO R$ 60.000,00 AO ANO",ImpostoDetalhado!C38) -> FATURAMENTO EXCEDE O PERMITIDO R$ 60.000,00 AO ANO | E18: =IF(TributosSimples!C15>LimiteSimples,"FATURAMENTO EXCEDE O PERMITIDO R$ 3.600.000,00 AO ANO",IF(EVETADO="V","Atividade Vetada",ImpostoDetalhado!F16)) -> 758.1 | G18: =ImpostoDetalhado!H16 -> 252 | I18: =IF(ImpostoDetalhado!$F$26=ImpostoDetalhado!$F$27,ImpostoDetalhado!H23,IF(ImpostoDetalhado!$F$26>ImpostoDetalhado!$F$31,ImpostoDetalhado!H24,ImpostoDetalhado!H23)) -> 
B19: CSLL - Contribuição Social | G19: =ImpostoDetalhado!I16 -> 226.8 | I19: =IF(ImpostoDetalhado!$F$26=ImpostoDetalhado!$F$27,ImpostoDetalhado!I23,IF(ImpostoDetalhado!$F$26>ImpostoDetalhado!$F$31,ImpostoDetalhado!I24,ImpostoDetalhado!I23)) -> 
B20: COFINS - Contribuição Financeira Social | G20: =ImpostoDetalhado!J16 -> 630 | I20: =ImpostoDetalhado!J23 -> 1596
B21: PIS - Programa de Integração Social | G21: =ImpostoDetalhado!K16 -> 136.5 | I21: =ImpostoDetalhado!K23 -> 346.5
B22: IPI - Imposto sobre Produtos Industrializados | G22: =IF(Eind="f",0,IF(TributosPres!E40<0,0,TributosPres!E40)) -> 0 | I22: =G22 -> 0
B23: ICMS - Imposto de Circulação de Mercadorias e Serviços | G23: =IF(TributosPres!E30<0,0,TributosPres!E30) -> 2106 | I23: =G23 -> 2106
B24: ISS - Imposto sobre Serviços | G24: =ImpostoDetalhado!L16 -> 0 | I24: =G24 -> 0
B26: TOTAL DE IMPOSTOS | C26: =SUM(C18:C24) -> 0 | E26: =SUM(E18:E24) -> 758.1 | G26: =SUM(G18:G24) -> 3351.3 | I26: =SUM(I18:I24) -> 4048.5
B27: RELAÇÃO PERCENTUAL DE IMPOSTOS | C27: =C26/$C$15 -> 0 | E27: =E26/$C$15 -> 0.03618615752 | G27: =G26/$C$15 -> 0.1599665871 | I27: =I26/$C$15 -> 0.1932458234
B29: ENCARGOS
B30: INSS | C30: 0 | E30: =IF(OR(Eanexo4="V",Eanexo5="V"),(Folha+ProLabore)*Aliquotas!C204,0) -> 0 | G30: =(Folha+ProLabore)*Aliquotas!C204 -> 79614 | I30: =(Folha+ProLabore)*Aliquotas!C204 -> 79614
B31: SESI, SESC OU SEST | C31: 0 | E31: 0 | G31: =Folha*Aliquotas!C205 -> 5937.75 | I31: =Folha*Aliquotas!C205 -> 5937.75
B32: SENAI,SENAC OU SENAT | C32: 0 | E32: 0 | G32: =Folha*Aliquotas!C206 -> 3958.5 | I32: =Folha*Aliquotas!C206 -> 3958.5
B33: SEBRAE | C33: 0 | E33: 0 | G33: =Folha*Aliquotas!C207 -> 2375.1 | I33: =Folha*Aliquotas!C207 -> 2375.1
B34: INCRA | C34: 0 | E34: 0 | G34: =Folha*Aliquotas!C208 -> 791.7 | I34: =Folha*Aliquotas!C208 -> 791.7
B35: FGTS | C35: =IF(EVETADO="V",0,Folha*Aliquotas!A209) -> 0 | E35: =IF(EVETADO="V",0,Folha*Aliquotas!C209) -> 31668 | G35: =Folha*Aliquotas!C209 -> 31668 | I35: =Folha*Aliquotas!C209 -> 31668
B36: Acidente de Trabalho | C36: =IF(OR(Eanexo4="V",Eanexo5="V"),(Folha+ProLabore)*Aliquotas!A210,0) -> 0 | E36: =IF(OR(Eanexo4="V",Eanexo5="V"),Folha*Aliquotas!C210,0) -> 0 | G36: =Folha*Aliquotas!C210 -> 11875.5 | I36: =Folha*Aliquotas!C210 -> 11875.5
B37: Salário Educação | C37: 0 | E37: 0 | G37: =Folha*Aliquotas!C211 -> 9896.25 | I37: =Folha*Aliquotas!C211 -> 9896.25
B38: TOTAL DE ENCARGOS | C38: =SUM(C30:C37) -> 0 | E38: =SUM(E30:E37) -> 31668 | G38: =SUM(G30:G37) -> 146116.8 | I38: =SUM(I30:I37) -> 146116.8
B40: TOTAL GERAL DA TRIBUTAÇÃO | C40: =SUM(C18) -> 0 | E40: =SUM(E26,E38) -> 32426.1 | G40: =SUM(G26,G38) -> 149468.1 | I40: =SUM(I26,I38) -> 150165.3
B43: OPTAREI PELO REGIME:
B44: =IF(ISNUMBER(C18),"EI","EI --- VETADO") -> EI --- VETADO
B45: =IF(ISNUMBER(E18),"SIMPLES","SIMPLES --- VETADO") -> SIMPLES
B46: LUCRO PRESUMIDO
B47: LUCRO REAL

Sheet OutrosCVs
B13: COMISSÕES E OUTROS CUSTOS VARIÁVEIS
B16: COMISSÕES
B18: Descrição das Comissões | C18: % do Faturamento | D18: % da Comissão | E18: Valor
E19: =C19*Faturamento*D19 -> 0
B20: VENDA | C20: 0.5 | D20: 0.05 | E20: 523.75
E21: 0
E22: 0
E23: 0
E24: 0
E25: 0
E26: 0
E27: 0
E28: 0
E29: =SUM(E19:E28) -> 523.75
B31: CARTÃO DE CRÉDITO E DÉBITO
B33: Descrição | C33: % do Faturamento | D33: % da Comissão | E33: Valor
E34: =C34*Faturamento*D34 -> 0
E35: 0
E36: 0
E37: 0
E38: 0
E39: 0
E40: 0
E41: 0
E42: =SUM(E34:E41) -> 0
B44: PREVISÃO DE INADIMPLÊNCIA
B45: 0.015
B48: OUTROS CUSTOS VARIÁVEIS
B50: Descrição | C50: Valor
C61: =SUM(C51:C60) -> 0

Sheet Financiamento
B13: SIMULADOR DE FINANCIAMENTO
B15: FINANCIAMENTO 1 (PERMITE VISUALIZAR AMORTIZAÇÃO)
B17: Valor a Financiar | C17: 100000
B18: Carência | C18: 6
B19: Prazo (Incluso a carência) | C19: 36
B20: Juros | C20: 0.0115
B21: IOF | C21: =D21*C17 -> 1500 | D21: 0.015
B22: Tarifas e Taxas | C22: 30
B24: Parcela | C24: =IF(C17="",0,IF(C18=0,PMT(C20,C19,-(C17+C21+C22)),PMT(C20,C19-C18,-C17-C21-C22))) -> 4020.865195
B27: Parcela | C27: Juros | D27: Amortização | E27: Prestação | F27: Saldo Devedor
B28: 1 | C28: =C17*C20 -> 1150 | D28: =IF(AND(B28<=$C$19,B28>$C$18),$C$24-C28,0) -> 0 | E28: =C28+D28 -> 1150 | F28: =IF(((C17+C21+C22)-D28)<0,0,(C17+C21+C22)-D28) -> 101530
B29: =B28+1 -> 2 | C29: =F28*$C$20 -> 1167.595 | D29: =IF(AND(B29<=$C$19,B29>$C$18),$C$24-C29,0) -> 0 | E29: =C29+D29 -> 1167.595 | F29: =IF((F28-D29)<0,0,(F28-D29)) -> 101530
B30: =B29+1 -> 3 | C30: 1167.595 | D30: 0 | E30: 1167.595 | F30: =IF((F29-D30)<0,0,(F29-D30)) -> 101530
B31: 4 | C31: 1167.595 | D31: 0 | E31: 1167.595 | F31: 101530
B32: 5 | C32: 1167.595 | D32: 0 | E32: 1167.595 | F32: 101530
B33: 6 | C33: 1167.595 | D33: 0 | E33: 1167.595 | F33: 101530
B34: 7 | C34: 1167.595 | D34: 2853.270195 | E34: 4020.865195 | F34: 98676.7298
B35: 8 | C35: 1134.782393 | D35: 2886.082802 | E35: 4020.865195 | F35: 95790.647
B36: 9 | C36: 1101.592441 | D36: 2919.272755 | E36: 4020.865195 | F36: 92871.37425
B37: 10 | C37: 1068.020804 | D37: 2952.844391 | E37: 4020.865195 | F37: 89918.52986
B38: 11 | C38: 1034.063093 | D38: 2986.802102 | E38: 4020.865195 | F38: 86931.72775
B39: 12 | C39: 999.7148692 | D39: 3021.150326 | E39: 4020.865195 | F39: 83910.57743
B40: 13 | C40: 964.9716404 | D40: 3055.893555 | E40: 4020.865195 | F40: 80854.68387
B41: 14 | C41: 929.8288645 | D41: 3091.036331 | E41: 4020.865195 | F41: 77763.64754
B42: 15 | C42: 894.2819467 | D42: 3126.583248 | E42: 4020.865195 | F42: 74637.06429
B43: 16 | C43: 858.3262394 | D43: 3162.538956 | E43: 4020.865195 | F43: 71474.52534
B44: 17 | C44: 821.9570414 | D44: 3198.908154 | E44: 4020.865195 | F44: 68275.61718
B45: 18 | C45: 785.1695976 | D45: 3235.695598 | E45: 4020.865195 | F45: 65039.92159
B46: 19 | C46: 747.9590983 | D46: 3272.906097 | E46: 4020.865195 | F46: 61767.01549
B47: 20 | C47: 710.3206781 | D47: 3310.544517 | E47: 4020.865195 | F47: 58456.47097
B48: 21 | C48: 672.2494162 | D48: 3348.615779 | E48: 4020.865195 | F48: 55107.85519
B49: 22 | C49: 633.7403347 | D49: 3387.12486 | E49: 4020.865195 | F49: 51720.73033
B50: 23 | C50: 594.7883988 | D50: 3426.076796 | E50: 4020.865195 | F50: 48294.65354
B51: 24 | C51: 555.3885157 | D51: 3465.47668 | E51: 4020.865195 | F51: 44829.17686
B52: 25 | C52: 515.5355339 | D52: 3505.329661 | E52: 4020.865195 | F52: 41323.8472
B53: 26 | C53: 475.2242428 | D53: 3545.640952 | E53: 4020.865195 | F53: 37778.20624
B54: 27 | C54: 434.4493718 | D54: 3586.415823 | E54: 4020.865195 | F54: 34191.79042
B55: 28 | C55: 393.2055898 | D55: 3627.659605 | E55: 4020.865195 | F55: 30564.13082
B56: 29 | C56: 351.4875044 | D56: 3669.377691 | E56: 4020.865195 | F56: 26894.75312
B57: 30 | C57: 309.2896609 | D57: 3711.575534 | E57: 4020.865195 | F57: 23183.17759
B58: 31 | C58: 266.6065423 | D58: 3754.258653 | E58: 4020.865195 | F58: 19428.91894
B59: 32 | C59: 223.4325678 | D59: 3797.432627 | E59: 4020.865195 | F59: 15631.48631
B60: 33 | C60: 179.7620926 | D60: 3841.103103 | E60: 4020.865195 | F60: 11790.38321
B61: 34 | C61: =F60*$C$20 -> 135.5894069 | D61: 3885.275788 | E61: 4020.865195 | F61: 7905.107419
B62: 35 | C62: 90.90873532 | D62: 3929.95646 | E62: 4020.865195 | F62: 3975.150959
B63: 36 | C63: 45.71423603 | D63: 3975.150959 | E63: 4020.865195 | F63: 1.273292582e-11
B64: 37 | C64: 1.46428647e-13 | D64: 0 | E64: 1.46428647e-13 | F64: 1.273292582e-11
B65: 38 | C65: 1.46428647e-13 | D65: 0 | E65: 1.46428647e-13 | F65: 1.273292582e-11
B66: 39 | C66: 1.46428647e-13 | D66: 0 | E66: 1.46428647e-13 | F66: 1.273292582e-11
B67: 40 | C67: 1.46428647e-13 | D67: 0 | E67: 1.46428647e-13 | F67: 1.273292582e-11
B68: 41 | C68: 1.46428647e-13 | D68: 0 | E68: 1.46428647e-13 | F68: 1.273292582e-11
B69: 42 | C69: 1.46428647e-13 | D69: 0 | E69: 1.46428647e-13 | F69: 1.273292582e-11
B70: 43 | C70: 1.46428647e-13 | D70: 0 | E70: 1.46428647e-13 | F70: 1.273292582e-11
B71: 44 | C71: 1.46428647e-13 | D71: 0 | E71: 1.46428647e-13 | F71: 1.273292582e-11
B72: 45 | C72: 1.46428647e-13 | D72: 0 | E72: 1.46428647e-13 | F72: 1.273292582e-11
B73: 46 | C73: 1.46428647e-13 | D73: 0 | E73: 1.46428647e-13 | F73: 1.273292582e-11
B74: 47 | C74: 1.46428647e-13 | D74: 0 | E74: 1.46428647e-13 | F74: 1.273292582e-11
B75: 48 | C75: 1.46428647e-13 | D75: 0 | E75: 1.46428647e-13 | F75: 1.273292582e-11
B76: 49 | C76: 1.46428647e-13 | D76: 0 | E76: 1.46428647e-13 | F76: 1.273292582e-11
B77: 50 | C77: 1.46428647e-13 | D77: 0 | E77: 1.46428647e-13 | F77: 1.273292582e-11
B78: 51 | C78: 1.46428647e-13 | D78: 0 | E78: 1.46428647e-13 | F78: 1.273292582e-11
B79: 52 | C79: 1.46428647e-13 | D79: 0 | E79: 1.46428647e-13 | F79: 1.273292582e-11
B80: 53 | C80: 1.46428647e-13 | D80: 0 | E80: 1.46428647e-13 | F80: 1.273292582e-11
B81: 54 | C81: 1.46428647e-13 | D81: 0 | E81: 1.46428647e-13 | F81: 1.273292582e-11
B82: 55 | C82: 1.46428647e-13 | D82: 0 | E82: 1.46428647e-13 | F82: 1.273292582e-11
B83: 56 | C83: 1.46428647e-13 | D83: 0 | E83: 1.46428647e-13 | F83: 1.273292582e-11
B84: 57 | C84: 1.46428647e-13 | D84: 0 | E84: 1.46428647e-13 | F84: 1.273292582e-11
B85: 58 | C85: 1.46428647e-13 | D85: 0 | E85: 1.46428647e-13 | F85: 1.273292582e-11
B86: 59 | C86: 1.46428647e-13 | D86: 0 | E86: 1.46428647e-13 | F86: 1.273292582e-11
B87: 60 | C87: 1.46428647e-13 | D87: 0 | E87: 1.46428647e-13 | F87: 1.273292582e-11
B90: FINANCIAMENTO 2
B92: Valor a Financiar | C92: 50000
B93: Prazo | C93: 12
B94: Juros | C94: 0.005
B95: Tarifas e Taxas | C95: 30
B97: Parcela | C97: =IF(C92="",0,PMT(C94,C93,-C92-C95)) -> 4305.903478
B101: FINANCIAMENTO 3
B103: Valor a Financiar
B104: Prazo
B105: Juros | C105: 0.0079
B106: Tarifas e Taxas
B108: Parcela | C108: =IF(C103="",0,PMT(C105,C104,-C103-C106)) -> 0
B112: OUTROS FINANCAIMENTOS
B114: Valor Financiado
B116: Parcela
B120: Valor Financiado Total | C120: =C17+C92+C103+C114 -> 150000
B122: Parcela Total | C122: =SUM(C24,C97,C108,C116) -> 8326.768673

Sheet DRE
B13: ESTRUTURA GERENCIAL DE RESULTADOS
B15: DISCRIMINAÇÃO | E15: VALOR R$ | F15: %
B17: 1. Receita Total | E17: =SUM(E18:E19) -> 20950 | F17: =SUM(F18:F19) -> 1
B18: Vendas (à vista) | E18: =Faturamento*(PrazosEstoques!$C$17/100) -> 10475 | F18: =IF(E18<>"",E18/$E$17,"") -> 0.5
B19: Vendas (a prazo) | E19: =Faturamento*(PrazosEstoques!$C$18/100) -> 10475 | F19: =IF(E19<>"",E19/$E$17,"") -> 0.5
B21: 2. Custos Variáveis Totais | E21: =SUM(E22:E29) -> 17386.5 | F21: =E21/E17 -> 0.8299045346
B22: Previsão de Custos (Custo da Mercadoria + Custo do Serviço) | E22: =CMV+CDS -> 12500 | F22: =IF(E22<>"",E22/$E$17,"") -> 0.5966587112
B23: Impostos Federais (PIS, COFINS, IPI ou SUPER SIMPLES) | E23: =IF(D23<>"",D23*$E$17,IF(EEI="V",Tributos!$C$18,IF(Esimples="V",Tributos!$E$26,IF(Epresumido="V",SUM(Tributos!$G$20:$G$22),SUM(Tributos!$I$20:$I$22))))) -> 1942.5 | F23: 0.09272076372
B24: Impostos Estaduais (ICMS) | E24: =IF(D24<>"",D24*$E$17,(IF(AND(Esimples="F",EEI="F"),Tributos!G23,""))) -> 2106 | F24: 0.1005250597
B25: Imposto Municipal (ISS) | E25: =IF(D25<>"",D25*$E$17,IF(AND(EEI="F",Esimples="F"),Tributos!G24,"")) -> 0 | F25: 0
B26: Previsão de Inadimplência | D26: =OutrosCVs!B45 -> 0.015 | E26: =D26*E17 -> 314.25 | F26: 0.015
B27: Comissões | E27: =SUM(OutrosCVs!E19:E28) -> 523.75 | F27: 0.025
B28: Cartões de Crédito e Débito | E28: =SUM(OutrosCVs!E34:E41) -> 0 | F28: 0
B29: Outros Custos Variáveis | E29: =SUM(OutrosCVs!C51:C60) -> 0 | F29: 0
B31: 3. Margem de Contribuição | E31: =E17-E21+E58 -> 3563.5 | F31: =E31/E17 -> 0.1700954654
B33: 4. Custos Fixos Totais | E33: =SUM(E34:E51) -> 660971.3067 | F33: =E33/$E$17 -> 31.54994304
B34: =CustoFixo!C16 -> Mão-de-Obra + Encargos | E34: =CustoFixo!D16 -> 658456.89 | F34: =IF(E34<>"",E34/$E$17,"") -> 31.42992315
B35: =CustoFixo!C17 -> Retirada dos Sócios (Pró-Labore) | E35: =CustoFixo!D17 -> 2220 | F35: 0.1059665871
B36: =CustoFixo!C18 -> Água | E36: =CustoFixo!D18 -> 100 | F36: 0.00477326969
B37: =CustoFixo!C19 -> Luz | E37: =CustoFixo!D19 -> 56 | F37: 0.002673031026
B38: =CustoFixo!C20 -> Telefone | E38: =CustoFixo!D20 -> 35 | F38: 0.001670644391
B39: =CustoFixo!C21 -> Contador | E39: =CustoFixo!D21 -> 98 | F39: 0.004677804296
B40: =CustoFixo!C22 -> Despesas com Veículos | E40: =CustoFixo!D22 -> 0 | F40: 0
B41: =CustoFixo!C23 -> Material de Expediente e Consumo | E41: =CustoFixo!D23 -> 0 | F41: 0
B42: =CustoFixo!C24 -> Aluguel | E42: =CustoFixo!D24 -> 0 | F42: 0
B43: =CustoFixo!C25 -> Seguros | E43: =CustoFixo!D25 -> 0 | F43: 0
B44: =CustoFixo!C26 -> Propaganda e Publicidade | E44: =CustoFixo!D26 -> 0 | F44: 0
B45: =CustoFixo!C27 -> Depreciação Mensal | E45: =CustoFixo!D27 -> 5.416666667 | F45: 0.0002585521082
B46: =CustoFixo!C28 -> Manutenção | E46: =CustoFixo!D28 -> 0 | F46: 0
B47: =CustoFixo!C29 -> Condomínio | E47: =CustoFixo!D29 -> 0 | F47: 0
B48: =CustoFixo!C30 -> Despesas de Viagem | E48: =CustoFixo!D30 -> 0 | F48: 0
B49: =CustoFixo!C31 -> Serviços de Terceiros | E49: =CustoFixo!D31 -> 0 | F49: 0
B50: =CustoFixo!C32 -> Ônibus, Táxis e Selos | E50: =CustoFixo!D32 -> 0 | F50: 0
B51: Outros Custos Fixos | E51: =CustoFixo!D33 -> 0 | F51: 0
B53: 5. Resultado Operacional | E53: =E31-E33 -> -657407.8067 | F53: =E53/$E$17 -> -31.37984757
B55: 6. Investimentos | E55: =E56 -> 8326.768673 | F55: =E55/E17 -> 0.3974591252
B56: Financiamento | E56: =IF(Financ.Parcela>0,Financ.Parcela,0) -> 8326.768673 | F56: =IF(E56<>"",E56/$E$17,"") -> 0.3974591252
F57: =IF(E57<>"",E57/$E$17,"") -> 
B58: 7. Imposto Renda Pessoa Jurídica e Contribuição Social (Presumido/Real) | E58: =SUM(E59:E60) -> 0 | F58: =IF(E58<>"",E58/$E$17,"") -> 0
B59: Imposto de Renda Pessoa Jurídica - IRPJ | E59: =IF(OR(EEI="V",Esimples="v"),0,IF(Epresumido="v",SUM(Tributos!$G$18),SUM(Tributos!$I$18))) -> 0 | F59: =IF(E59<>"",E59/$E$17,"") -> 0
B60: Contribuição Social - CS | E60: =IF(OR(EEI="V",Esimples="v"),0,IF(Epresumido="v",SUM(Tributos!$G$19),SUM(Tributos!$I$19))) -> 0 | F60: =IF(E60<>"",E60/$E$17,"") -> 0
B62: 8. Resultado Líquido Financeiro | E62: =E53-E55-E58 -> -665734.5753 | F62: =E62/$E$17 -> -31.7773067

Sheet Sazonalidade
B13: SAZONALIDADE - PRIMEIRO ANO
C16: =#REF! ->  | D16: =C16+31 ->  | E16: =D16+31 -> 
B17: 1. Receita Total | C17: =IF(C30="NA",0,DRE!$E$17*C31*C30) -> 10475 | D17: =IF(D30="NA",0,DRE!$E$17*D31*D30) -> 12570 | E17: =IF(E30="NA",0,DRE!$E$17*E31*E30) -> 14665 | F17: =IF(F30="NA",0,DRE!$E$17*F31*F30) -> 16760 | G17: =IF(G30="NA",0,DRE!$E$17*G31*G30) -> 18855 | H17: =IF(H30="NA",0,DRE!$E$17*H31*H30) -> 20950 | I17: =IF(I30="NA",0,DRE!$E$17*I31*I30) -> 14665 | J17: =IF(J30="NA",0,DRE!$E$17*J31*J30) -> 16760 | K17: =IF(K30="NA",0,DRE!$E$17*K31*K30) -> 18855 | L17: =IF(L30="NA",0,DRE!$E$17*L31*L30) -> 20950 | M17: =IF(M30="NA",0,DRE!$E$17*M31*M30) -> 23045 | N17: =IF(N30="NA",0,DRE!$E$17*N31*N30) -> 25140
B18: 2. Custos Variáveis Totais | C18: =C17*DRE!$F$21 -> 8693.25 | D18: =D17*DRE!$F$21 -> 10431.9 | E18: =E17*DRE!$F$21 -> 12170.55 | F18: =F17*DRE!$F$21 -> 13909.2 | G18: =G17*DRE!$F$21 -> 15647.85 | H18: =H17*DRE!$F$21 -> 17386.5 | I18: =I17*DRE!$F$21 -> 12170.55 | J18: =J17*DRE!$F$21 -> 13909.2 | K18: =K17*DRE!$F$21 -> 15647.85 | L18: =L17*DRE!$F$21 -> 17386.5 | M18: =M17*DRE!$F$21 -> 19125.15 | N18: =N17*DRE!$F$21 -> 20863.8
B19: 3. Margem de Contribuição | C19: =C17-C18 -> 1781.75 | D19: =D17-D18 -> 2138.1 | E19: 2494.45 | F19: 2850.8 | G19: 3207.15 | H19: 3563.5 | I19: 2494.45 | J19: 2850.8 | K19: 3207.15 | L19: 3563.5 | M19: 3919.85 | N19: 4276.2
B20: 4. Custos Fixos | C20: =IF(C30="NA",0,(DRE!$E$33*(1+C32))) -> 660971.3067 | D20: =IF(D30="NA",0,(DRE!$E$33*(1+D32))) -> 660971.3067 | E20: =IF(E30="NA",0,(DRE!$E$33*(1+E32))) -> 660971.3067 | F20: =IF(F30="NA",0,(DRE!$E$33*(1+F32))) -> 660971.3067 | G20: =IF(G30="NA",0,(DRE!$E$33*(1+G32))) -> 660971.3067 | H20: =IF(H30="NA",0,(DRE!$E$33*(1+H32))) -> 660971.3067 | I20: =IF(I30="NA",0,(DRE!$E$33*(1+I32))) -> 660971.3067 | J20: =IF(J30="NA",0,(DRE!$E$33*(1+J32))) -> 660971.3067 | K20: =IF(K30="NA",0,(DRE!$E$33*(1+K32))) -> 660971.3067 | L20: =IF(L30="NA",0,(DRE!$E$33*(1+L32))) -> 660971.3067 | M20: =IF(M30="NA",0,(DRE!$E$33*(1+M32))) -> 660971.3067 | N20: =IF(N30="NA",0,(DRE!$E$33*(1+N32))) -> 660971.3067
B21: 5. Resultado Operacional | C21: =C19-C20 -> -659189.5567 | D21: =D19-D20 -> -658833.2067 | E21: -658476.8567 | F21: -658120.5067 | G21: -657764.1567 | H21: -657407.8067 | I21: -658476.8567 | J21: -658120.5067 | K21: -657764.1567 | L21: -657407.8067 | M21: -657051.4567 | N21: -656695.1067
B22: 6. Investimentos | C22: =HLOOKUP(Plan1!B3,Financ,6,0) -> 5455.903478 | D22: =HLOOKUP(Plan1!C3,Financ,6,0) -> 5473.498478 | E22: =HLOOKUP(Plan1!D3,Financ,6,0) -> 5473.498478 | F22: =HLOOKUP(Plan1!E3,Financ,6,0) -> 5473.498478 | G22: =HLOOKUP(Plan1!F3,Financ,6,0) -> 5473.498478 | H22: =HLOOKUP(Plan1!G3,Financ,6,0) -> 5473.498478 | I22: =HLOOKUP(Plan1!H3,Financ,6,0) -> 8326.768673 | J22: =HLOOKUP(Plan1!I3,Financ,6,0) -> 8326.768673 | K22: =HLOOKUP(Plan1!J3,Financ,6,0) -> 8326.768673 | L22: =HLOOKUP(Plan1!K3,Financ,6,0) -> 8326.768673 | M22: =HLOOKUP(Plan1!L3,Financ,6,0) -> 8326.768673 | N22: =HLOOKUP(Plan1!M3,Financ,6,0) -> 8326.768673
B23: 7. Outros Investimentos
B24: 8. Resultado Líquido Financeiro | C24: =C21-C22-C23 -> -664645.4601 | D24: =D21-D22-D23 -> -664306.7051 | E24: -663950.3551 | F24: -663594.0051 | G24: -663237.6551 | H24: -662881.3051 | I24: -666803.6253 | J24: -666447.2753 | K24: -666090.9253 | L24: -665734.5753 | M24: -665378.2253 | N24: -665021.8753
B25: Aporte de Capital | C25: 0
B26: Acumulado no Ano | C26: =C24+C25 -> -664645.4601 | D26: =C26+D24+D25 -> -1328952.165 | E26: =D26+E24+E25 -> -1992902.52 | F26: -2656496.526 | G26: -3319734.181 | H26: -3982615.486 | I26: -4649419.111 | J26: -5315866.387 | K26: -5981957.312 | L26: -6647691.887 | M26: -7313070.113 | N26: -7978091.988
B27: Lucratividade Mensal | C27: =C24/C17 -> -63.45064059 | D27: =D24/D17 -> -52.84858434 | E27: -45.27448722 | F27: -39.59391439 | G27: -35.17569107 | H27: -31.64111242 | I27: -45.46905048 | J27: -39.76415724 | K27: -35.32701805 | L27: -31.7773067 | M27: -28.87299741 | N27: -26.45273967
B28: Rentabilidade Mensal | C28: =C24/InvestimentoTotal -> -61.79299555 | D28: -61.76150104 | E28: -61.72837069 | F28: -61.69524034 | G28: -61.66211 | H28: -61.62897965 | I28: -61.99364311 | J28: -61.96051277 | K28: -61.92738242 | L28: -61.89425208 | M28: -61.86112173 | N28: -61.82799139
B30: Estagio de Crescimento da Atividade | C30: 1 | D30: 1 | E30: 1 | F30: 1 | G30: 1 | H30: 1 | I30: 1 | J30: 1 | K30: 1 | L30: 1 | M30: 1 | N30: 1
B31: Sazonalidade | C31: 0.5 | D31: 0.6 | E31: 0.7 | F31: 0.8 | G31: 0.9 | H31: 1 | I31: 0.7 | J31: 0.8 | K31: 0.9 | L31: 1 | M31: 1.1 | N31: 1.2
B32: Variação do Custo Fixo | C32: 0 | D32: =$C$32 -> 0 | E32: =$C$32 -> 0 | F32: 0 | G32: 0 | H32: 0 | I32: 0 | J32: 0 | K32: 0 | L32: 0 | M32: 0 | N32: 0
K34: Necessidade de Capital de Giro
K35: Inicial | M35: =Indicadores!C17 -> 10056
K36: Primeiro Ano | M36: =IF(N26>0,"0",N26*-1) -> 7978091.988
K37: Lucratividade
K38: =SUM(C24:N24)/SUM(C17:N17) -> -37.33488693

Sheet Sazonalidade2
B13: SAZONALIDADE - SEGUNDO ANO
C16: =Sazonalidade!N16+30 ->  | D16: =C16+30 ->  | E16: =D16+30 -> 
B17: 1. Receita Total | C17: =DRE!$E$17*C31 -> 10475 | D17: =DRE!$E$17*D31 -> 12570 | E17: =DRE!$E$17*E31 -> 14665 | F17: =DRE!$E$17*F31 -> 16760 | G17: =DRE!$E$17*G31 -> 18855 | H17: =DRE!$E$17*H31 -> 20950 | I17: =DRE!$E$17*I31 -> 14665 | J17: =DRE!$E$17*J31 -> 16760 | K17: =DRE!$E$17*K31 -> 18855 | L17: =DRE!$E$17*L31 -> 20950 | M17: =DRE!$E$17*M31 -> 23045 | N17: =DRE!$E$17*N31 -> 25140
B18: 2. Custos Variáveis Totais | C18: =C17*DRE!$F$21 -> 8693.25 | D18: =D17*DRE!$F$21 -> 10431.9 | E18: =E17*DRE!$F$21 -> 12170.55 | F18: =F17*DRE!$F$21 -> 13909.2 | G18: =G17*DRE!$F$21 -> 15647.85 | H18: =H17*DRE!$F$21 -> 17386.5 | I18: =I17*DRE!$F$21 -> 12170.55 | J18: =J17*DRE!$F$21 -> 13909.2 | K18: =K17*DRE!$F$21 -> 15647.85 | L18: =L17*DRE!$F$21 -> 17386.5 | M18: =M17*DRE!$F$21 -> 19125.15 | N18: =N17*DRE!$F$21 -> 20863.8
B19: 3. Margem de Contribuição | C19: =C17-C18 -> 1781.75 | D19: =D17-D18 -> 2138.1 | E19: 2494.45 | F19: 2850.8 | G19: 3207.15 | H19: 3563.5 | I19: 2494.45 | J19: 2850.8 | K19: 3207.15 | L19: 3563.5 | M19: 3919.85 | N19: 4276.2
B20: 4. Custos Fixos Totais | C20: =DRE!$E$33*(1+C32) -> 660971.3067 | D20: =DRE!$E$33*(1+D32) -> 660971.3067 | E20: =DRE!$E$33*(1+E32) -> 660971.3067 | F20: =DRE!$E$33*(1+F32) -> 660971.3067 | G20: =DRE!$E$33*(1+G32) -> 660971.3067 | H20: =DRE!$E$33*(1+H32) -> 660971.3067 | I20: =DRE!$E$33*(1+I32) -> 660971.3067 | J20: =DRE!$E$33*(1+J32) -> 660971.3067 | K20: =DRE!$E$33*(1+K32) -> 660971.3067 | L20: =DRE!$E$33*(1+L32) -> 660971.3067 | M20: =DRE!$E$33*(1+M32) -> 660971.3067 | N20: =DRE!$E$33*(1+N32) -> 660971.3067
B21: 5. Resultado Operacional | C21: =C19-C20 -> -659189.5567 | D21: =D19-D20 -> -658833.2067 | E21: -658476.8567 | F21: -658120.5067 | G21: -657764.1567 | H21: -657407.8067 | I21: -658476.8567 | J21: -658120.5067 | K21: -657764.1567 | L21: -657407.8067 | M21: -657051.4567 | N21: -656695.1067
B22: 6. Investimentos | C22: =HLOOKUP(Plan1!N3,Financ,6,0) -> 4020.865195 | D22: =HLOOKUP(Plan1!O3,Financ,6,0) -> 4020.865195 | E22: =HLOOKUP(Plan1!P3,Financ,6,0) -> 4020.865195 | F22: =HLOOKUP(Plan1!Q3,Financ,6,0) -> 4020.865195 | G22: =HLOOKUP(Plan1!R3,Financ,6,0) -> 4020.865195 | H22: =HLOOKUP(Plan1!S3,Financ,6,0) -> 4020.865195 | I22: =HLOOKUP(Plan1!T3,Financ,6,0) -> 4020.865195 | J22: =HLOOKUP(Plan1!U3,Financ,6,0) -> 4020.865195 | K22: =HLOOKUP(Plan1!V3,Financ,6,0) -> 4020.865195 | L22: =HLOOKUP(Plan1!W3,Financ,6,0) -> 4020.865195 | M22: =HLOOKUP(Plan1!X3,Financ,6,0) -> 4020.865195 | N22: =HLOOKUP(Plan1!Y3,Financ,6,0) -> 4020.865195
B23: 7. Outros Investimentos
B24: =Sazonalidade!B24 -> 8. Resultado Líquido Financeiro | C24: =C21-C22-C23 -> -663210.4219 | D24: =D21-D22-D23 -> -662854.0719 | E24: -662497.7219 | F24: -662141.3719 | G24: -661785.0219 | H24: -661428.6719 | I24: -662497.7219 | J24: -662141.3719 | K24: -661785.0219 | L24: -661428.6719 | M24: -661072.3219 | N24: -660715.9719
B25: Aporte de Capital
B26: Acumulado no Ano | C26: =C24+C25 -> -663210.4219 | D26: =C26+D24+D25 -> -1326064.494 | E26: =D26+E24+E25 -> -1988562.216 | F26: =E26+F24+F25 -> -2650703.587 | G26: -3312488.609 | H26: -3973917.281 | I26: -4636415.003 | J26: -5298556.375 | K26: -5960341.397 | L26: -6621770.069 | M26: -7282842.39 | N26: -7943558.362
B27: Acumulado desde o início da atividade | C27: =Sazonalidade!N26+C24+C25 -> -8641302.41 | D27: =C27+D24+D25 -> -9304156.482 | E27: =D27+E24+E25 -> -9966654.203 | F27: -10628795.58 | G27: -11290580.6 | H27: -11952009.27 | I27: -12614506.99 | J27: -13276648.36 | K27: -13938433.38 | L27: -14599862.06 | M27: -15260934.38 | N27: -15921650.35
B28: Lucratividade Mensal | C28: =C24/C17 -> -63.31364409 | D28: =D24/D17 -> -52.73302083 | E28: -45.17543279 | F28: -39.50724176 | G28: -35.09864873 | H28: -31.57177431 | I28: -45.17543279 | J28: -39.50724176 | K28: -35.09864873 | L28: -31.57177431 | M28: -28.68614979 | N28: -26.28146268
B29: Rentabilidade Mensal | C29: =C24/InvestimentoTotal -> -61.65957808 | D29: -61.62644774 | E29: -61.59331739 | F29: -61.56018705 | G29: -61.5270567 | H29: -61.49392635 | I29: -61.59331739 | J29: -61.56018705 | K29: -61.5270567 | L29: -61.49392635 | M29: -61.46079601 | N29: -61.42766566
B31: Sazonalidade | C31: =Sazonalidade!C31 -> 0.5 | D31: =Sazonalidade!D31 -> 0.6 | E31: =Sazonalidade!E31 -> 0.7 | F31: =Sazonalidade!F31 -> 0.8 | G31: =Sazonalidade!G31 -> 0.9 | H31: =Sazonalidade!H31 -> 1 | I31: =Sazonalidade!I31 -> 0.7 | J31: =Sazonalidade!J31 -> 0.8 | K31: =Sazonalidade!K31 -> 0.9 | L31: =Sazonalidade!L31 -> 1 | M31: =Sazonalidade!M31 -> 1.1 | N31: =Sazonalidade!N31 -> 1.2
B32: Variação do Custo Fixo | C32: 0 | D32: =$C$32 -> 0 | E32: =$C$32 -> 0 | F32: 0 | G32: 0 | H32: 0 | I32: 0 | J32: 0 | K32: 0 | L32: 0 | M32: 0 | N32: 0
K34: Necessidade de Capital de Giro
K35: Inicial | M35: =Indicadores!C17 -> 10056
K36: Segundo Ano | M36: =IF(N26>0,0,N26*-1) -> 7943558.362
K37: Lucratividade
K38: =SUM(C24:N24)/SUM(C17:N17) -> -37.17328074

Sheet Sazonalidade3
B13: SAZONALIDADE - TERCEIRO ANO
C16: =Sazonalidade2!N16+31 ->  | D16: =C16+31 ->  | E16: =D16+31 -> 
B17: 1. Receita Total | C17: =DRE!$E$17*C31 -> 10475 | D17: =DRE!$E$17*D31 -> 12570 | E17: =DRE!$E$17*E31 -> 14665 | F17: =DRE!$E$17*F31 -> 16760 | G17: =DRE!$E$17*G31 -> 18855 | H17: =DRE!$E$17*H31 -> 20950 | I17: =DRE!$E$17*I31 -> 14665 | J17: =DRE!$E$17*J31 -> 16760 | K17: =DRE!$E$17*K31 -> 18855 | L17: =DRE!$E$17*L31 -> 20950 | M17: =DRE!$E$17*M31 -> 23045 | N17: =DRE!$E$17*N31 -> 25140
B18: 2. Custos Variáveis Totais | C18: =C17*DRE!$F$21 -> 8693.25 | D18: =D17*DRE!$F$21 -> 10431.9 | E18: =E17*DRE!$F$21 -> 12170.55 | F18: =F17*DRE!$F$21 -> 13909.2 | G18: =G17*DRE!$F$21 -> 15647.85 | H18: =H17*DRE!$F$21 -> 17386.5 | I18: =I17*DRE!$F$21 -> 12170.55 | J18: =J17*DRE!$F$21 -> 13909.2 | K18: =K17*DRE!$F$21 -> 15647.85 | L18: =L17*DRE!$F$21 -> 17386.5 | M18: =M17*DRE!$F$21 -> 19125.15 | N18: =N17*DRE!$F$21 -> 20863.8
B19: 3. Margem de Contribuição | C19: =C17-C18 -> 1781.75 | D19: =D17-D18 -> 2138.1 | E19: 2494.45 | F19: 2850.8 | G19: 3207.15 | H19: 3563.5 | I19: 2494.45 | J19: 2850.8 | K19: 3207.15 | L19: 3563.5 | M19: 3919.85 | N19: 4276.2
B20: 4. Custos Fixos Totais | C20: =DRE!$E$33*(1+C32) -> 660971.3067 | D20: =DRE!$E$33*(1+D32) -> 660971.3067 | E20: =DRE!$E$33*(1+E32) -> 660971.3067 | F20: =DRE!$E$33*(1+F32) -> 660971.3067 | G20: =DRE!$E$33*(1+G32) -> 660971.3067 | H20: =DRE!$E$33*(1+H32) -> 660971.3067 | I20: =DRE!$E$33*(1+I32) -> 660971.3067 | J20: =DRE!$E$33*(1+J32) -> 660971.3067 | K20: =DRE!$E$33*(1+K32) -> 660971.3067 | L20: =DRE!$E$33*(1+L32) -> 660971.3067 | M20: =DRE!$E$33*(1+M32) -> 660971.3067 | N20: =DRE!$E$33*(1+N32) -> 660971.3067
B21: 5. Resultado Operacional | C21: =C19-C20 -> -659189.5567 | D21: =D19-D20 -> -658833.2067 | E21: -658476.8567 | F21: -658120.5067 | G21: -657764.1567 | H21: -657407.8067 | I21: -658476.8567 | J21: -658120.5067 | K21: -657764.1567 | L21: -657407.8067 | M21: -657051.4567 | N21: -656695.1067
B22: 6. Investimentos | C22: =HLOOKUP(Plan1!Z3,Financ,6,0) -> 4020.865195 | D22: =HLOOKUP(Plan1!AA3,Financ,6,0) -> 4020.865195 | E22: =HLOOKUP(Plan1!AB3,Financ,6,0) -> 4020.865195 | F22: =HLOOKUP(Plan1!AC3,Financ,6,0) -> 4020.865195 | G22: =HLOOKUP(Plan1!AD3,Financ,6,0) -> 4020.865195 | H22: =HLOOKUP(Plan1!AE3,Financ,6,0) -> 4020.865195 | I22: =HLOOKUP(Plan1!AF3,Financ,6,0) -> 4020.865195 | J22: =HLOOKUP(Plan1!AG3,Financ,6,0) -> 4020.865195 | K22: =HLOOKUP(Plan1!AH3,Financ,6,0) -> 4020.865195 | L22: =HLOOKUP(Plan1!AI3,Financ,6,0) -> 4020.865195 | M22: =HLOOKUP(Plan1!AJ3,Financ,6,0) -> 4020.865195 | N22: =HLOOKUP(Plan1!AK3,Financ,6,0) -> 4020.865195
B23: 7. Outros Investimentos
B24: =Sazonalidade!B24 -> 8. Resultado Líquido Financeiro | C24: =C21-C22-C23 -> -663210.4219 | D24: =D21-D22-D23 -> -662854.0719 | E24: -662497.7219 | F24: -662141.3719 | G24: -661785.0219 | H24: -661428.6719 | I24: -662497.7219 | J24: -662141.3719 | K24: -661785.0219 | L24: -661428.6719 | M24: -661072.3219 | N24: -660715.9719
B25: Aporte de Capital
B26: Acumulado no Ano | C26: =C24+C25 -> -663210.4219 | D26: =C26+D24+D25 -> -1326064.494 | E26: =D26+E24+E25 -> -1988562.216 | F26: -2650703.587 | G26: -3312488.609 | H26: -3973917.281 | I26: -4636415.003 | J26: -5298556.375 | K26: -5960341.397 | L26: -6621770.069 | M26: -7282842.39 | N26: -7943558.362
B27: Acumulado desde o início da atividade | C27: =Sazonalidade2!N27+C24+C25 -> -16584860.77 | D27: =C27+D24+D25 -> -17247714.84 | E27: =D27+E24+E25 -> -17910212.57 | F27: -18572353.94 | G27: -19234138.96 | H27: -19895567.63 | I27: -20558065.35 | J27: -21220206.73 | K27: -21881991.75 | L27: -22543420.42 | M27: -23204492.74 | N27: -23865208.71
B28: Lucratividade Mensal | C28: =C24/C17 -> -63.31364409 | D28: =D24/D17 -> -52.73302083 | E28: -45.17543279 | F28: -39.50724176 | G28: -35.09864873 | H28: -31.57177431 | I28: -45.17543279 | J28: -39.50724176 | K28: -35.09864873 | L28: -31.57177431 | M28: -28.68614979 | N28: -26.28146268
B29: Rentabilidade Mensal | C29: =C24/InvestimentoTotal -> -61.65957808 | D29: -61.62644774 | E29: -61.59331739 | F29: -61.56018705 | G29: -61.5270567 | H29: -61.49392635 | I29: -61.59331739 | J29: -61.56018705 | K29: -61.5270567 | L29: -61.49392635 | M29: -61.46079601 | N29: -61.42766566
B31: Sazonalidade | C31: =Sazonalidade!C31 -> 0.5 | D31: =Sazonalidade!D31 -> 0.6 | E31: =Sazonalidade!E31 -> 0.7 | F31: =Sazonalidade!F31 -> 0.8 | G31: =Sazonalidade!G31 -> 0.9 | H31: =Sazonalidade!H31 -> 1 | I31: =Sazonalidade!I31 -> 0.7 | J31: =Sazonalidade!J31 -> 0.8 | K31: =Sazonalidade!K31 -> 0.9 | L31: =Sazonalidade!L31 -> 1 | M31: =Sazonalidade!M31 -> 1.1 | N31: =Sazonalidade!N31 -> 1.2
B32: Variação do Custo Fixo | C32: 0 | D32: =$C$32 -> 0 | E32: =$C$32 -> 0 | F32: 0 | G32: 0 | H32: 0 | I32: 0 | J32: 0 | K32: 0 | L32: 0 | M32: 0 | N32: 0
K35: Necessidade de Capital de Giro
K36: Inicial | M36: =Indicadores!C17 -> 10056
K37: Terceiro Ano | M37: =IF(N26>0,0,N26*-1) -> 7943558.362
K38: Lucratividade
K39: =SUM(C24:N24)/SUM(C17:N17) -> -37.17328074

Sheet Sazonalidade4
B13: SAZONALIDADE - QUARTO ANO
C16: =Sazonalidade3!N16+30 ->  | D16: =C16+30 ->  | E16: =D16+30 -> 
B17: 1. Receita Total | C17: =DRE!$E$17*C31 -> 10475 | D17: =DRE!$E$17*D31 -> 12570 | E17: =DRE!$E$17*E31 -> 14665 | F17: =DRE!$E$17*F31 -> 16760 | G17: =DRE!$E$17*G31 -> 18855 | H17: =DRE!$E$17*H31 -> 20950 | I17: =DRE!$E$17*I31 -> 14665 | J17: =DRE!$E$17*J31 -> 16760 | K17: =DRE!$E$17*K31 -> 18855 | L17: =DRE!$E$17*L31 -> 20950 | M17: =DRE!$E$17*M31 -> 23045 | N17: =DRE!$E$17*N31 -> 25140
B18: 2. Custos Variáveis Totais | C18: =C17*DRE!$F$21 -> 8693.25 | D18: =D17*DRE!$F$21 -> 10431.9 | E18: =E17*DRE!$F$21 -> 12170.55 | F18: =F17*DRE!$F$21 -> 13909.2 | G18: =G17*DRE!$F$21 -> 15647.85 | H18: =H17*DRE!$F$21 -> 17386.5 | I18: =I17*DRE!$F$21 -> 12170.55 | J18: =J17*DRE!$F$21 -> 13909.2 | K18: =K17*DRE!$F$21 -> 15647.85 | L18: =L17*DRE!$F$21 -> 17386.5 | M18: =M17*DRE!$F$21 -> 19125.15 | N18: =N17*DRE!$F$21 -> 20863.8
B19: 3. Margem de Contribuição | C19: =C17-C18 -> 1781.75 | D19: 2138.1 | E19: 2494.45 | F19: 2850.8 | G19: 3207.15 | H19: 3563.5 | I19: 2494.45 | J19: 2850.8 | K19: 3207.15 | L19: 3563.5 | M19: 3919.85 | N19: 4276.2
B20: 4. Custos Fixos Totais | C20: =DRE!$E$33*(1+C32) -> 660971.3067 | D20: =DRE!$E$33*(1+D32) -> 660971.3067 | E20: =DRE!$E$33*(1+E32) -> 660971.3067 | F20: =DRE!$E$33*(1+F32) -> 660971.3067 | G20: =DRE!$E$33*(1+G32) -> 660971.3067 | H20: =DRE!$E$33*(1+H32) -> 660971.3067 | I20: =DRE!$E$33*(1+I32) -> 660971.3067 | J20: =DRE!$E$33*(1+J32) -> 660971.3067 | K20: =DRE!$E$33*(1+K32) -> 660971.3067 | L20: =DRE!$E$33*(1+L32) -> 660971.3067 | M20: =DRE!$E$33*(1+M32) -> 660971.3067 | N20: =DRE!$E$33*(1+N32) -> 660971.3067
B21: 5. Resultado Operacional | C21: =C19-C20 -> -659189.5567 | D21: =D19-D20 -> -658833.2067 | E21: -658476.8567 | F21: -658120.5067 | G21: -657764.1567 | H21: -657407.8067 | I21: -658476.8567 | J21: -658120.5067 | K21: -657764.1567 | L21: -657407.8067 | M21: -657051.4567 | N21: -656695.1067
B22: 6. Investimentos | C22: =HLOOKUP(Plan1!AL3,Financ,6,0) -> 1.46428647e-13 | D22: =HLOOKUP(Plan1!AM3,Financ,6,0) -> 1.46428647e-13 | E22: =HLOOKUP(Plan1!AN3,Financ,6,0) -> 1.46428647e-13 | F22: =HLOOKUP(Plan1!AO3,Financ,6,0) -> 1.46428647e-13 | G22: =HLOOKUP(Plan1!AP3,Financ,6,0) -> 1.46428647e-13 | H22: =HLOOKUP(Plan1!AQ3,Financ,6,0) -> 1.46428647e-13 | I22: =HLOOKUP(Plan1!AR3,Financ,6,0) -> 1.46428647e-13 | J22: =HLOOKUP(Plan1!AS3,Financ,6,0) -> 1.46428647e-13 | K22: =HLOOKUP(Plan1!AT3,Financ,6,0) -> 1.46428647e-13 | L22: =HLOOKUP(Plan1!AU3,Financ,6,0) -> 1.46428647e-13 | M22: =HLOOKUP(Plan1!AV3,Financ,6,0) -> 1.46428647e-13 | N22: =HLOOKUP(Plan1!AW3,Financ,6,0) -> 1.46428647e-13
B23: 7. Outros Investimentos
B24: =Sazonalidade!B24 -> 8. Resultado Líquido Financeiro | C24: =C21-C22-C23 -> -659189.5567 | D24: =D21-D22-D23 -> -658833.2067 | E24: -658476.8567 | F24: -658120.5067 | G24: -657764.1567 | H24: -657407.8067 | I24: -658476.8567 | J24: -658120.5067 | K24: -657764.1567 | L24: -657407.8067 | M24: -657051.4567 | N24: -656695.1067
B25: Aporte de Capital
B26: Acumulado no Ano | C26: =C24+C25 -> -659189.5567 | D26: =C26+D24+D25 -> -1318022.763 | E26: =D26+E24+E25 -> -1976499.62 | F26: -2634620.127 | G26: -3292384.283 | H26: -3949792.09 | I26: -4608268.947 | J26: -5266389.453 | K26: -5924153.61 | L26: -6581561.417 | M26: -7238612.873 | N26: -7895307.98
B27: Acumulado desde o início da atividade | C27: =Sazonalidade3!N27+C24+C25 -> -24524398.27 | D27: =C27+D24+D25 -> -25183231.48 | E27: =D27+E24+E25 -> -25841708.33 | F27: -26499828.84 | G27: -27157593 | H27: -27815000.8 | I27: -28473477.66 | J27: -29131598.17 | K27: -29789362.32 | L27: -30446770.13 | M27: -31103821.59 | N27: -31760516.69
B28: Lucratividade Mensal | C28: =C24/C17 -> -62.92979061 | D28: =D24/D17 -> -52.41314293 | E28: -44.90125173 | F28: -39.26733333 | G28: -34.8853968 | H28: -31.37984757 | I28: -44.90125173 | J28: -39.26733333 | K28: -34.8853968 | L28: -31.37984757 | M28: -28.51167093 | N28: -26.12152373
B29: Rentabilidade Mensal | C29: =C24/InvestimentoTotal -> -61.28575276 | D29: -61.25262241 | E29: -61.21949207 | F29: -61.18636172 | G29: -61.15323137 | H29: -61.12010103 | I29: -61.21949207 | J29: -61.18636172 | K29: -61.15323137 | L29: -61.12010103 | M29: -61.08697068 | N29: -61.05384034
B31: Sazonalidade | C31: =Sazonalidade!C31 -> 0.5 | D31: =Sazonalidade!D31 -> 0.6 | E31: =Sazonalidade!E31 -> 0.7 | F31: =Sazonalidade!F31 -> 0.8 | G31: =Sazonalidade!G31 -> 0.9 | H31: =Sazonalidade!H31 -> 1 | I31: =Sazonalidade!I31 -> 0.7 | J31: =Sazonalidade!J31 -> 0.8 | K31: =Sazonalidade!K31 -> 0.9 | L31: =Sazonalidade!L31 -> 1 | M31: =Sazonalidade!M31 -> 1.1 | N31: =Sazonalidade!N31 -> 1.2
B32: Variação do Custo Fixo | C32: 0 | D32: =$C$32 -> 0 | E32: 0 | F32: 0 | G32: 0 | H32: 0 | I32: 0 | J32: 0 | K32: 0 | L32: 0 | M32: 0 | N32: 0
K35: Necessidade de Capital de Giro
K36: Inicial | M36: =Indicadores!C17 -> 10056
K37: Quarto Ano | M37: =IF(N26>0,0,N26*-1) -> 7895307.98
K38: Lucratividade
K39: =SUM(C24:N24)/SUM(C17:N17) -> -36.94748458

Sheet Sazonalidade5
B13: SAZONALIDADE - QUINTO ANO
C16: =Sazonalidade4!N16+30 ->  | D16: =C16+30 ->  | E16: =D16+30 ->  | F16: =E16+30 ->  | G16: =F16+30 ->  | H16: =G16+31 ->  | I16: =H16+30 ->  | J16: =I16+31 ->  | K16: =J16+31 ->  | L16: =K16+31 ->  | M16: =L16+30 ->  | N16: =M16+30 -> 
B17: 1. Receita Total | C17: =DRE!$E$17*C31 -> 10475 | D17: =DRE!$E$17*D31 -> 12570 | E17: =DRE!$E$17*E31 -> 14665 | F17: =DRE!$E$17*F31 -> 16760 | G17: =DRE!$E$17*G31 -> 18855 | H17: =DRE!$E$17*H31 -> 20950 | I17: =DRE!$E$17*I31 -> 14665 | J17: =DRE!$E$17*J31 -> 16760 | K17: =DRE!$E$17*K31 -> 18855 | L17: =DRE!$E$17*L31 -> 20950 | M17: =DRE!$E$17*M31 -> 23045 | N17: =DRE!$E$17*N31 -> 25140
B18: 2. Custos Variáveis Totais | C18: =C17*DRE!$F$21 -> 8693.25 | D18: =D17*DRE!$F$21 -> 10431.9 | E18: =E17*DRE!$F$21 -> 12170.55 | F18: =F17*DRE!$F$21 -> 13909.2 | G18: =G17*DRE!$F$21 -> 15647.85 | H18: =H17*DRE!$F$21 -> 17386.5 | I18: =I17*DRE!$F$21 -> 12170.55 | J18: =J17*DRE!$F$21 -> 13909.2 | K18: =K17*DRE!$F$21 -> 15647.85 | L18: =L17*DRE!$F$21 -> 17386.5 | M18: =M17*DRE!$F$21 -> 19125.15 | N18: =N17*DRE!$F$21 -> 20863.8
B19: 3. Margem de Contribuição | C19: =C17-C18 -> 1781.75 | D19: =D17-D18 -> 2138.1 | E19: 2494.45 | F19: 2850.8 | G19: 3207.15 | H19: 3563.5 | I19: 2494.45 | J19: 2850.8 | K19: 3207.15 | L19: 3563.5 | M19: 3919.85 | N19: 4276.2
B20: 4. Custos Fixos Totais | C20: =DRE!$E$33*(1+C32) -> 660971.3067 | D20: =DRE!$E$33*(1+D32) -> 660971.3067 | E20: =DRE!$E$33*(1+E32) -> 660971.3067 | F20: =DRE!$E$33*(1+F32) -> 660971.3067 | G20: =DRE!$E$33*(1+G32) -> 660971.3067 | H20: =DRE!$E$33*(1+H32) -> 660971.3067 | I20: =DRE!$E$33*(1+I32) -> 660971.3067 | J20: =DRE!$E$33*(1+J32) -> 660971.3067 | K20: =DRE!$E$33*(1+K32) -> 660971.3067 | L20: =DRE!$E$33*(1+L32) -> 660971.3067 | M20: =DRE!$E$33*(1+M32) -> 660971.3067 | N20: =DRE!$E$33*(1+N32) -> 660971.3067
B21: 5. Resultado Operacional | C21: =C19-C20 -> -659189.5567 | D21: =D19-D20 -> -658833.2067 | E21: -658476.8567 | F21: -658120.5067 | G21: -657764.1567 | H21: -657407.8067 | I21: -658476.8567 | J21: -658120.5067 | K21: -657764.1567 | L21: -657407.8067 | M21: -657051.4567 | N21: -656695.1067
B22: 6. Investimentos | C22: =HLOOKUP(Plan1!AX3,Financ,6,0) -> 1.46428647e-13 | D22: =HLOOKUP(Plan1!AY3,Financ,6,0) -> 1.46428647e-13 | E22: =HLOOKUP(Plan1!AZ3,Financ,6,0) -> 1.46428647e-13 | F22: =HLOOKUP(Plan1!BA3,Financ,6,0) -> 1.46428647e-13 | G22: =HLOOKUP(Plan1!BB3,Financ,6,0) -> 1.46428647e-13 | H22: =HLOOKUP(Plan1!BC3,Financ,6,0) -> 1.46428647e-13 | I22: =HLOOKUP(Plan1!BD3,Financ,6,0) -> 1.46428647e-13 | J22: =HLOOKUP(Plan1!BE3,Financ,6,0) -> 1.46428647e-13 | K22: =HLOOKUP(Plan1!BF3,Financ,6,0) -> 1.46428647e-13 | L22: =HLOOKUP(Plan1!BG3,Financ,6,0) -> 1.46428647e-13 | M22: =HLOOKUP(Plan1!BH3,Financ,6,0) -> 1.46428647e-13 | N22: =HLOOKUP(Plan1!BI3,Financ,6,0) -> 1.46428647e-13
B23: 7. Outros Investimentos
B24: =Sazonalidade!B24 -> 8. Resultado Líquido Financeiro | C24: =C21-C22-C23 -> -659189.5567 | D24: =D21-D22-D23 -> -658833.2067 | E24: -658476.8567 | F24: -658120.5067 | G24: -657764.1567 | H24: -657407.8067 | I24: -658476.8567 | J24: -658120.5067 | K24: -657764.1567 | L24: -657407.8067 | M24: -657051.4567 | N24: -656695.1067
B25: Aporte de Capital
B26: Acumulado no Ano | C26: =C24+C25 -> -659189.5567 | D26: =C26+D24+D25 -> -1318022.763 | E26: =D26+E24+E25 -> -1976499.62 | F26: -2634620.127 | G26: -3292384.283 | H26: -3949792.09 | I26: -4608268.947 | J26: -5266389.453 | K26: -5924153.61 | L26: -6581561.417 | M26: -7238612.873 | N26: -7895307.98
B27: Acumulado desde o início da atividade | C27: =Sazonalidade4!N27+C24+C25 -> -32419706.25 | D27: =C27+D24+D25 -> -33078539.46 | E27: =D27+E24+E25 -> -33737016.31 | F27: -34395136.82 | G27: -35052900.98 | H27: -35710308.78 | I27: -36368785.64 | J27: -37026906.15 | K27: -37684670.3 | L27: -38342078.11 | M27: -38999129.57 | N27: -39655824.67
B28: Lucratividade Mensal | C28: =C24/C17 -> -62.92979061 | D28: =D24/D17 -> -52.41314293 | E28: -44.90125173 | F28: -39.26733333 | G28: -34.8853968 | H28: -31.37984757 | I28: -44.90125173 | J28: -39.26733333 | K28: -34.8853968 | L28: -31.37984757 | M28: -28.51167093 | N28: -26.12152373
B29: Rentabilidade Mensal | C29: =C24/InvestimentoTotal -> -61.28575276 | D29: -61.25262241 | E29: -61.21949207 | F29: -61.18636172 | G29: -61.15323137 | H29: -61.12010103 | I29: -61.21949207 | J29: -61.18636172 | K29: -61.15323137 | L29: -61.12010103 | M29: -61.08697068 | N29: -61.05384034
B31: Sazonalidade | C31: =Sazonalidade!C31 -> 0.5 | D31: =Sazonalidade!D31 -> 0.6 | E31: =Sazonalidade!E31 -> 0.7 | F31: =Sazonalidade!F31 -> 0.8 | G31: =Sazonalidade!G31 -> 0.9 | H31: =Sazonalidade!H31 -> 1 | I31: =Sazonalidade!I31 -> 0.7 | J31: =Sazonalidade!J31 -> 0.8 | K31: =Sazonalidade!K31 -> 0.9 | L31: =Sazonalidade!L31 -> 1 | M31: =Sazonalidade!M31 -> 1.1 | N31: =Sazonalidade!N31 -> 1.2
B32: Variação do Custo Fixo | C32: 0 | D32: =$C$32 -> 0 | E32: 0 | F32: 0 | G32: 0 | H32: 0 | I32: 0 | J32: 0 | K32: 0 | L32: 0 | M32: 0 | N32: 0
K35: Necessidade de Capital de Giro
K36: Inicial | M36: =Indicadores!C17 -> 10056
K37: Quinto Ano | M37: =IF(N26>0,0,N26*-1) -> 7895307.98
K38: Lucratividade
K39: =SUM(C24:N24)/SUM(C17:N17) -> -36.94748458

Sheet Indicadores
B13: INDICADORES FINANCEIROS
B16: Investimento | C16: =InvestFixo!C68+PrazosEstoques!C32 -> 700 | E16: Faturamento | F16: =DRE!E17 -> 20950
B17: Capital de Giro | C17: =IF(G47="X",F47,F48) -> 10056 | E17: Custos Variáveis | F17: =DRE!E21 -> 17386.5 | G17: =F17/$F$16 -> 0.8299045346
B18: Total | C18: =SUM(C16:C17) -> 10756 | E18: Custos Fixos | F18: =DRE!E33 -> 660971.3067 | G18: =F18/$F$16 -> 31.54994304
E19: Resultado Operacional | F19: =DRE!E53 -> -657407.8067 | G19: =F19/$F$16 -> -31.37984757
B20: Financiamento | C20: =Financiamento!C17 -> 100000 | E20: Investimentos | F20: =DRE!E55 -> 8326.768673 | G20: =F20/$F$16 -> 0.3974591252
B21: Capital Próprio | C21: =SUM(C16:C17)-C20 -> -89244 | E21: Resultado | F21: =DRE!E62 -> -665734.5753 | G21: =F21/$F$16 -> -31.7773067
C26: Operacional | I26: Realização do Previsto | J26: 0.05 | K26: 0.5 | L26: 1 | M26: 1.5
B27: Mensal | C27: =(F18)/(C$53/100%) -> 3885884.348 | I27: Receita | J27: =DRE!$E$17*J26 -> 1047.5 | K27: =DRE!$E$17*K26 -> 10475 | L27: =DRE!$E$17*L26 -> 20950 | M27: =DRE!$E$17*M26 -> 31425
B28: Diário | C28: =C27/C40 -> 155435.3739 | I28: Custo Variável | J28: =J27*DRE!$F$21 -> 869.325 | K28: =K27*DRE!$F$21 -> 8693.25 | L28: =L27*DRE!$F$21 -> 17386.5 | M28: =M27*DRE!$F$21 -> 26079.75
I29: Custo Fixo | J29: =DRE!$E$33 -> 660971.3067 | K29: =DRE!$E$33 -> 660971.3067 | L29: =DRE!$E$33 -> 660971.3067 | M29: =DRE!$E$33 -> 660971.3067
C30: Financeiro | I30: Custo Total | J30: =SUM(J28:J29)+SUM(J32:J32) -> 670167.4003 | K30: =SUM(K28:K29)+SUM(K32:K32) -> 677991.3253 | L30: =SUM(L28:L29)+SUM(L32:L32) -> 686684.5753 | M30: =SUM(M28:M29)+SUM(M32:M32) -> 695377.8253
B31: Mensal | C31: =(F18+F20)/(C$53/100%) -> 3934837.85 | I31: Resultado Operacional | J31: =J27-J28-J29 -> -660793.1317 | K31: =K27-K28-K29 -> -659189.5567 | L31: =L27-L28-L29 -> -657407.8067 | M31: =M27-M28-M29 -> -655626.0567
B32: Diário | C32: =C31/C40 -> 157393.514 | I32: Investimento | J32: =DRE!$E$55 -> 8326.768673 | K32: =DRE!$E$55 -> 8326.768673 | L32: =DRE!$E$55 -> 8326.768673 | M32: =DRE!$E$55 -> 8326.768673
I33: Resultado | J33: =J27-J28-J29-J32 -> -669119.9003 | K33: =K27-K28-K29-K32 -> -667516.3253 | L33: =L27-L28-L29-L32 -> -665734.5753 | M33: =M27-M28-M29-M32 -> -663952.8253
C34: Econômico | I34: Lucratividade | J34: =J33/J27 -> -638.7779478 | K34: =K33/K27 -> -63.72470886 | L34: =L33/L27 -> -31.7773067 | M34: =M33/M27 -> -21.12817264
B35: Lucro Desejado | C35: 0 | D35: =C35/DRE!E17 -> 0 | I35: Rentabilidade | J35: 0 | K35: =K33/InvestFixo!$C$68 -> -1213.666046 | L35: =L33/InvestFixo!$C$68 -> -1210.426501 | M35: =M33/InvestFixo!$C$68 -> -1207.186955
B36: Mensal | C36: =(F18+F20+C35)/(C$53/100%) -> 3934837.85
B37: Diário | C37: =C36/C40 -> 157393.514
B40: Dias Úteis | C40: 25
B46: Prazo Médio de Recebimento | C46: =PrazosEstoques!D19 -> 0 | E46: Necessidade de Capital de Giro
E47: Ciclo Financeiro | F47: =IF((DRE!$E$17/DiasUteis)*(PrazosEstoques!$D$19+PrazosEstoques!$C$28-PrazosEstoques!$D$25)<0,0,(DRE!$E$17/DiasUteis)*(PrazosEstoques!$D$19+PrazosEstoques!$C$28-PrazosEstoques!$D$25)) -> 10056 | G47: X
B48: Rotação do Estoque | C48: =PrazosEstoques!C32/(DRE!E17/Indicadores!C40) -> 0.1789976134 | E48: Saldo das contas do Balanço | F48: =IF(DRE!E19+PrazosEstoques!C32-((DRE!E21+DRE!E33)*(PrazosEstoques!C24/100))<0,0,DRE!E19+PrazosEstoques!C32-((DRE!E21+DRE!E33)*(PrazosEstoques!C24/100))) -> 0
B53: Margem de Contribuição | C53: =mc -> 0.1700954654 | E53: Lucratividade
E54: Média Mensal | F54: =AVERAGE(Sazonalidade!C27:N27,Sazonalidade2!C28:N28,Sazonalidade3!C28:N28,Sazonalidade4!C28:N28,Sazonalidade5!C28:N28) -> -39.41293698
B57: Rentabilidade | E57: Prazo de Retorno do Investimento
B58: Média Mensal | C58: =AVERAGE(Sazonalidade!C28:N28,Sazonalidade2!C29:N29,Sazonalidade3!C29:N29,Sazonalidade4!C29:N29,Sazonalidade5!C29:N29) -> -61.44760238 | E58: Resultado Operacional | F58: =IF(HLOOKUP(C18,Plan1!B1:BI3,3,1)+1>60,"Superior a 60 meses",HLOOKUP(C18,Plan1!B1:BI3,3,1)+1) -> Superior a 60 meses
B59: Período de 60 meses | C59: =Plan1!B10 -> -112694.6376 | E59: Resultado Final | F59: =IF(HLOOKUP(C18,Plan1!B2:BI3,2,1)+1>60,"Superior a 60 meses",HLOOKUP(C18,Plan1!B2:BI3,2,1)+1) -> Superior a 60 meses
B61: Endividamento Geral | E61: Taxa de Retorno
B62: Grau de Endividamento | C62: =Financ.total/C18 -> 13.94570472 | E62: TMA - Taxa Mínima de Atratividade | F62: 0.1135
E63: TIR - Taxa Interna de Retorno | F63: =IF(ISERR(IRR(Plan1!A15:F15,F62)),"Inferior a zero",IRR(Plan1!A15:F15,F62)) -> Inferior a zero
E64: VPL - Valor Presente Líquido | F64: =NPV(F62,Plan1!A15:F15) -> -26119539.03
J68: Resultado
B69: Acréscimo no Preço | C69: 0.1 | E69: Acréscimo nas Vendas | F69: =C69 -> 0.1 | I69: Resultado Atual | J69: =F21 -> -665734.5753
B70: Receita | C70: =DRE!$E$17*(1+C69) -> 23045 | E70: Receita | F70: =DRE!$E$17*(1+F69) -> 23045 | I70: =B69 -> Acréscimo no Preço | J70: =C75 -> -663639.5753
B71: Custo Variável | C71: =DRE!E21 -> 17386.5 | E71: Custo Variável | F71: =F70*DRE!$F$21 -> 19125.15 | I71: =E69 -> Acréscimo nas Vendas | J71: =F75 -> -665378.2253
B72: Custo Fixo | C72: =DRE!$E$33 -> 660971.3067 | E72: Custo Fixo | F72: =DRE!$E$33 -> 660971.3067 | I72: =B78 -> Redução no Custo da Mercadoria | J72: =C84 -> -664484.5753
B73: Resultado Operacional | C73: =C70-C71-C72 -> -655312.8067 | E73: Resultado Operacional | F73: =F70-F71-F72 -> -657051.4567 | I73: =E78 -> Redução no Custo Fixo | J73: =F84 -> -599637.4447
B74: Investimentos | C74: =DRE!$E$55 -> 8326.768673 | E74: Investimentos | F74: =DRE!$E$55 -> 8326.768673 | I74: =B87 -> Política de Descontos | J74: =C93 -> -667829.5753
B75: Resultado Final | C75: =C73-C74-DRE!$E$58 -> -663639.5753 | E75: Resultado Final | F75: =F73-F74-DRE!$E$58 -> -665378.2253
B78: Redução no Custo da Mercadoria | C78: =C69 -> 0.1 | E78: Redução no Custo Fixo | F78: =C69 -> 0.1
B79: Receita | C79: =DRE!$E$17 -> 20950 | E79: Receita | F79: =DRE!$E$17 -> 20950
B80: Custo Variável | C80: =(C79*(DRE!$F$21-DRE!$F$22))+(DRE!E22*(1-C78)) -> 16136.5 | E80: Custo Variável | F80: =F79*DRE!$F$21 -> 17386.5
B81: Custo Fixo | C81: =DRE!$E$33 -> 660971.3067 | E81: Custo Fixo | F81: =DRE!$E$33*(1-F78) -> 594874.176
B82: Resultado Operacional | C82: =C79-C80-C81 -> -656157.8067 | E82: Resultado Operacional | F82: =F79-F80-F81 -> -591310.676
B83: Investimentos | C83: =DRE!$E$55 -> 8326.768673 | E83: Investimentos | F83: =DRE!$E$55 -> 8326.768673
B84: Resultado Final | C84: =C82-C83-DRE!$E$58 -> -664484.5753 | E84: Resultado Final | F84: =F82-F83-DRE!$E$58 -> -599637.4447
B87: Política de Descontos | C87: 0.1
B88: Receita | C88: =DRE!$E$17*(1-C87) -> 18855
B89: Custo Variável | C89: =DRE!$E$21 -> 17386.5
B90: Custo Fixo | C90: =DRE!$E$33 -> 660971.3067
B91: Resultado Operacional | C91: =C88-C89-C90 -> -659502.8067
B92: Investimentos | C92: =DRE!$E$55 -> 8326.768673
B93: Resultado | C93: =C91-C92-DRE!$E$58 -> -667829.5753

Sheet Parecer
B10: Empresa: | C10: =Menu!G26 -> Empresa ABCDE
B12: OBSERVAÇÕES DO CONSULTOR

Sheet Instruções

Sheet ImpostoDetalhado
B1: IMPOSTO DETALHADO
H2: TRIBUTAÇÃO NO REGIME PRESUMIDO
B3: Atividade | C3: Receita Bruta | E3: Alíquota | F3: Total | H3: IRPJ | I3: CSLL | J3: COFINS | K3: PIS | L3: ISS | M3: Total
B4: =TributosSimples!B19 -> Comércio | C4: =TributosSimples!E19 -> 21000 | E4: =IF(B4=0,"",VLOOKUP(Rbruta,INDIRECT(VLOOKUP(B4,Atividades,3,0)),2,1)) -> 0.0361 | F4: =(IF(B4=0,0,C4*E4)) -> 758.1 | H4: =IF(B4=0,"",VLOOKUP($H$3,TabPres,VLOOKUP(B4,Atividades,4,0),0)*C4) -> 252 | I4: =IF(B4=0,"",VLOOKUP($I$3,TabPres,VLOOKUP(B4,Atividades,4,0),0)*C4) -> 226.8 | J4: =IF(B4=0,"",VLOOKUP($J$3,TabPres,VLOOKUP(B4,Atividades,4,0),0)*C4) -> 630 | K4: =IF(B4=0,"",VLOOKUP($K$3,TabPres,VLOOKUP(B4,Atividades,4,0),0)*C4) -> 136.5 | L4: =IF(NOT(OR(B4=Aliquotas!$N$3,B4=Aliquotas!$N$4,B4=Aliquotas!$N$32,B4=Aliquotas!$N$5)),C4*ISS,0) -> 0 | M4: =SUM(H4:K4) -> 1245.3
B5: =TributosSimples!B20 -> 0 | C5: =TributosSimples!E20 -> 0 | E5: =IF(B5=0,"",VLOOKUP(Rbruta,INDIRECT(VLOOKUP(B5,Atividades,3,0)),2,1)) ->  | F5: =(IF(B5=0,0,C5*E5)) -> 0 | L5: =IF(NOT(OR(B5=Aliquotas!$N$3,B5=Aliquotas!$N$4,B5=Aliquotas!$N$32,B5=Aliquotas!$N$5)),C5*ISS,0) -> 0 | M5: =SUM(H5:K5) -> 0
B6: =TributosSimples!B21 -> 0 | C6: =TributosSimples!E21 -> 0 | F6: 0 | L6: =IF(NOT(OR(B6=Aliquotas!$N$3,B6=Aliquotas!$N$4,B6=Aliquotas!$N$32,B6=Aliquotas!$N$5)),C6*ISS,0) -> 0 | M6: 0
B7: =TributosSimples!B22 -> 0 | C7: =TributosSimples!E22 -> 0 | F7: 0 | L7: =IF(NOT(OR(B7=Aliquotas!$N$3,B7=Aliquotas!$N$4,B7=Aliquotas!$N$32,B7=Aliquotas!$N$5)),C7*ISS,0) -> 0 | M7: 0
B8: =TributosSimples!B23 -> 0 | C8: =TributosSimples!E23 -> 0 | F8: 0 | L8: =IF(NOT(OR(B8=Aliquotas!$N$3,B8=Aliquotas!$N$4,B8=Aliquotas!$N$32,B8=Aliquotas!$N$5)),C8*ISS,0) -> 0 | M8: 0
B9: =TributosSimples!B24 -> 0 | C9: =TributosSimples!E24 -> 0 | F9: 0 | L9: =IF(NOT(OR(B9=Aliquotas!$N$3,B9=Aliquotas!$N$4,B9=Aliquotas!$N$32,B9=Aliquotas!$N$5)),C9*ISS,0) -> 0 | M9: 0
B10: =TributosSimples!B25 -> 0 | C10: =TributosSimples!E25 -> 0 | F10: 0 | L10: =IF(NOT(OR(B10=Aliquotas!$N$3,B10=Aliquotas!$N$4,B10=Aliquotas!$N$32,B10=Aliquotas!$N$5)),C10*ISS,0) -> 0 | M10: 0
B11: =TributosSimples!B26 -> 0 | C11: =TributosSimples!E26 -> 0 | F11: 0 | L11: =IF(NOT(OR(B11=Aliquotas!$N$3,B11=Aliquotas!$N$4,B11=Aliquotas!$N$32,B11=Aliquotas!$N$5)),C11*ISS,0) -> 0 | M11: 0
B12: =TributosSimples!B27 -> 0 | C12: =TributosSimples!E27 -> 0 | F12: 0 | L12: =IF(NOT(OR(B12=Aliquotas!$N$3,B12=Aliquotas!$N$4,B12=Aliquotas!$N$32,B12=Aliquotas!$N$5)),C12*ISS,0) -> 0 | M12: 0
B13: =TributosSimples!B28 -> 0 | C13: =TributosSimples!E28 -> 0 | F13: 0 | L13: =IF(NOT(OR(B13=Aliquotas!$N$3,B13=Aliquotas!$N$4,B13=Aliquotas!$N$32,B13=Aliquotas!$N$5)),C13*ISS,0) -> 0 | M13: 0
B14: =TributosSimples!B29 -> 0 | C14: =TributosSimples!E29 -> 0 | F14: 0 | L14: =IF(NOT(OR(B14=Aliquotas!$N$3,B14=Aliquotas!$N$4,B14=Aliquotas!$N$32,B14=Aliquotas!$N$5)),C14*ISS,0) -> 0 | M14: 0
B15: =TributosSimples!B30 -> 0 | C15: =TributosSimples!E30 -> 0 | F15: 0 | L15: =IF(NOT(OR(B15=Aliquotas!$N$3,B15=Aliquotas!$N$4,B15=Aliquotas!$N$32,B15=Aliquotas!$N$5)),C15*ISS,0) -> 0 | M15: 0
F16: =SUM(F4:F15) -> 758.1 | H16: =SUM(H4:H15) -> 252 | I16: 226.8 | J16: 630 | K16: 136.5 | L16: 0 | M16: 1245.3
H21: TRIBUTAÇÃO NO REGIME LUCRO REAL
F22: Faturamento mês: | H22: IRPJ | I22: CSLL | J22: COFINS | K22: PIS | L22: ISS | M22: Total
F23: =TributosSimples!E31 -> 21000 | H23: =IF($F$26>=0,$F$26*Aliquotas!$C$230,"") ->  | I23: =IF($F$26>=0,$F$26*Aliquotas!$C$231,"") ->  | J23: =$F$23*Aliquotas!C232 -> 1596 | K23: =$F$23*Aliquotas!E233 -> 346.5 | L23: =Tributos!$G$24 -> 0 | M23: =SUM(H23:L23) -> 1942.5
H24: =F30*Aliquotas!E230 -> 0 | I24: =F30*Aliquotas!E231 -> 0 | J24: =$F$23*Aliquotas!E232 -> 1596 | K24: =$F$23*Aliquotas!E233 -> 346.5 | L24: =Tributos!$G$24 -> 0 | M24: =SUM(H24:L24) -> 1942.5
F25: Base para IRPJ/CS
F26: =((TributosSimples!$E$31)-((CustoFixo!$D$69)+(CDT)+(Financ.Parcela)+(TributosReal!$E$22+TributosReal!$E$32)+(TributosPres!E30+TributosPres!E40))) -> -663520.0753
F27: 240000
F29: Lucro > R$ 240.000,01
F30: =IF(F26>Aliquotas!F230,F26-Aliquotas!F230,0) -> 0
F31: 240001
B37: EI | C37: Valor
B38: =TributosEI!B19 -> 0 | C38: =IF(OR(ecombinado="X",ecombinado="x"),Aliquotas!$O$67,IF(ISERROR(VLOOKUP(VLOOKUP(B38,EI,6,0),EI.Valores,2,0)),"Atividade Vetada",VLOOKUP(VLOOKUP(B38,EI,6,0),EI.Valores,2,0))) -> Atividade Vetada

Sheet Aliquotas
B2: ALIQUOTAS | N2: Atividade | O2: Anexo | P2: Tabela | Q2: Coluna
B3: DE / ATÉ | C3: ALÍQUOTA | D3: IRPJ | E3: CSLL | F3: COFINS | G3: PIS/PASEP | H3: INSS | I3: ICMS | N3: Comércio | O3: 1 | P3: Tab1Com | Q3: 2
B4: 0 | C4: =SUM(D4:I4) -> 0.0275 | D4: 0 | E4: 0 | F4: 0 | G4: 0 | H4: 0.0275 | N4: Indústria | O4: 2 | P4: Tab2Ind | Q4: 2
B5: 180000.01 | C5: =SUM(D5:I5) -> 0.0361 | D5: 0 | E5: 0 | F5: 0.0086 | G5: 0 | H5: 0.0275 | N5: Locação de bens Móveis | O5: 3 | P5: Tab3Loc | Q5: 3
B6: 360000.01 | C6: 0.0451 | D6: 0.0027 | E6: 0.0031 | F6: 0.0095 | G6: 0.0023 | H6: 0.0275 | N6: creche, pré-escola e estabelecimento de ensino fundamental | O6: 3 | P6: Tab3Serv | Q6: 3
B7: 540000.01 | C7: 0.0754 | D7: 0.0035 | E7: 0.0035 | F7: 0.0104 | G7: 0.0025 | H7: 0.0299 | I7: 0.0256 | N7: agência terceirizada de correios | O7: 3 | P7: Tab3Serv | Q7: 3
B8: 720000.01 | C8: 0.076 | D8: 0.0035 | E8: 0.0035 | F8: 0.0105 | G8: 0.0025 | H8: 0.0302 | I8: 0.0258 | N8: agência de viagem e turismo | O8: 3 | P8: Tab3Serv | Q8: 3
B9: 900000.01 | C9: 0.0828 | D9: 0.0038 | E9: 0.0038 | F9: 0.0115 | G9: 0.0027 | H9: 0.0328 | I9: 0.0282 | N9: centro de formação de condutores de veículos automotores de transporte terrestre de passageiros e de carga | O9: 3 | P9: Tab3Serv | Q9: 3
B10: 1080000.01 | C10: 0.0836 | D10: 0.0039 | E10: 0.0039 | F10: 0.0116 | G10: 0.0028 | H10: 0.033 | I10: 0.0284 | N10: agência lotérica | O10: 3 | P10: Tab3Serv | Q10: 3
B11: 1260000.01 | C11: 0.0845 | D11: 0.0039 | E11: 0.0039 | F11: 0.0117 | G11: 0.0028 | H11: 0.0335 | I11: 0.0287 | N11: serviços de manutenção e reparação de automóveis, caminhões, ônibus, outros veículos pesados, tratores, máquinas e equipamentos agrícolas | O11: 3 | P11: Tab3Serv | Q11: 3
B12: 1440000.01 | C12: 0.0903 | D12: 0.0042 | E12: 0.0042 | F12: 0.0125 | G12: 0.003 | H12: 0.0357 | I12: 0.0307 | N12: serviços de instalação, manutenção e reparação de acessórios para veículos automotores | O12: 3 | P12: Tab3Serv | Q12: 3
B13: 1620000.01 | C13: 0.0912 | D13: 0.0043 | E13: 0.0043 | F13: 0.0126 | G13: 0.003 | H13: 0.036 | I13: 0.031 | N13: serviços de manutenção e reparação de motocicletas, motonetas e bicicletas | O13: 3 | P13: Tab3Serv | Q13: 3
B14: 1800000.01 | C14: 0.0995 | D14: 0.0046 | E14: 0.0046 | F14: 0.0138 | G14: 0.0033 | H14: 0.0394 | I14: 0.0338 | N14: serviços de instalação, manutenção e reparação de máquinas de escritório e de informática | O14: 3 | P14: Tab3Serv | Q14: 3
B15: 1980000.01 | C15: 0.1004 | D15: 0.0046 | E15: 0.0046 | F15: 0.0139 | G15: 0.0033 | H15: 0.0399 | I15: 0.0341 | N15: serviços de reparos hidráulicos, elétricos, pintura e carpintaria em residências ou estabelecimentos civis ou empresariais, bem como manutenção e reparação de aparelhos eletrodomésticos | O15: 3 | P15: Tab3Serv | Q15: 3
B16: 2160000.01 | C16: 0.1013 | D16: 0.0047 | E16: 0.0047 | F16: 0.014 | G16: 0.0033 | H16: 0.0401 | I16: 0.0345 | N16: serviços de instalação e manutenção de aparelhos e sistemas de ar condicionado, refrigeração, ventilação, aquecimento e tratamento de ar em ambientes controlados | O16: 3 | P16: Tab3Serv | Q16: 3
B17: 2340000.01 | C17: 0.1023 | D17: 0.0047 | E17: 0.0047 | F17: 0.0142 | G17: 0.0034 | H17: 0.0405 | I17: 0.0348 | N17: veículos de comunicação, de radiodifusão sonora e de sons e imagens, e mídia externa | O17: 3 | P17: Tab3Serv | Q17: 3
B18: 2520000.01 | C18: 0.1032 | D18: 0.0048 | E18: 0.0048 | F18: 0.0143 | G18: 0.0034 | H18: 0.0408 | I18: 0.0351 | N18: construção de imóveis e obras de engenharia em geral, inclusive sob a forma de subempreitada | O18: 4 | P18: Tab4Serv | Q18: 4
B19: 2700000.01 | C19: 0.1123 | D19: 0.0052 | E19: 0.0052 | F19: 0.0156 | G19: 0.0037 | H19: 0.0444 | I19: 0.0382 | N19: transporte municipal de passageiros | O19: 4 | P19: Tab4Serv | Q19: 4
B20: 2880000.01 | C20: 0.1132 | D20: 0.0052 | E20: 0.0052 | F20: 0.0157 | G20: 0.0037 | H20: 0.0449 | I20: 0.0385 | N20: empresas montadoras de estandes para feiras | O20: 5 | P20: =IF(CalcR<0.3,"Tab5030",IF(CalcR>=0.4,"Tab5040",IF(CalcR<0.35,"Tab5030035","Tab5035040"))) -> Tab5040 | Q20: 5
B21: 3060000.01 | C21: 0.1142 | D21: 0.0053 | E21: 0.0053 | F21: 0.0158 | G21: 0.0038 | H21: 0.0452 | I21: 0.0388 | N21: escolas livres, de línguas estrangeiras, artes, cursos técnicos e gerenciais | O21: 3 | P21: Tab3Serv | Q21: 3
B22: 3240000.01 | C22: 0.1151 | D22: 0.0053 | E22: 0.0053 | F22: 0.016 | G22: 0.0038 | H22: 0.0456 | I22: 0.0391 | N22: produção cultural e artística | O22: 4 | P22: Tab4Serv | Q22: 4
B23: 3420000.01 | C23: 0.1161 | D23: 0.0054 | E23: 0.0054 | F23: 0.016 | G23: 0.0038 | H23: 0.046 | I23: 0.0395 | N23: produção cinematográfica e de artes cênicas | O23: 3 | P23: Tab3Serv | Q23: 3
N24: cumulativamente administração e locação de imóveis de terceiros | O24: 5 | P24: =IF(CalcR<0.3,"Tab5030",IF(CalcR>=0.4,"Tab5040",IF(CalcR<0.35,"Tab5030035","Tab5035040"))) -> Tab5040 | Q24: 4
B25: DE / ATÉ | C25: ALÍQUOTA | D25: IRPJ | E25: CSLL | F25: COFINS | G25: PIS/PASEP | H25: INSS | I25: ICMS | J25: IPI | N25: academias de dança, de capoeira, de ioga e de artes marciais | O25: 5 | P25: Tab5040 | Q25: 4
B26: =B4 -> 0 | C26: =SUM(D26:J26) -> 0.0325 | D26: 0 | E26: 0 | F26: 0 | G26: 0 | H26: 0.0275 | J26: 0.005 | N26: academias de atividades físicas, desportivas, de natação e escolas de esportes | O26: 5 | P26: Tab5040 | Q26: 4
B27: 180000.01 | C27: =SUM(D27:J27) -> 0.0411 | D27: 0 | E27: 0 | F27: 0.0086 | G27: 0 | H27: 0.0275 | J27: 0.005 | N27: elaboração de programas de computadores, inclusive jogos eletrônicos, desde que desenvolvidos em estabelecimento do optante | O27: 5 | P27: Tab5040 | Q27: 4
B28: 360000.01 | C28: 0.0501 | D28: 0.0027 | E28: 0.0031 | F28: 0.0095 | G28: 0.0023 | H28: 0.0275 | J28: 0.005 | N28: licenciamento ou cessão de direito de uso de programas de computação | O28: 5 | P28: Tab5040 | Q28: 4
B29: 540000.01 | C29: 0.0804 | D29: 0.0035 | E29: 0.0035 | F29: 0.0104 | G29: 0.0025 | H29: 0.0299 | I29: 0.0256 | J29: 0.005 | N29: planejamento, confecção, manutenção e atualização de páginas eletrônicas, desde que realizados em estabelecimento do optante | O29: 5 | P29: Tab5040 | Q29: 4
B30: 720000.01 | C30: 0.081 | D30: 0.0035 | E30: 0.0035 | F30: 0.0105 | G30: 0.0025 | H30: 0.0302 | I30: 0.0258 | J30: 0.005 | N30: escritórios de serviços contábeis | O30: 3 | P30: Tab3Serv | Q30: 3
B31: 900000.01 | C31: 0.0878 | D31: 0.0038 | E31: 0.0038 | F31: 0.0115 | G31: 0.0027 | H31: 0.0328 | I31: 0.0282 | J31: 0.005 | N31: serviço de vigilância, limpeza ou conservação | O31: 5 | P31: Tab5040 | Q31: 4
B32: 1080000.01 | C32: 0.0886 | D32: 0.0039 | E32: 0.0039 | F32: 0.0116 | G32: 0.0028 | H32: 0.033 | I32: 0.0284 | J32: 0.005 | N32: Transporte intermunicipal e interestadual de carga | O32: 6 | P32: Tab5040 | Q32: 2
B33: 1260000.01 | C33: 0.0895 | D33: 0.0039 | E33: 0.0039 | F33: 0.0117 | G33: 0.0028 | H33: 0.0335 | I33: 0.0287 | J33: 0.005 | N33: Outros Serviços - Não Vetados | O33: 3 | P33: Tab3Serv | Q33: 3
B34: 1440000.01 | C34: 0.0953 | D34: 0.0042 | E34: 0.0042 | F34: 0.0125 | G34: 0.003 | H34: 0.0357 | I34: 0.0307 | J34: 0.005 | N34: Ramo Vetado ao SuperSimples | O34: Vetado | P34: TabPres | Q34: 4
B35: 1620000.01 | C35: 0.0962 | D35: 0.0042 | E35: 0.0042 | F35: 0.0126 | G35: 0.003 | H35: 0.0362 | I35: 0.031 | J35: 0.005
B36: 1800000.01 | C36: 0.1045 | D36: 0.0046 | E36: 0.0046 | F36: 0.0138 | G36: 0.0033 | H36: 0.0394 | I36: 0.0338 | J36: 0.005 | N36: =IF(AND(Eind="V",Ecom="V"),"V","F") -> F
B37: 1980000.01 | C37: 0.1054 | D37: 0.0046 | E37: 0.0046 | F37: 0.0139 | G37: 0.0033 | H37: 0.0399 | I37: 0.0341 | J37: 0.005 | N37: =IF(ISERROR(MATCH(5,Atividades.Anexo,0)),IF(ISERROR(MATCH(6,Atividades.Anexo,0)),"F","V"),"V") -> F
B38: 2160000.01 | C38: 0.1063 | D38: 0.0047 | E38: 0.0047 | F38: 0.014 | G38: 0.0033 | H38: 0.0401 | I38: 0.0345 | J38: 0.005 | N38: =IF(ISERROR(MATCH(4,Atividades.Anexo,0)),"F","V") -> F
B39: 2340000.01 | C39: 0.1073 | D39: 0.0047 | E39: 0.0047 | F39: 0.0142 | G39: 0.0034 | H39: 0.0405 | I39: 0.0348 | J39: 0.005 | N39: =IF(ISERROR(MATCH(3,Atividades.Anexo,0)),"F","V") -> F
B40: 2520000.01 | C40: 0.1082 | D40: 0.0048 | E40: 0.0048 | F40: 0.0143 | G40: 0.0034 | H40: 0.0408 | I40: 0.0351 | J40: 0.005 | N40: =IF(ISERROR(MATCH(2,Atividades.Anexo,0)),"F","V") -> F
B41: 2700000.01 | C41: 0.1173 | D41: 0.0052 | E41: 0.0052 | F41: 0.0156 | G41: 0.0037 | H41: 0.0444 | I41: 0.0382 | J41: 0.005 | N41: =IF(ISERROR(MATCH(1,Atividades.Anexo,0)),"F","V") -> V
B42: 2880000.01 | C42: 0.1182 | D42: 0.0052 | E42: 0.0052 | F42: 0.0157 | G42: 0.0037 | H42: 0.0449 | I42: 0.0385 | J42: 0.005 | N42: =IF(Tributos!C45="X","V","F") -> F
B43: 3060000.01 | C43: 0.1192 | D43: 0.0053 | E43: 0.0053 | F43: 0.0158 | G43: 0.0038 | H43: 0.0452 | I43: 0.0388 | J43: 0.005 | N43: =IF(Tributos!C46="X","V","F") -> F
B44: 3240000.01 | C44: 0.1201 | D44: 0.0053 | E44: 0.0053 | F44: 0.016 | G44: 0.0038 | H44: 0.0456 | I44: 0.0391 | J44: 0.005 | N44: =IF(Tributos!C47="X","V","F") -> F
B45: 3420000.01 | C45: 0.1211 | D45: 0.0054 | E45: 0.0054 | F45: 0.016 | G45: 0.0038 | H45: 0.046 | I45: 0.0395 | J45: 0.005 | M45: R | N45: =((Folha+Encargos)*12)/Rbruta -> 18.89498807
N46: =IF(ISERROR(MATCH("vetado",Atividades.Anexo,0)),"F","V") -> F
B47: DE / ATÉ | C47: ALÍQUOTA | D47: IRPJ | E47: CSLL | F47: COFINS | G47: PIS/PASEP | H47: INSS | N47: =IF(Tributos!C44="X","V","F") -> F
B48: =B4 -> 0 | C48: =SUM(D48:H48) -> 0.04 | D48: 0 | E48: 0.0039 | F48: 0.0119 | G48: 0 | H48: 0.0242
B49: =B5 -> 180000.01 | C49: =SUM(D49:H49) -> 0.0542 | D49: 0 | E49: 0.0054 | F49: 0.0162 | G49: 0 | H49: 0.0326 | N49: CMV | O49: =CDT -> 12500
B50: 360000.01 | C50: 0.0676 | D50: 0.0048 | E50: 0.0043 | F50: 0.0143 | G50: 0.0035 | H50: 0.0407 | N50: Custos Fixos | O50: =CustoFixo!D69 -> 660971.3067
B51: 540000.01 | C51: 0.0747 | D51: 0.0053 | E51: 0.0053 | F51: 0.0156 | G51: 0.0038 | H51: 0.0447 | N51: Investimentos
B52: 720000.01 | C52: 0.0753 | D52: 0.0053 | E52: 0.0052 | F52: 0.0158 | G52: 0.0038 | H52: 0.0452 | N52: Despesas Totais | O52: =SUM(O49:O51) -> 673471.3067
B53: 900000.01 | C53: 0.0819 | D53: 0.0057 | E53: 0.0057 | F53: 0.0173 | G53: 0.004 | H53: 0.0492
B54: 1080000.01 | C54: 0.0828 | D54: 0.0059 | E54: 0.0056 | F54: 0.0174 | G54: 0.0042 | H54: 0.0497
B55: 1260000.01 | C55: 0.0837 | D55: 0.0059 | E55: 0.0057 | F55: 0.0176 | G55: 0.0042 | H55: 0.0503
B56: 1440000.01 | C56: 0.0894 | D56: 0.0063 | E56: 0.0061 | F56: 0.0188 | G56: 0.0045 | H56: 0.0537 | N56: Encargos | O56: =IF(Tributos!C45="X",Tributos!E38,0)+IF(Tributos!C46="X",Tributos!G38,0)+IF(Tributos!C47="X",Tributos!I38,0) -> 0
B57: 1620000.01 | C57: 0.0903 | D57: 0.0063 | E57: 0.0064 | F57: 0.0189 | G57: 0.0045 | H57: 0.0542
B58: 1800000.01 | C58: 0.0993 | D58: 0.0069 | E58: 0.0069 | F58: 0.0207 | G58: 0.005 | H58: 0.0598
B59: 1980000.01 | C59: 0.1006 | D59: 0.0069 | E59: 0.0069 | F59: 0.0209 | G59: 0.005 | H59: 0.0609
B60: 2160000.01 | C60: 0.102 | D60: 0.0071 | E60: 0.007 | F60: 0.021 | G60: 0.005 | H60: 0.0619
B61: 2340000.01 | C61: 0.1035 | D61: 0.0071 | E61: 0.007 | F61: 0.0213 | G61: 0.0051 | H61: 0.063
B62: 2520000.01 | C62: 0.1048 | D62: 0.0072 | E62: 0.007 | F62: 0.0215 | G62: 0.0051 | H62: 0.064 | N62: EI
B63: 2700000.01 | C63: 0.1185 | D63: 0.0078 | E63: 0.0076 | F63: 0.0234 | G63: 0.0056 | H63: 0.0741
B64: 2880000.01 | C64: 0.1198 | D64: 0.0078 | E64: 0.0078 | F64: 0.0236 | G64: 0.0056 | H64: 0.075 | N64: COM | O64: 28.25
B65: 3060000.01 | C65: 0.1213 | D65: 0.008 | E65: 0.0079 | F65: 0.0237 | G65: 0.0057 | H65: 0.076 | N65: IND | O65: 28.25
B66: 3240000.01 | C66: 0.1227 | D66: 0.008 | E66: 0.0079 | F66: 0.024 | G66: 0.0057 | H66: 0.0771 | N66: SERV | O66: 32.25
B67: 3420000.01 | C67: 0.1242 | D67: 0.0081 | E67: 0.0079 | F67: 0.0242 | G67: 0.0057 | H67: 0.0783 | N67: COMBINADO | O67: 33.25
B70: DE / ATÉ | C70: ALÍQUOTA | D70: IRPJ | E70: CSLL | F70: COFINS | G70: PIS/PASEP | H70: INSS | I70: ISS | N70: Limite EI | O70: 60000
B71: =B4 -> 0 | C71: =SUM(D71:I71) -> 0.06 | D71: 0 | E71: 0 | F71: 0 | G71: 0 | H71: 0.04 | I71: 0.02 | N71: Limite Simples | O71: 3600000
B72: 180000.01 | C72: =SUM(D72:I72) -> 0.0821 | D72: 0 | E72: 0 | F72: 0.0142 | G72: 0 | H72: 0.04 | I72: 0.0279
B73: 360000.01 | C73: 0.1026 | D73: 0.0048 | E73: 0.0043 | F73: 0.0143 | G73: 0.0035 | H73: 0.0407 | I73: 0.035
B74: 540000.01 | C74: 0.1131 | D74: 0.0053 | E74: 0.0053 | F74: 0.0156 | G74: 0.0038 | H74: 0.0447 | I74: 0.0384
B75: 720000.01 | C75: 0.114 | D75: 0.0053 | E75: 0.0052 | F75: 0.0158 | G75: 0.0038 | H75: 0.0452 | I75: 0.0387
B76: 900000.01 | C76: 0.1242 | D76: 0.0057 | E76: 0.0057 | F76: 0.0173 | G76: 0.004 | H76: 0.0492 | I76: 0.0423
B77: 1080000.01 | C77: 0.1254 | D77: 0.0059 | E77: 0.0056 | F77: 0.0174 | G77: 0.0042 | H77: 0.0497 | I77: 0.0426
B78: 1260000.01 | C78: 0.1268 | D78: 0.0059 | E78: 0.0057 | F78: 0.0176 | G78: 0.0042 | H78: 0.0503 | I78: 0.0431
B79: 1440000.01 | C79: 0.1355 | D79: 0.0063 | E79: 0.0061 | F79: 0.0188 | G79: 0.0045 | H79: 0.0537 | I79: 0.0461 | N79: Ocupação | O79: Descrição de Objeto | P79: CNAE | Q79: Descrição da Subclasse | R79: CN | S79: CLASS
B80: 1620000.01 | C80: 0.1368 | D80: 0.0063 | E80: 0.0064 | F80: 0.0189 | G80: 0.0045 | H80: 0.0542 | I80: 0.0465 | N80: Acabador de calçados | O80: Serviços de costura, pesponto e outros acabamentos em calçados de couro - Acabador de calçados | P80: 1531-9/02 | Q80: Acabamento de calçados de couro sob contrato | R80: =VALUE(LEFT(P80,2)) -> 15 | S80: =IF(R80<35,"IND",IF(AND(R80>=45,R80<=47),"COM","SERV")) -> IND
B81: 1800000.01 | C81: 0.1493 | D81: 0.0069 | E81: 0.0069 | F81: 0.0207 | G81: 0.005 | H81: 0.0598 | I81: 0.05 | N81: Açougueiro | O81: Comércio varejista de carnes - Acougueiro | P81: 4722-9/01 | Q81: Comércio varejista de carnes - açougues | R81: =VALUE(LEFT(P81,2)) -> 47 | S81: =IF(R81<35,"IND",IF(AND(R81>=45,R81<=47),"COM","SERV")) -> COM
B82: 1980000.01 | C82: 0.1506 | D82: 0.0069 | E82: 0.0069 | F82: 0.0209 | G82: 0.005 | H82: 0.0609 | I82: 0.05 | N82: Adestrador de animais | O82: Serviços de adestramento de animais - Adestrador de animais. | P82: 9609-2/03 | Q82: Alojamento, higiene e embelezamento de animais | R82: 96 | S82: SERV
B83: 2160000.01 | C83: 0.152 | D83: 0.0071 | E83: 0.007 | F83: 0.021 | G83: 0.005 | H83: 0.0619 | I83: 0.05 | N83: Adestrador de cães de guarda | O83: Serviços de adestramento de cães de guarda - Adestrador de cães de guarda | P83: 8011-1/02 | Q83: Serviços de adestramento de cães de guarda | R83: 80 | S83: SERV
B84: 2340000.01 | C84: 0.1535 | D84: 0.0071 | E84: 0.007 | F84: 0.0213 | G84: 0.0051 | H84: 0.063 | I84: 0.05 | N84: Agente de correio franqueado | O84: Serviços de Atividades de franqueadas e permissionárias do Correio Nacional - Agente de correio franqueado | P84: 5310-5/02 | Q84: Atividades de franqueadas e permissionárias do Correio Nacional | R84: 53 | S84: SERV
B85: 2520000.01 | C85: 0.1548 | D85: 0.0072 | E85: 0.007 | F85: 0.0215 | G85: 0.0051 | H85: 0.064 | I85: 0.05 | N85: Agente de viagens | O85: Serviço de organização e venda de viagens, pacotes turísticos e excursões - Agente de viagens | P85: 7911-2/00 | Q85: Agências de viagens | R85: 79 | S85: SERV
B86: 2700000.01 | C86: 0.1685 | D86: 0.0078 | E86: 0.0076 | F86: 0.0234 | G86: 0.0056 | H86: 0.0741 | I86: 0.05 | N86: Agente funerário | O86: Serviços de funerárias - Agente funerário | P86: 9603-3/04 | Q86: Serviços de funerárias | R86: 96 | S86: SERV
B87: 2880000.01 | C87: 0.1698 | D87: 0.0078 | E87: 0.0078 | F87: 0.0236 | G87: 0.0056 | H87: 0.075 | I87: 0.05 | N87: Agente matrimonial | O87: Serviços de agenciamento matrimonial - Agente matrimonial | P87: 9609-2/02 | Q87: Agências matrimoniais | R87: 96 | S87: SERV
B88: 3060000.01 | C88: 0.1713 | D88: 0.008 | E88: 0.0079 | F88: 0.0237 | G88: 0.0057 | H88: 0.076 | I88: 0.05 | N88: Alfaiate | O88: Confecção, sob medida, de peças do vestuário - Alfaiate | P88: 1412-6/02 | Q88: Confecção, sob medida, de peças do vestuário, exceto roupas íntimas | R88: 14 | S88: IND
B89: 3240000.01 | C89: 0.1727 | D89: 0.008 | E89: 0.0079 | F89: 0.024 | G89: 0.0057 | H89: 0.0771 | I89: 0.05 | N89: Alinhador de pneus | O89: Serviços de alinhamento de pneus de veículos automotores - Alinhador de pneus. | P89: 4520-0/04 | Q89: Serviços de alinhamento e balanceamento de veículos automotores | R89: 45 | S89: COM
B90: 3420000.01 | C90: 0.1742 | D90: 0.0081 | E90: 0.0079 | F90: 0.0242 | G90: 0.0057 | H90: 0.0783 | I90: 0.05 | N90: Amolador de artigos de cutelaria | O90: Serviços de reparação e manutenção de artigos de cutelaria - Amolador de artigos de cutelaria. | P90: 9529-1/99 | Q90: Reparação e manutenção de outros objetos e equipamentos pessoais e domésticos não especificados anteriormente | R90: 95 | S90: SERV
N91: Animador de festas | O91: Serviços de animação e recreação em festas e eventos - Animador de festas. | P91: 9329-8/99 | Q91: Outras atividades de recreação e lazer não especificadas anteriormente | R91: 93 | S91: SERV
B92: DE / ATÉ | C92: ALÍQUOTA | D92: IRPJ | E92: CSLL | F92: COFINS | G92: PIS/PASEP | H92: INSS | I92: ISS | N92: Antiquário | O92: Comércio varejista de antigüidades - Antiquário | P92: 4785-7/01 | Q92: Comércio varejista de antigüidades | R92: 47 | S92: COM
B93: =B4 -> 0 | C93: 0.045 | D93: 0 | E93: 0.0122 | F93: 0.0128 | G93: 0 | H93: 0 | I93: 0.02 | N93: Aplicador agrícola | O93: Serviço de pulverização de lavouras e controle de pragas agrícolas - Aplicador agrícola | P93: 0161-0/01 | Q93: Serviço de pulverização e controle de pragas agrícolas | R93: 1 | S93: IND
B94: 180000.01 | C94: 0.0654 | D94: 0 | E94: 0.0184 | F94: 0.0191 | G94: 0 | H94: 0 | I94: 0.0279 | N94: Apurador, coletor e fornecedor de recortes de matérias publicadas em jornais e revistas | O94: Serviço de levantamento de informações e fornecimento de sinopses das principais notícias na mídia impressa e/ou eletrônica - Apurador, coletor e fornecedor de recortes de matérias publicadas em jornais e revistas | P94: 6399-2/00 | Q94: Outras atividades de prestação de serviços de informação não especificadas anteriormente | R94: 63 | S94: SERV
B95: 360000.01 | C95: 0.077 | D95: 0.0016 | E95: 0.0185 | F95: 0.0195 | G95: 0.0024 | H95: 0 | I95: 0.035 | N95: Armador de ferragens na construção civil | O95: Fabricação de armações metálicas para a construção civil - Armador de ferragens na construção civil | P95: 2599-3/01 | Q95: Serviços de confecção de armações metálicas para a construção | R95: 25 | S95: IND
B96: 540000.01 | C96: 0.0849 | D96: 0.0052 | E96: 0.0187 | F96: 0.0199 | G96: 0.0027 | H96: 0 | I96: 0.0384 | N96: Arquivista de documentos | O96: Serviços de arquivamento e de organização de documentos - Arquivista de documentos | P96: 8211-3/00 | Q96: Serviços combinados de escritório e apoio administrativo | R96: 82 | S96: SERV
B97: 720000.01 | C97: 0.0897 | D97: 0.0089 | E97: 0.0189 | F97: 0.0203 | G97: 0.0029 | H97: 0 | I97: 0.0387 | N97: Artesão de bijuterias | O97: Fabricação de bijuterias e artefatos semelhantes - Artesão de bijuterias | P97: 3212-4/00 | Q97: Fabricação de bijuterias e artefatos semelhantes | R97: 32 | S97: IND
B98: 900000.01 | C98: 0.0978 | D98: 0.0125 | E98: 0.0191 | F98: 0.0207 | G98: 0.0032 | H98: 0 | I98: 0.0423 | N98: Artesão em borracha | O98: Fabricação de produtos artesanais em borracha - Artesão em borracha | P98: 2219-6/00 | Q98: Fabricação De Artefatos De Borracha Não Especificados Anteriormente | R98: 22 | S98: IND
B99: 1080000.01 | C99: 0.1026 | D99: 0.0162 | E99: 0.0193 | F99: 0.0211 | G99: 0.0034 | H99: 0 | I99: 0.0426 | N99: Artesão em cerâmica | O99: Fabricação de produtos artesanais cerâmicos - Artesão em cerâmica | P99: 2349-4/99 | Q99: Fabricação de produtos cerâmicos não-refratários não especificados anteriormente | R99: 23 | S99: IND
B100: 1260000.01 | C100: 0.1076 | D100: 0.02 | E100: 0.0195 | F100: 0.0215 | G100: 0.0035 | H100: 0 | I100: 0.0431 | N100: Artesão em cortiça, bambu e afins | O100: Fabricação de produtos artesanais de cortiça, bambu, palha, vime e outros materiais trançados - Artesão em cortiça, bambu e afins | P100: 1629-3/02 | Q100: Fabricação de artefatos diversos de cortiça, bambu, palha, vime e outros materiais trançados, exceto móveis | R100: 16 | S100: IND
B101: 1440000.01 | C101: 0.1151 | D101: 0.0237 | E101: 0.0197 | F101: 0.0219 | G101: 0.0037 | H101: 0 | I101: 0.0461 | N101: Artesão em couro | O101: Fabricação de produtos artesanais em couro - Artesão em couro | P101: 1529-7/00 | Q101: Fabricação de artefatos de couro não especificados anteriormente | R101: 15 | S101: IND
B102: 1620000.01 | C102: 0.12 | D102: 0.0274 | E102: 0.02 | F102: 0.0223 | G102: 0.0038 | H102: 0 | I102: 0.0465 | N102: Artesão em gesso | O102: Fabricação de produtos artesanais em gesso - Artesão em gesso | P102: 2330-3/99 | Q102: Fabricação De Outros Artefatos E Produtos De Concreto, Cimento, Fibrocimento, Gesso E Materiais Semelhantes | R102: 23 | S102: IND
B103: 1800000.01 | C103: 0.128 | D103: 0.0312 | E103: 0.0201 | F103: 0.0227 | G103: 0.004 | H103: 0 | I103: 0.05 | N103: Artesão em louças, vidro e cristal | O103: Serviços de decoração, lapidação, gravação, vitrificação e outros trabalhos em louça, vidro e cristal - Artesão em louças, vidro e cristal | P103: 2399-1/01 | Q103: Decoração, lapidação, gravação, vitrificação e outros trabalhos em cerâmica, louça, vidro e cristal | R103: 23 | S103: IND
B104: 1980000.01 | C104: 0.1325 | D104: 0.0349 | E104: 0.0203 | F104: 0.0231 | G104: 0.0042 | H104: 0 | I104: 0.05 | N104: Artesão em madeira | O104: Fabricação de produtos artesanais em madeira - Artesão em madeira | P104: 1629-3/01 | Q104: Fabricação de artefatos diversos de madeira, exceto móveis | R104: 16 | S104: IND
B105: 2160000.01 | C105: 0.137 | D105: 0.0386 | E105: 0.0205 | F105: 0.0235 | G105: 0.0044 | H105: 0 | I105: 0.05 | N105: Artesão em mármore | O105: Fabricação de produtos artesanais em mármore - Artesão em mármore | P105: 2391-5/03 | Q105: Aparelhamento De Placas E Execução De Trabalhos Em Mármore, Granito, Ardósia E Outras Pedras | R105: 23 | S105: IND
B106: 2340000.01 | C106: 0.1415 | D106: 0.0423 | E106: 0.0207 | F106: 0.0239 | G106: 0.0046 | H106: 0 | I106: 0.05 | N106: Artesão em materiais diversos | O106: Fabricação de produtos artesanais em materiais diversos - Artesão em materiais diversos | P106: 3299-0/99 | Q106: Fabricação de produtos diversos não especificados anteriormente | R106: 32 | S106: IND
B107: 2520000.01 | C107: 0.146 | D107: 0.046 | E107: 0.021 | F107: 0.0243 | G107: 0.0047 | H107: 0 | I107: 0.05 | N107: Artesão em metais | O107: Fabricação de produtos artesanais em metal - Artesão em metais. - Artesão em metais | P107: 2599-3/99 | Q107: Fabricação De Outros Produtos De Metal Não Especificados Anteriormente | R107: 25 | S107: IND
B108: 2700000.01 | C108: 0.1505 | D108: 0.049 | E108: 0.0219 | F108: 0.0247 | G108: 0.0049 | H108: 0 | I108: 0.05 | N108: Artesão em metais preciosos | O108: Fabricação de produtos artesanais em metais preciosos - Artesão em metais preciosos | P108: 3211-6/02 | Q108: Fabricação de artefatos de joalheria e ourivesaria | R108: 32 | S108: IND
B109: 2880000.01 | C109: 0.155 | D109: 0.0521 | E109: 0.0227 | F109: 0.0251 | G109: 0.0051 | H109: 0 | I109: 0.05 | N109: Artesão em papel | O109: Fabricação de produtos artesanais em papel - Artesão em papel. | P109: 1749-4/00 | Q109: Fabricação de produtos de pastas celulósicas, papel, cartolina, papel-cartão e papelão ondulado não especificados anteriormente | R109: 17 | S109: IND
B110: 3060000.01 | C110: 0.1595 | D110: 0.0551 | E110: 0.0236 | F110: 0.0255 | G110: 0.0053 | H110: 0 | I110: 0.05 | N110: Artesão em plástico | O110: Fabricação de produtos artesanais em material plástico - Artesão em plástico. - Artesão em plástico | P110: 2229-3/99 | Q110: Fabricação De Artefatos De Material Plástico Para Outros Usos Não Especificados Anteriormente | R110: 22 | S110: IND
B111: 3240000.01 | C111: 0.164 | D111: 0.0581 | E111: 0.0245 | F111: 0.0259 | G111: 0.0055 | H111: 0 | I111: 0.05 | N111: Artesão em vidro | O111: Fabricação de produtos artesanais em vidro - Artesão em vidro | P111: 2319-2/00 | Q111: Fabricação De Artigos De Vidro | R111: 23 | S111: IND
B112: 3420000.01 | C112: 0.1685 | D112: 0.0612 | E112: 0.0253 | F112: 0.0263 | G112: 0.0057 | H112: 0 | I112: 0.05 | N112: Astrólogo | O112: Serviços de astrologia - Astrólogo. | P112: 9609-2/99 | Q112: Outras atividades de serviços pessoais não especificadas anteriormente | R112: 96 | S112: SERV
N113: Azulejista | O113: Serviços de colocação de azulejos - Azulejista. | P113: 4330-4/05 | Q113: Aplicação de revestimentos e de resinas em interiores e exteriores | R113: 43 | S113: SERV
B114: DE / ATÉ | C114: IRPJ, PIS/PASEP, COFINS E CSLL | D114: IRPJ | E114: CSLL | F114: COFINS | G114: PIS/PASEP | I114: ISS | J114: INCLUÍDO O ISS | K114: ICMS | L114: INCLUINDO ICMS | N114: Balanceador de pneus | O114: Serviços de balanceamento de pneus de veículos automotores - Balanceador de pneus. | P114: 4520-0/04 | Q114: Serviços de alinhamento e balanceamento de veículos automotores | R114: 45 | S114: COM
B115: =B4 -> 0 | C115: 0.04 | D115: 0 | E115: 0.0196 | F115: 0.0204 | G115: 0 | I115: 0.02 | J115: =C115+I115 -> 0.06 | K115: =I4 -> 0 | L115: =C115+K115 -> 0.04 | N115: Baleiro | O115: Comércio varejista de doces, balas, bombons, confeitos e semelhantes - Baleiro | P115: 4721-1/04 | Q115: Comércio varejista de doces, balas, bombons e semelhantes | R115: 47 | S115: COM
B116: 180000.01 | C116: 0.0448 | D116: 0 | E116: 0.021952 | F116: 0.022848 | G116: 0 | I116: 0.0279 | J116: =C116+I116 -> 0.0727 | K116: =I5 -> 0 | L116: =C116+K116 -> 0.0448 | N116: Banhista de animais domésticos | O116: Serviços de banho em animais domésticos - Banhista de animais domésticos. | P116: 9609-2/03 | Q116: Alojamento, higiene e embelezamento de animais | R116: 96 | S116: SERV
B117: 360000.01 | C117: 0.0496 | D117: 0.02232 | E117: 0.011408 | F117: 0.013392 | G117: 0.00248 | I117: 0.035 | J117: 0.0846 | K117: 0 | L117: 0.0496 | N117: Barbeiro | O117: Serviços de barbearia - Barbeiro. | P117: 9602-5/01 | Q117: Cabeleireiros | R117: 96 | S117: SERV
B118: 540000.01 | C118: 0.0544 | D118: 0.02448 | E118: 0.012512 | F118: 0.014688 | G118: 0.00272 | I118: 0.0384 | J118: 0.0928 | K118: 0.0256 | L118: 0.08 | N118: Barqueiro | O118: Serviços de transportes aquaviários por meio de barca - Barqueiro. | P118: 5099-8/99 | Q118: Outros transportes aquaviários não especificados anteriormente | R118: 50 | S118: SERV
B119: 720000.01 | C119: 0.0592 | D119: 0.02664 | E119: 0.013616 | F119: 0.015984 | G119: 0.00296 | I119: 0.0387 | J119: 0.0979 | K119: 0.0258 | L119: 0.085 | N119: Barraqueiro | O119: Comércio varejista de mercadorias em geral com predominância de produtos alimentícios - Barraqueiro. | P119: 4712-1/00 | Q119: Comércio varejista de mercadorias em geral, com predominância de produtos alimentícios - minimercados, mercearias e armazéns | R119: 47 | S119: COM
B120: 900000.01 | C120: 0.064 | D120: 0.0288 | E120: 0.01472 | F120: 0.01728 | G120: 0.0032 | I120: 0.0423 | J120: 0.1063 | K120: 0.0282 | L120: 0.0922 | N120: Beneficiador(a) de Castanha | O120: FABRICAÇÃO DE CONSERVAS DE FRUTAS | P120: 1031-7/00 | Q120: beneficiamento da castanha-de-caju e castanha-do-pará | R120: 10 | S120: IND
B121: 1080000.01 | C121: 0.0688 | D121: 0.03096 | E121: 0.015824 | F121: 0.018576 | G121: 0.00344 | I121: 0.0426 | J121: 0.1114 | K121: 0.0284 | L121: 0.0972 | N121: Comerciante de produtos de higiene pessoal | O121: COMÉRCIO VAREJISTA DE COSMÉTICOS, PRODUTOS DE PERFUMARIA E DE HIGIENE PESSOAL | P121: 4772-5/00 | Q121: comércio varejista de cosméticos, produtos de perfumaria, de toucador e de higiene pessoal | R121: 47 | S121: COM
B122: 1260000.01 | C122: 0.0736 | D122: 0.03312 | E122: 0.016928 | F122: 0.019872 | G122: 0.00368 | I122: 0.0431 | J122: 0.1167 | K122: 0.0287 | L122: 0.1023 | N122: Fabricante de amendoim e castanha de caju torrados e salgados | O122: FABRICAÇÃO DE CONSERVAS DE FRUTAS | P122: 1031-7/00 | Q122: beneficiamento da castanha-de-caju e castanha-do-pará | R122: 10 | S122: IND
B123: 1440000.01 | C123: 0.0784 | D123: 0.03528 | E123: 0.018032 | F123: 0.021168 | G123: 0.00392 | I123: 0.0461 | J123: 0.1245 | K123: 0.0307 | L123: 0.1091 | N123: Fabricante de polpa de frutas | O123: FABRICAÇÃO DE CONSERVAS DE FRUTAS | P123: 1031-7/00 | Q123: fabricação de polpas de frutas | R123: 10 | S123: IND
B124: 1620000.01 | C124: 0.0832 | D124: 0.03744 | E124: 0.019136 | F124: 0.022464 | G124: 0.00416 | I124: 0.0465 | J124: 0.1297 | K124: 0.031 | L124: 0.1142 | N124: Fabricante de sucos concentrados de frutas, hortaliças e legumes | O124: FABRICAÇÃO DE SUCOS DE FRUTAS, HORTALIÇAS E LEGUMES | P124: 1033-3/01 | Q124: fabricação de sucos concentrados de frutas, congelados ou não (sucos parcialmente desidratados, apresentando, no mínimo, concentração equivalente ao dobro da sua concentração natural, em grau Brix) | R124: 10 | S124: IND
B125: 1800000.01 | C125: 0.088 | D125: 0.0396 | E125: 0.02024 | F125: 0.02376 | G125: 0.0044 | I125: 0.05 | J125: 0.138 | K125: 0.0338 | L125: 0.1218 | N125: Técnico(a) de sonorização e iluminação | O125: ARTES CÊNICAS, ESPETÁCULOS E ATIVIDADES COMPLEMENTARES | P125: 9001-9/06 | Q125: atividades de sonorização e iluminação de salas de teatro, de música e de outros espaços dedicados a atividades artísticas e culturais | R125: =VALUE(LEFT(P125,2)) -> 90 | S125: =IF(R125<35,"IND",IF(AND(R125>=45,R125<=47),"COM","SERV")) -> SERV
B126: 1980000.01 | C126: 0.0928 | D126: 0.04176 | E126: 0.021344 | F126: 0.025056 | G126: 0.00464 | I126: 0.05 | J126: 0.1428 | K126: 0.0341 | L126: 0.1269 | N126: Correspondentes de instituições financeiras | O126: ATIVIDADES AUXILIARES DOS SERVIÇOS FINANCEIROS NÃO ESPECIFICADAS ANTERIORMENTE | P126: 6619-3/02 | Q126: atividades de recebimento de depósitos e pagamentos de títulos sob contrato de instituições financeiras | R126: =VALUE(LEFT(P126,2)) -> 66 | S126: =IF(R126<35,"IND",IF(AND(R126>=45,R126<=47),"COM","SERV")) -> SERV
B127: 2160000.01 | C127: 0.0976 | D127: 0.04392 | E127: 0.022448 | F127: 0.026352 | G127: 0.00488 | I127: 0.05 | J127: 0.1476 | K127: 0.0345 | L127: 0.1321 | N127: Bikeboy (ciclista mensageiro) | O127: Serviços de entrega rápida com utilização de bicicleta - Bikeboy. | P127: 5320-2/02 | Q127: Serviços de entrega rápida | R127: 53 | S127: SERV
B128: 2340000.01 | C128: 0.1024 | D128: 0.04608 | E128: 0.023552 | F128: 0.027648 | G128: 0.00512 | I128: 0.05 | J128: 0.1524 | K128: 0.0348 | L128: 0.1372 | N128: Boiadeiro/vaqueiro | O128: Serviço de manejo de animais: condução e pastoreio - Boiadeiro/vaqueiro | P128: 0162-8/03 | Q128: Serviço de manejo de animais | R128: 1 | S128: IND
B129: 2520000.01 | C129: 0.1072 | D129: 0.04824 | E129: 0.024656 | F129: 0.028944 | G129: 0.00536 | I129: 0.05 | J129: 0.1572 | K129: 0.0351 | L129: 0.1423 | N129: Bolacheiro/Biscoiteiro | O129: Fabricação de biscoitos, bolachas, casquinhas para sorvetes e fôrmas para recheios - Bolacheiro/Biscoiteiro | P129: 1092-9/00 | Q129: Fabricação de biscoitos e bolachas | R129: 10 | S129: IND
B130: 2700000.01 | C130: 0.112 | D130: 0.0504 | E130: 0.02576 | F130: 0.03024 | G130: 0.0056 | I130: 0.05 | J130: 0.162 | K130: 0.0382 | L130: 0.1502 | N130: Bombeiro hidráulico | O130: Serviços de instalação e manutenção hidráulica - Bombeiro hidráulico. | P130: 4322-3/01 | Q130: Instalações hidráulicas, sanitárias e de gás | R130: 43 | S130: SERV
B131: 2880000.01 | C131: 0.1168 | D131: 0.05256 | E131: 0.026864 | F131: 0.031536 | G131: 0.00584 | I131: 0.05 | J131: 0.1668 | K131: 0.0385 | L131: 0.1553 | N131: Boneleiro (fabricante de bonés) | O131: Fabricação de bonés - Boneleiro (fabricante de bonés) | P131: 1414-2/00 | Q131: Fabricação de acessórios do vestuário, exceto para segurança e proteção | R131: 14 | S131: IND
B132: 3060000.01 | C132: 0.1216 | D132: 0.05472 | E132: 0.027968 | F132: 0.032832 | G132: 0.00608 | I132: 0.05 | J132: 0.1716 | K132: 0.0388 | L132: 0.1604 | N132: Bordadeira | O132: Confecção de bordados - Bordadeira. | P132: 1340-5/99 | Q132: Outros serviços de acabamento em fios, tecidos, artefatos têxteis e peças do vestuário | R132: 13 | S132: IND
B133: 3240000.01 | C133: 0.1264 | D133: 0.05688 | E133: 0.029072 | F133: 0.034128 | G133: 0.00632 | I133: 0.05 | J133: 0.1764 | K133: 0.0391 | L133: =C133+K133 -> 0.1655 | N133: Borracheiro | O133: Serviços de borracharia para veículos automotores | P133: 4520-0/06 | Q133: Serviços de borracharia para veículos automotores | R133: 45 | S133: COM
B134: 3420000.01 | C134: 0.135 | D134: 0.06075 | E134: 0.03105 | F134: 0.03645 | G134: 0.00675 | I134: 0.05 | J134: 0.185 | K134: 0.0395 | L134: 0.1745 | N134: Britador | O134: Serviço de britamento de pedras não associado à extração - Britador | P134: 2391-5/01 | Q134: Britamento de pedras, exceto associado à extração | R134: 23 | S134: IND
N135: Cabeleireiro | O135: Serviços de cabeleireiro - Cabeleireiro | P135: 9602-5/01 | Q135: Cabeleireiros | R135: 96 | S135: SERV
B136: DE / ATÉ | C136: IRPJ, PIS/PASEP, COFINS E CSLL | D136: IRPJ | E136: CSLL | F136: COFINS | G136: PIS/PASEP | I136: ISS | J136: INCLUÍDO O ISS | K136: ICMS | L136: INCLUINDO ICMS | N136: Caçador | O136: Serviço de caça convencional, captura de animais, mortos ou vivos, para alimentação, para obtenção de couros e peles, para pesquisa, para utilização em zoológicos ou como animais de estimação - Caçador | P136: 0170-9/00 | Q136: Caça e serviços relacionados | R136: 1 | S136: IND
B137: =B4 -> 0 | C137: 0.14 | D137: 0 | E137: 0.0686 | F137: 0.0714 | G137: 0 | I137: 0.02 | J137: =C137+I137 -> 0.16 | K137: =I26 -> 0 | L137: =C137+K137 -> 0.14 | N137: Calafetador | O137: Serviços de aplicação de revestimentos e de resinas em interiores e exteriores - Calafetador. | P137: 4330-4/05 | Q137: Aplicação de revestimentos e de resinas em interiores e exteriores | R137: 43 | S137: SERV
B138: 180000.01 | C138: 0.14 | D138: 0 | E138: 0.0686 | F138: 0.0714 | G138: 0 | I138: 0.0279 | J138: =C138+I138 -> 0.1679 | K138: =I27 -> 0 | L138: =C138+K138 -> 0.14 | N138: Caminhoneiro de cargas não perigosas | O138: Serviços de transporte rodoviário de cargas não perigosas - Caminhoneiro de cargas não perigosas | P138: 4930-2/02 | Q138: Transporte rodoviário de carga, exceto produtos perigosos e mudanças, intermunicipal, interestadual e internacional | R138: 49 | S138: SERV
B139: 360000.01 | C139: 0.14 | D139: 0.063 | E139: 0.0322 | F139: 0.0378 | G139: 0.007 | I139: 0.035 | J139: 0.175 | K139: 0 | L139: 0.14 | N139: Cantor/Músico independente | O139: Serviço de entretenimento musical - Cantor/músico independente | P139: 9001-9/02 | Q139: Produção musical | R139: 90 | S139: SERV
B140: 540000.01 | C140: 0.14 | D140: 0.063 | E140: 0.0322 | F140: 0.0378 | G140: 0.007 | I140: 0.0384 | J140: 0.1784 | K140: 0.0256 | L140: 0.1656 | N140: Capoteiro | O140: Serviços de recondicionamento de bancos de veículos automotores - Capoteiro. | P140: 4520-0/01 | Q140: Serviços de manutenção e reparação mecânica de veículos automotores | R140: 45 | S140: COM
B141: 720000.01 | C141: 0.14 | D141: 0.063 | E141: 0.0322 | F141: 0.0378 | G141: 0.007 | I141: 0.0387 | J141: 0.1787 | K141: 0.0258 | L141: 0.1658 | N141: Carpinteiro | O141: Fabricação de estruturas de madeira para telhados, portas, janelas, tetos, divisórias e armários embutidos de qualquer material para construção - Carpinteiro | P141: 1622-6/99 | Q141: Fabricação de outros artigos de carpintaria para construção | R141: 16 | S141: IND
B142: 900000.01 | C142: 0.14 | D142: 0.063 | E142: 0.0322 | F142: 0.0378 | G142: 0.007 | I142: 0.0423 | J142: 0.1823 | K142: 0.0282 | L142: 0.1682 | N142: Carpinteiro instalador | O142: Serviços em estruturas de madeira para telhados, instalação de portas, janelas, tetos, divisórias e armários embutidos de qualquer material - Carpinteiro instalador | P142: 4330-4/02 | Q142: Instalação de portas, janelas, tetos, divisórias e armários embutidos de qualquer material | R142: 43 | S142: SERV
B143: 1080000.01 | C143: 0.14 | D143: 0.063 | E143: 0.0322 | F143: 0.0378 | G143: 0.007 | I143: 0.0426 | J143: 0.1826 | K143: 0.0284 | L143: 0.1684 | N143: Carregador (veículos de transportes terrestres) | O143: Serviços de carga e descarga de produtos - Carregador (veículos de transportes terrestres) | P143: 5212-5/00 | Q143: Carga e descarga | R143: 52 | S143: SERV
B144: 1260000.01 | C144: 0.14 | D144: 0.063 | E144: 0.0322 | F144: 0.0378 | G144: 0.007 | I144: 0.0431 | J144: 0.1831 | K144: 0.0287 | L144: 0.1687 | N144: Carregador de malas | O144: Serviços de transporte de malas - Carregador de malas. | P144: 9609-2/99 | Q144: Outras atividades de serviços pessoais não especificadas anteriormente | R144: 96 | S144: SERV
B145: 1440000.01 | C145: 0.14 | D145: 0.063 | E145: 0.0322 | F145: 0.0378 | G145: 0.007 | I145: 0.0461 | J145: 0.1861 | K145: 0.0307 | L145: 0.1707 | N145: Carroceiro | O145: Serviços de transporte de carga em carroça - Carroceiro | P145: 3811-4/00 | Q145: Coleta de resíduos não-perigosos | R145: 38 | S145: SERV
B146: 1620000.01 | C146: 0.14 | D146: 0.063 | E146: 0.0322 | F146: 0.0378 | G146: 0.007 | I146: 0.0465 | J146: 0.1865 | K146: 0.031 | L146: 0.171 | N146: Cartazeiro | O146: Serviços de produção de cartazes - Cartazeiro. | P146: 8299-7/99 | Q146: Outras atividades de serviços prestados principalmente às empresas não especificadas anteriormente | R146: 82 | S146: SERV
B147: 1800000.01 | C147: 0.14 | D147: 0.063 | E147: 0.0322 | F147: 0.0378 | G147: 0.007 | I147: 0.05 | J147: 0.19 | K147: 0.0338 | L147: 0.1738 | N147: Chapeleiro | O147: Fabricação de chapéus - Chapeleiro | P147: 1414-2/00 | Q147: Fabricação de acessórios do vestuário, exceto para segurança e proteção | R147: 14 | S147: IND
B148: 1980000.01 | C148: 0.14 | D148: 0.063 | E148: 0.0322 | F148: 0.0378 | G148: 0.007 | I148: 0.05 | J148: 0.19 | K148: 0.0341 | L148: 0.1741 | N148: Chaveiro | O148: Serviço de execução de cópia de chaves, abertura de cofres e fechaduras - Chaveiros. | P148: 9529-1/02 | Q148: Chaveiros | R148: 95 | S148: SERV
B149: 2160000.01 | C149: 0.14 | D149: 0.063 | E149: 0.0322 | F149: 0.0378 | G149: 0.007 | I149: 0.05 | J149: 0.19 | K149: 0.0345 | L149: 0.1745 | N149: Chocolateiro | O149: Fabricação de pasta e derivados de cacau, bem como bombons, chocolates e farinhas à base de chocolate - Chocolateiro | P149: 1093-7/01 | Q149: Fabricação de produtos derivados do cacau e de chocolates | R149: 10 | S149: IND
B150: 2340000.01 | C150: 0.14 | D150: 0.063 | E150: 0.0322 | F150: 0.0378 | G150: 0.007 | I150: 0.05 | J150: 0.19 | K150: 0.0348 | L150: 0.1748 | N150: Churrasqueiro ambulante | O150: Comércio varejista ambulante de churrasco de carne - Churrasqueiro ambulante. | P150: 5612-1/00 | Q150: Serviços ambulantes de alimentação | R150: 56 | S150: SERV
B151: 2520000.01 | C151: 0.14 | D151: 0.063 | E151: 0.0322 | F151: 0.0378 | G151: 0.007 | I151: 0.05 | J151: 0.19 | K151: 0.0351 | L151: 0.1751 | N151: Churrasqueiro em domicílio | O151: Serviços de preparação e fornecimento de carnes para banquetes e recepções - Churrasqueiro. | P151: 5620-1/02 | Q151: Serviços de alimentação para eventos e recepções - bufê | R151: 56 | S151: SERV
B152: 2700000.01 | C152: 0.14 | D152: 0.063 | E152: 0.0322 | F152: 0.0378 | G152: 0.007 | I152: 0.05 | J152: 0.19 | K152: 0.0382 | L152: 0.1782 | N152: Clicherista | O152: Serviços de pré-impressão gráfica - Clicherista | P152: 1821-1/00 | Q152: Serviços de pré-impressão | R152: =VALUE(LEFT(P152,2)) -> 18 | S152: =IF(R152<35,"IND",IF(AND(R152>=45,R152<=47),"COM","SERV")) -> IND
B153: 2880000.01 | C153: 0.14 | D153: 0.063 | E153: 0.0322 | F153: 0.0378 | G153: 0.007 | I153: 0.05 | J153: 0.19 | K153: 0.0385 | L153: 0.1785 | N153: Cobrador de dívidas | O153: Serviço de cobranças de dívidas - Cobrador | P153: 8291-1/00 | Q153: Atividades de cobrança e informações cadastrais | R153: 82 | S153: SERV
B154: 3060000.01 | C154: 0.14 | D154: 0.063 | E154: 0.0322 | F154: 0.0378 | G154: 0.007 | I154: 0.05 | J154: 0.19 | K154: 0.0388 | L154: 0.1788 | N154: Colchoeiro | O154: Fabricação de colchões - Colchoeiro | P154: 3104-7/00 | Q154: Fabricação de colchões | R154: 31 | S154: IND
B155: 3240000.01 | C155: 0.14 | D155: 0.063 | E155: 0.0322 | F155: 0.0378 | G155: 0.007 | I155: 0.05 | J155: 0.19 | K155: 0.0391 | L155: =C155+K155 -> 0.1791 | N155: Coletor de resíduos perigosos | O155: Serviços de coleta de resóduos perigosos - Coletor de resíduos perigosos | P155: 3812-2/00 | Q155: Coleta de resíduos perigosos | R155: 38 | S155: SERV
B156: 3420000.01 | C156: 0.14 | D156: 0.063 | E156: 0.0322 | F156: 0.0378 | G156: 0.007 | I156: 0.05 | J156: 0.19 | K156: 0.0395 | L156: =C156+K156 -> 0.1795 | N156: Colhedor de castanha-do-pará | O156: Serviço de coleta de castanha-do-pará em florestas nativas - Colhedor de castanha-do-pará | P156: 0220-9/03 | Q156: Coleta de castanha-do-pará em florestas nativas | R156: 2 | S156: IND
N157: Colhedor de palmito | O157: Serviço de coleta de palmito em florestas nativas - Colhedor de Palmito | P157: 0220-9/05 | Q157: Coleta de palmito em florestas nativas | R157: 2 | S157: IND
B158: DE / ATÉ | C158: IRPJ, PIS/PASEP, COFINS E CSLL | D158: IRPJ | E158: CSLL | F158: COFINS | G158: PIS/PASEP | I158: ISS | J158: INCLUÍDO O ISS | K158: ICMS | L158: INCLUINDO ICMS | N158: Colhedor de produtos não madeireiros | O158: Serviço de coleta de produtos não madeireiros em florestas nativas: babaçu, cera de carnaúba, resinas e produtos florestais silvestres - Colhedor de produtos não madeireiros | P158: 0220-9/99 | Q158: Coleta de produtos não-madeireiros não especificados anteriormente em florestas nativas | R158: 2 | S158: IND
B159: =B4 -> 0 | C159: 0.145 | D159: 0 | E159: 0.07105 | F159: 0.07395 | G159: 0 | I159: 0.02 | J159: =C159+I159 -> 0.165 | K159: =I71 -> 0.02 | L159: =C159+K159 -> 0.165 | N159: Colocador de piercing | O159: Serviços pessoais de colocação de piercing - Colocador de piercing. | P159: 9609-2/99 | Q159: Outras atividades de serviços pessoais não especificadas anteriormente | R159: 96 | S159: SERV
B160: 180000.01 | C160: 0.145 | D160: 0 | E160: 0.07105 | F160: 0.07395 | G160: 0 | I160: 0.0279 | J160: =C160+I160 -> 0.1729 | K160: =I72 -> 0.0279 | L160: =C160+K160 -> 0.1729 | N160: Colocador de revestimentos | O160: Serviços de aplicação de revestimentos em interiores e exteriores em construções comerciais ou domiciliares - Colocador de revestimentos. | P160: 4330-4/05 | Q160: Aplicação de revestimentos e de resinas em interiores e exteriores | R160: 43 | S160: SERV
B161: 360000.01 | C161: 0.145 | D161: 0.06525 | E161: 0.03335 | F161: 0.03915 | G161: 0.00725 | I161: 0.035 | J161: 0.18 | K161: 0.035 | L161: 0.18 | N161: Comerciante de animais vivos e de artigos e alimentos para animais de estimação | O161: Comércio varejista de animais vivos e de artigos e alimentos para animais de estimação - Comerciante de animais vivos e de artigos e alimentos para animais de estimação | P161: 4789-0/04 | Q161: Comércio varejista de animais vivos e de artigos e alimentos para animais de estimação | R161: 47 | S161: COM
B162: 540000.01 | C162: 0.145 | D162: 0.06525 | E162: 0.03335 | F162: 0.03915 | G162: 0.00725 | I162: 0.0384 | J162: 0.1834 | K162: 0.0384 | L162: 0.1834 | N162: Comerciante de artigos de armarinho | O162: Comercio varejista de artigos de armarinho - Comerciante de artigos de armarinho | P162: 4755-5/02 | Q162: Comercio varejista de artigos de armarinho | R162: 47 | S162: COM
B163: 720000.01 | C163: 0.145 | D163: 0.06525 | E163: 0.03335 | F163: 0.03915 | G163: 0.00725 | I163: 0.0387 | J163: 0.1837 | K163: 0.0387 | L163: 0.1837 | N163: Comerciante de artigos de caça, pesca e camping | O163: Comércio varejista de artigos de caça, pesca e camping - Comerciante de artigos de caça, pesca e camping | P163: 4763-6/04 | Q163: Comércio varejista de artigos de caça, pesca e camping | R163: 47 | S163: COM
B164: 900000.01 | C164: 0.145 | D164: 0.06525 | E164: 0.03335 | F164: 0.03915 | G164: 0.00725 | I164: 0.0423 | J164: 0.1873 | K164: 0.0423 | L164: 0.1873 | N164: Comerciante de artigos de cama, mesa e banho | O164: Comercio varejista de artigos de cama, mesa e banho - Comerciante de artigos de cama, mesa e banho | P164: 4755-5/03 | Q164: Comercio varejista de artigos de cama, mesa e banho | R164: 47 | S164: COM
B165: 1080000.01 | C165: 0.145 | D165: 0.06525 | E165: 0.03335 | F165: 0.03915 | G165: 0.00725 | I165: 0.0426 | J165: 0.1876 | K165: 0.0426 | L165: 0.1876 | N165: Comerciante de artigos de colchoaria | O165: Comércio varejista de artigos de colchoaria - Comerciante de artigos de colchoaria | P165: 4754-7/02 | Q165: Comércio varejista de artigos de colchoaria | R165: 47 | S165: COM
B166: 1260000.01 | C166: 0.145 | D166: 0.06525 | E166: 0.03335 | F166: 0.03915 | G166: 0.00725 | I166: 0.0431 | J166: 0.1881 | K166: 0.0431 | L166: 0.1881 | N166: Comerciante de artigos de cutelaria | O166: Comércio varejista de artigos de cutelaria - Comerciante de artigos de cutelaria | P166: 4759-8/99 | Q166: Comércio varejista de outros artigos de uso doméstico não especificados anteriormente | R166: 47 | S166: COM
B167: 1440000.01 | C167: 0.145 | D167: 0.06525 | E167: 0.03335 | F167: 0.03915 | G167: 0.00725 | I167: 0.0461 | J167: 0.1911 | K167: 0.0461 | L167: 0.1911 | N167: Comerciante de artigos de iluminação | O167: Comércio varejista de artigos de iluminação - Comerciante de artigos de iluminação | P167: 4754-7/03 | Q167: Comércio varejista de artigos de iluminação | R167: 47 | S167: COM
B168: 1620000.01 | C168: 0.145 | D168: 0.06525 | E168: 0.03335 | F168: 0.03915 | G168: 0.00725 | I168: 0.0465 | J168: 0.1915 | K168: 0.0465 | L168: 0.1915 | N168: Comerciante de artigos de joalheria | O168: Comércio varejista de artigos de joalheria - Comerciante de artigos de joalheria | P168: 4783-1/01 | Q168: Comércio varejista de artigos de joalheria | R168: 47 | S168: COM
B169: 1800000.01 | C169: 0.145 | D169: 0.06525 | E169: 0.03335 | F169: 0.03915 | G169: 0.00725 | I169: 0.05 | J169: 0.195 | K169: 0.05 | L169: 0.195 | N169: Comerciante de artigos de óptica | O169: Comércio varejista de artigos de óptica - Comerciante de artigos de óptica | P169: 4774-1/00 | Q169: Comércio varejista de artigos de óptica | R169: 47 | S169: COM
B170: 1980000.01 | C170: 0.145 | D170: 0.06525 | E170: 0.03335 | F170: 0.03915 | G170: 0.00725 | I170: 0.05 | J170: 0.195 | K170: 0.05 | L170: 0.195 | N170: Comerciante de artigos de relojoaria | O170: Comércio varejista de artigos de relojoaria - Comerciante de artigos de relojoaria | P170: 4783-1/02 | Q170: Comércio varejista de artigos de relojoaria | R170: 47 | S170: COM
B171: 2160000.01 | C171: 0.145 | D171: 0.06525 | E171: 0.03335 | F171: 0.03915 | G171: 0.00725 | I171: 0.05 | J171: 0.195 | K171: 0.05 | L171: 0.195 | N171: Comerciante de artigos de tapeçaria, cortinas e persianas | O171: Comércio varejista de artigos de tapeçaria, cortinas e persianas - Comerciante de artigos de tapeçaria, cortinas e persianas | P171: 4759-8/01 | Q171: Comércio varejista de artigos de tapeçaria, cortinas e persianas | R171: 47 | S171: COM
B172: 2340000.01 | C172: 0.145 | D172: 0.06525 | E172: 0.03335 | F172: 0.03915 | G172: 0.00725 | I172: 0.05 | J172: 0.195 | K172: 0.05 | L172: 0.195 | N172: Comerciante de artigos de viagem | O172: Comércio varejista de artigos de viagem - Comerciante de artigos de viagem | P172: 4782-2/02 | Q172: Comércio varejista de artigos de viagem | R172: 47 | S172: COM
B173: 2520000.01 | C173: 0.145 | D173: 0.06525 | E173: 0.03335 | F173: 0.03915 | G173: 0.00725 | I173: 0.05 | J173: 0.195 | K173: 0.05 | L173: 0.195 | N173: Comerciante de artigos do vestuário e acessórios | O173: Comércio varejista de artigos do vestuário e acessórios - Comerciante de artigos do vestuário e acessórios | P173: 4781-4/00 | Q173: Comércio varejista de artigos do vestuário e acessórios | R173: 47 | S173: COM
B174: 2700000.01 | C174: 0.145 | D174: 0.06525 | E174: 0.03335 | F174: 0.03915 | G174: 0.00725 | I174: 0.05 | J174: 0.195 | K174: 0.05 | L174: 0.195 | N174: Comerciante de artigos eróticos | O174: Comércio varejista de artigos eróticos - Comerciante de artigos eróticos | P174: 4789-0/99 | Q174: Comércio varejista de outros produtos não especificados anteriormente | R174: 47 | S174: COM
B175: 2880000.01 | C175: 0.145 | D175: 0.06525 | E175: 0.03335 | F175: 0.03915 | G175: 0.00725 | I175: 0.05 | J175: 0.195 | K175: 0.05 | L175: 0.195 | N175: Comerciante de artigos esportivos | O175: Comércio varejista de artigos esportivos - Comerciante de artigos esportivos | P175: 4763-6/02 | Q175: Comércio varejista de artigos esportivos | R175: 47 | S175: COM
B176: 3060000.01 | C176: 0.145 | D176: 0.06525 | E176: 0.03335 | F176: 0.03915 | G176: 0.00725 | I176: 0.05 | J176: 0.195 | K176: 0.05 | L176: 0.195 | N176: Comerciante de artigos fotográficos e para filmagem | O176: Comércio varejista de artigos fotográficos e para filmagem - Comerciante de artigos fotográficos e para filmagem | P176: 4789-0/08 | Q176: Comércio varejista de artigos fotográficos e para filmagem | R176: 47 | S176: COM
B177: 3240000.01 | C177: 0.145 | D177: 0.06525 | E177: 0.03335 | F177: 0.03915 | G177: 0.00725 | I177: 0.05 | J177: 0.195 | K177: 0.05 | L177: =C177+K177 -> 0.195 | N177: Comerciante de artigos funerários | O177: Comércio varejista de artigos funerários - Comerciante de artigos funerários | P177: 4789-0/99 | Q177: Comércio varejista de outros produtos não especificados anteriormente | R177: 47 | S177: COM
B178: 3420000.01 | C178: 0.145 | D178: 0.06525 | E178: 0.03335 | F178: 0.03915 | G178: 0.00725 | I178: 0.05 | J178: 0.195 | K178: 0.05 | L178: =C178+K178 -> 0.195 | N178: Comerciante de artigos médicos e ortopédicos | O178: Comércio varejista de artigos médicos e ortopédicos - Comerciante de artigos médicos e ortopédicos | P178: 4773-3/00 | Q178: Comércio varejista de artigos médicos e ortopédicos | R178: 47 | S178: COM
N179: Comerciante de artigos para habitação | O179: Comércio varejista de artigos para habitação de vidro, cristal, porcelana, borracha, plástico, metal, madeira, vime, bambu e outros similares | P179: 4759-8/99 | Q179: Comércio varejista de outros artigos de uso doméstico não especificados anteriormente | R179: 47 | S179: COM
B180: DE / ATÉ | C180: IRPJ, PIS/PASEP, COFINS E CSLL | D180: IRPJ | E180: CSLL | F180: COFINS | G180: PIS/PASEP | I180: ISS | J180: INCLUÍDO O ISS | K180: ICMS | L180: INCLUINDO ICMS | N180: Comerciante de artigos usados | O180: Comércio varejista de artigos usados - Comerciante de artigos usados | P180: 4785-7/99 | Q180: Comércio varejista de outros artigos usados | R180: 47 | S180: COM
B181: =B4 -> 0 | C181: 0.15 | D181: 0 | E181: 0.0735 | F181: 0.0765 | G181: 0 | I181: 0.02 | J181: =C181+I181 -> 0.17 | K181: =I93 -> 0.02 | L181: =C181+K181 -> 0.17 | N181: Comerciante de bebidas | O181: Comércio varejista de bebidas alcoólicas e não alcoólicas, não consumidas no local de venda - Comerciante de bebidas | P181: 4723-7/00 | Q181: Comércio varejista de bebidas | R181: 47 | S181: COM
B182: 180000.01 | C182: 0.15 | D182: 0 | E182: 0.0735 | F182: 0.0765 | G182: 0 | I182: 0.0279 | J182: =C182+I182 -> 0.1779 | K182: =I94 -> 0.0279 | L182: =C182+K182 -> 0.1779 | N182: Comerciante de bicicletas e triciclos; peças e acessórios | O182: Comércio varejista de bicicletas e triciclos; peças e acessórios - Comerciante de bicicletas e triciclos; peças e acessórios | P182: 4763-6/03 | Q182: Comércio varejista de bicicletas e triciclos; peças e acessórios | R182: 47 | S182: COM
B183: 360000.01 | C183: 0.15 | D183: 0.0675 | E183: 0.0345 | F183: 0.0405 | G183: 0.0075 | I183: 0.035 | J183: 0.185 | K183: 0.035 | L183: 0.185 | N183: Comerciante de bijuterias e artesanatos | O183: Comércio varejista de suvenires, bijuterias e artesanatos - Comerciante de bijuterias e artesanatos. | P183: 4789-0/01 | Q183: Comércio varejista de suvenires, bijuterias e artesanatos | R183: 47 | S183: COM
B184: 540000.01 | C184: 0.15 | D184: 0.0675 | E184: 0.0345 | F184: 0.0405 | G184: 0.0075 | I184: 0.0384 | J184: 0.1884 | K184: 0.0384 | L184: 0.1884 | N184: Comerciante de brinquedos e artigos recreativos | O184: Comércio varejista de brinquedos e artigos recreativos - Comerciante de brinquedos e artigos recreativos | P184: 4763-6/01 | Q184: Comércio varejista de brinquedos e artigos recreativos | R184: 47 | S184: COM
B185: 720000.01 | C185: 0.15 | D185: 0.0675 | E185: 0.0345 | F185: 0.0405 | G185: 0.0075 | I185: 0.0387 | J185: 0.1887 | K185: 0.0387 | L185: 0.1887 | N185: Comerciante de cal, areia, pedra britada, tijolos e telhas | O185: Comércio varejista de cal, areia, pedra britada, tijolos e telhas - Comerciante de cal, areia, pedra britada, tijolos e telhas | P185: 4744-0/04 | Q185: Comércio varejista de cal, areia, pedra britada, tijolos e telhas | R185: 47 | S185: COM
B186: 900000.01 | C186: 0.15 | D186: 0.0675 | E186: 0.0345 | F186: 0.0405 | G186: 0.0075 | I186: 0.0423 | J186: 0.1923 | K186: 0.0423 | L186: 0.1923 | N186: Comerciante de calçados | O186: Comércio varejista de calçados - Comerciante de calçados | P186: 4782-2/01 | Q186: Comércio varejista de calçados | R186: 47 | S186: COM
B187: 1080000.01 | C187: 0.15 | D187: 0.0675 | E187: 0.0345 | F187: 0.0405 | G187: 0.0075 | I187: 0.0426 | J187: 0.1926 | K187: 0.0426 | L187: 0.1926 | N187: Comerciante de cosméticos e artigos de perfumaria | O187: Comércio varejista de cosméticos e produtos de perfumaria - Comerciante de cosméticos e artigos de perfumaria. | P187: 4772-5/00 | Q187: Comércio varejista de cosméticos, produtos de perfumaria e de higiene pessoal | R187: 47 | S187: COM
B188: 1260000.01 | C188: 0.15 | D188: 0.0675 | E188: 0.0345 | F188: 0.0405 | G188: 0.0075 | I188: 0.0431 | J188: 0.1931 | K188: 0.0431 | L188: 0.1931 | N188: Comerciante de discos, CDs, DVDs e fitas | O188: Comércio varejista de discos, CDs, DVDs e fitas - Comerciante de discos, CDs, DVDs e fitas | P188: 4762-8/00 | Q188: Comércio varejista de discos, CDs, DVDs e fitas | R188: 47 | S188: COM
B189: 1440000.01 | C189: 0.15 | D189: 0.0675 | E189: 0.0345 | F189: 0.0405 | G189: 0.0075 | I189: 0.0461 | J189: 0.1961 | K189: 0.0461 | L189: 0.1961 | N189: Comerciante de eletrodomésticos e equipamentos de áudio e vídeo | O189: Comércio varejista especializado de eletrodomésticos e equipamentos de áudio e vídeo - Comerciante de eletrodomésticos e equipamentos de áudio e vídeo | P189: 4753-9/00 | Q189: Comércio varejista especializado de eletrodomésticos e equipamentos de áudio e vídeo | R189: 47 | S189: COM
B190: 1620000.01 | C190: 0.15 | D190: 0.0675 | E190: 0.0345 | F190: 0.0405 | G190: 0.0075 | I190: 0.0465 | J190: 0.1965 | K190: 0.0465 | L190: 0.1965 | N190: Comerciante de embalagens | O190: Comércio varejista de embalagens - Comerciante de embalagens | P190: 4789-0/99 | Q190: Comércio varejista de outros produtos não especificados anteriormente | R190: 47 | S190: COM
B191: 1800000.01 | C191: 0.15 | D191: 0.0675 | E191: 0.0345 | F191: 0.0405 | G191: 0.0075 | I191: 0.05 | J191: 0.2 | K191: 0.05 | L191: 0.2 | N191: Comerciante de equipamentos de telefonia e comunicação | O191: Comércio varejista especializado de equipamentos de telefonia e comunicação - Comerciante de equipamentos de telefonia e comunicação | P191: 4752-1/00 | Q191: Comércio varejista especializado de equipamentos de telefonia e comunicação | R191: 47 | S191: COM
B192: 1980000.01 | C192: 0.15 | D192: 0.0675 | E192: 0.0345 | F192: 0.0405 | G192: 0.0075 | I192: 0.05 | J192: 0.2 | K192: 0.05 | L192: 0.2 | N192: Comerciante de equipamentos e suprimentos de informática | O192: Comércio varejista especializado de equipamentos e suprimentos de informática - Comerciante de equipamentos e suprimentos de informática | P192: 4751-2/00 | Q192: Comércio varejista especializado de equipamentos e suprimentos de informática | R192: 47 | S192: COM
B193: 2160000.01 | C193: 0.15 | D193: 0.0675 | E193: 0.0345 | F193: 0.0405 | G193: 0.0075 | I193: 0.05 | J193: 0.2 | K193: 0.05 | L193: 0.2 | N193: Comerciante de equipamentos para escritório | O193: Comércio varejista de equipamentos para escritório - Comerciante de equipamentos para escritório | P193: 4789-0/07 | Q193: Comércio varejista de equipamentos para escritório | R193: 47 | S193: COM
B194: 2340000.01 | C194: 0.15 | D194: 0.0675 | E194: 0.0345 | F194: 0.0405 | G194: 0.0075 | I194: 0.05 | J194: 0.2 | K194: 0.05 | L194: 0.2 | N194: Comerciante de extintores de incêndio | O194: Comércio varejista de extintores de incêndio - Comerciante de extintores de incêndio | P194: 4789-0/99 | Q194: Comércio varejista de outros produtos não especificados anteriormente | R194: 47 | S194: COM
B195: 2520000.01 | C195: 0.15 | D195: 0.0675 | E195: 0.0345 | F195: 0.0405 | G195: 0.0075 | I195: 0.05 | J195: 0.2 | K195: 0.05 | L195: 0.2 | N195: Comerciante de ferragens e ferramentas | O195: Comércio varejista de ferragens e ferramentas - Comerciante de ferragens e ferramentas | P195: 4744-0/01 | Q195: Comércio varejista de ferragens e ferramentas | R195: 47 | S195: COM
B196: 2700000.01 | C196: 0.15 | D196: 0.0675 | E196: 0.0345 | F196: 0.0405 | G196: 0.0075 | I196: 0.05 | J196: 0.2 | K196: 0.05 | L196: 0.2 | N196: Comerciante de flores, plantas e frutas artificiais | O196: Comércio varejista de flores, plantas e frutas artificiais - Comerciante de flores, plantas e frutas artificiais | P196: 4789-0/99 | Q196: Comércio varejista de outros produtos não especificados anteriormente | R196: 47 | S196: COM
B197: 2880000.01 | C197: 0.15 | D197: 0.0675 | E197: 0.0345 | F197: 0.0405 | G197: 0.0075 | I197: 0.05 | J197: 0.2 | K197: 0.05 | L197: 0.2 | N197: Comerciante de fogos de artifício | O197: Comércio varejista de fogos de artifício e artigos pirotécnicos - Comerciante de fogos de artifício | P197: 4789-0/06 | Q197: Comércio varejista de fogos de artifício e artigos pirotécnicos | R197: 47 | S197: COM
B198: 3060000.01 | C198: 0.15 | D198: 0.0675 | E198: 0.0345 | F198: 0.0405 | G198: 0.0075 | I198: 0.05 | J198: 0.2 | K198: 0.05 | L198: 0.2 | N198: Comerciante de gás liqüefeito de petróleo (GLP) | O198: Comércio varejista de gás liqüefeito de petróleo (GLP) - Comerciante de gás liqüefeito de petróleo (GLP) | P198: 4784-9/00 | Q198: Comércio varejista de gás liqüefeito de petróleo (GLP) | R198: 47 | S198: COM
B199: 3240000.01 | C199: 0.15 | D199: 0.0675 | E199: 0.0345 | F199: 0.0405 | G199: 0.0075 | I199: 0.05 | J199: 0.2 | K199: 0.05 | L199: =C199+K199 -> 0.2 | N199: Comerciante de instrumentos musicais e acessórios | O199: Comércio varejista especializado de instrumentos musicais e acessórios - Comerciante de instrumentos musicais e acessórios | P199: 4756-3/00 | Q199: Comércio varejista especializado de instrumentos musicais e acessórios | R199: 47 | S199: COM
B200: 3420000.01 | C200: 0.15 | D200: 0.0675 | E200: 0.0345 | F200: 0.0405 | G200: 0.0075 | I200: 0.05 | J200: 0.2 | K200: 0.05 | L200: =C200+K200 -> 0.2 | N200: Comerciante de laticínios | O200: Comércio varejista de leite e derivados - Comerciante de laticínios. | P200: 4721-1/03 | Q200: Comércio varejista de laticínios e frios | R200: 47 | S200: COM
N201: Comerciante de lubrificantes | O201: Comércio varejista de lubrificantes para uso automotivo e para outros usos - Comerciante de lubrificantes | P201: 4732-6/00 | Q201: Comércio varejista de lubrificantes | R201: 47 | S201: COM
N202: Comerciante de madeira e artefatos | O202: Comércio varejista de madeira e artefatos - Comerciante de madeira e artefatos | P202: 4744-0/02 | Q202: Comércio varejista de madeira e artefatos | R202: 47 | S202: COM
B203: Encargos | C203: Alíquotas | N203: Comerciante de materiais de construção em geral | O203: Comércio varejista de materiais de construção em geral - Comerciante de materiais de construção em geral | P203: 4744-0/99 | Q203: Comércio varejista de materiais de construção em geral | R203: 47 | S203: COM
... 320 more rows

Sheet Plan1
A1: Acumulado Operacional | B1: =Sazonalidade!C21 -> -659189.5567 | C1: =B1+Sazonalidade!D21 -> -1318022.763 | D1: =C1+Sazonalidade!E21 -> -1976499.62 | E1: =D1+Sazonalidade!F21 -> -2634620.127 | F1: =E1+Sazonalidade!G21 -> -3292384.283 | G1: =F1+Sazonalidade!H21 -> -3949792.09 | H1: =G1+Sazonalidade!I21 -> -4608268.947 | I1: =H1+Sazonalidade!J21 -> -5266389.453 | J1: =I1+Sazonalidade!K21 -> -5924153.61 | K1: =J1+Sazonalidade!L21 -> -6581561.417 | L1: =K1+Sazonalidade!M21 -> -7238612.873 | M1: =L1+Sazonalidade!N21 -> -7895307.98 | N1: =M1+Sazonalidade2!C21 -> -8554497.537 | O1: =N1+Sazonalidade2!D21 -> -9213330.743 | P1: =O1+Sazonalidade2!E21 -> -9871807.6 | Q1: =P1+Sazonalidade2!F21 -> -10529928.11 | R1: =Q1+Sazonalidade2!G21 -> -11187692.26 | S1: =R1+Sazonalidade2!H21 -> -11845100.07 | T1: =S1+Sazonalidade2!I21 -> -12503576.93 | U1: =T1+Sazonalidade2!J21 -> -13161697.43 | V1: =U1+Sazonalidade2!K21 -> -13819461.59 | W1: =V1+Sazonalidade2!L21 -> -14476869.4 | X1: =W1+Sazonalidade2!M21 -> -15133920.85 | Y1: =X1+Sazonalidade2!N21 -> -15790615.96 | Z1: =Y1+Sazonalidade3!C21 -> -16449805.52 | AA1: =Z1+Sazonalidade3!D21 -> -17108638.72 | AB1: =AA1+Sazonalidade3!E21 -> -17767115.58 | AC1: =AB1+Sazonalidade3!F21 -> -18425236.09 | AD1: =AC1+Sazonalidade3!G21 -> -19083000.24 | AE1: =AD1+Sazonalidade3!H21 -> -19740408.05 | AF1: =AE1+Sazonalidade3!I21 -> -20398884.91 | AG1: =AF1+Sazonalidade3!J21 -> -21057005.41 | AH1: =AG1+Sazonalidade3!K21 -> -21714769.57 | AI1: =AH1+Sazonalidade3!L21 -> -22372177.38 | AJ1: =AI1+Sazonalidade3!M21 -> -23029228.83 | AK1: =AJ1+Sazonalidade3!N21 -> -23685923.94 | AL1: =AK1+Sazonalidade4!C21 -> -24345113.5 | AM1: =AL1+Sazonalidade4!D21 -> -25003946.7 | AN1: =AM1+Sazonalidade4!E21 -> -25662423.56 | AO1: =AN1+Sazonalidade4!F21 -> -26320544.07 | AP1: =AO1+Sazonalidade4!G21 -> -26978308.22 | AQ1: =AP1+Sazonalidade4!H21 -> -27635716.03 | AR1: =AQ1+Sazonalidade4!I21 -> -28294192.89 | AS1: =AR1+Sazonalidade4!J21 -> -28952313.39 | AT1: =AS1+Sazonalidade4!K21 -> -29610077.55 | AU1: =AT1+Sazonalidade4!L21 -> -30267485.36 | AV1: =AU1+Sazonalidade4!M21 -> -30924536.81 | AW1: =AV1+Sazonalidade4!N21 -> -31581231.92 | AX1: =AW1+Sazonalidade5!C21 -> -32240421.48 | AY1: =AX1+Sazonalidade5!D21 -> -32899254.68 | AZ1: =AY1+Sazonalidade5!E21 -> -33557731.54 | BA1: =AZ1+Sazonalidade5!F21 -> -34215852.05 | BB1: =BA1+Sazonalidade5!G21 -> -34873616.2 | BC1: =BB1+Sazonalidade5!H21 -> -35531024.01 | BD1: =BC1+Sazonalidade5!I21 -> -36189500.87 | BE1: =BD1+Sazonalidade5!J21 -> -36847621.37 | BF1: =BE1+Sazonalidade5!K21 -> -37505385.53 | BG1: =BF1+Sazonalidade5!L21 -> -38162793.34 | BH1: =BG1+Sazonalidade5!M21 -> -38819844.79 | BI1: =BH1+Sazonalidade5!N21 -> -39476539.9
B2: =Sazonalidade!C24 -> -664645.4601 | C2: =B2+Sazonalidade!D24 -> -1328952.165 | D2: =C2+Sazonalidade!E24 -> -1992902.52 | E2: =D2+Sazonalidade!F24 -> -2656496.526 | F2: =E2+Sazonalidade!G24 -> -3319734.181 | G2: =F2+Sazonalidade!H24 -> -3982615.486 | H2: =G2+Sazonalidade!I24 -> -4649419.111 | I2: =H2+Sazonalidade!J24 -> -5315866.387 | J2: =I2+Sazonalidade!K24 -> -5981957.312 | K2: =J2+Sazonalidade!L24 -> -6647691.887 | L2: =K2+Sazonalidade!M24 -> -7313070.113 | M2: =L2+Sazonalidade!N24 -> -7978091.988 | N2: =M2+Sazonalidade2!C24 -> -8641302.41 | O2: =N2+Sazonalidade2!D24 -> -9304156.482 | P2: =O2+Sazonalidade2!E24 -> -9966654.203 | Q2: =P2+Sazonalidade2!F24 -> -10628795.58 | R2: =Q2+Sazonalidade2!G24 -> -11290580.6 | S2: =R2+Sazonalidade2!H24 -> -11952009.27 | T2: =S2+Sazonalidade2!I24 -> -12614506.99 | U2: =T2+Sazonalidade2!J24 -> -13276648.36 | V2: =U2+Sazonalidade2!K24 -> -13938433.38 | W2: =V2+Sazonalidade2!L24 -> -14599862.06 | X2: =W2+Sazonalidade2!M24 -> -15260934.38 | Y2: =X2+Sazonalidade2!N24 -> -15921650.35 | Z2: =Y2+Sazonalidade3!C24 -> -16584860.77 | AA2: =Z2+Sazonalidade3!D24 -> -17247714.84 | AB2: =AA2+Sazonalidade3!E24 -> -17910212.57 | AC2: =AB2+Sazonalidade3!F24 -> -18572353.94 | AD2: =AC2+Sazonalidade3!G24 -> -19234138.96 | AE2: =AD2+Sazonalidade3!H24 -> -19895567.63 | AF2: =AE2+Sazonalidade3!I24 -> -20558065.35 | AG2: =AF2+Sazonalidade3!J24 -> -21220206.73 | AH2: =AG2+Sazonalidade3!K24 -> -21881991.75 | AI2: =AH2+Sazonalidade3!L24 -> -22543420.42 | AJ2: =AI2+Sazonalidade3!M24 -> -23204492.74 | AK2: =AJ2+Sazonalidade3!N24 -> -23865208.71 | AL2: =AK2+Sazonalidade4!C24 -> -24524398.27 | AM2: =AL2+Sazonalidade4!D24 -> -25183231.48 | AN2: =AM2+Sazonalidade4!E24 -> -25841708.33 | AO2: =AN2+Sazonalidade4!F24 -> -26499828.84 | AP2: =AO2+Sazonalidade4!G24 -> -27157593 | AQ2: =AP2+Sazonalidade4!H24 -> -27815000.8 | AR2: =AQ2+Sazonalidade4!I24 -> -28473477.66 | AS2: =AR2+Sazonalidade4!J24 -> -29131598.17 | AT2: =AS2+Sazonalidade4!K24 -> -29789362.32 | AU2: =AT2+Sazonalidade4!L24 -> -30446770.13 | AV2: =AU2+Sazonalidade4!M24 -> -31103821.59 | AW2: =AV2+Sazonalidade4!N24 -> -31760516.69 | AX2: =AW2+Sazonalidade5!C24 -> -32419706.25 | AY2: =AX2+Sazonalidade5!D24 -> -33078539.46 | AZ2: =AY2+Sazonalidade5!E24 -> -33737016.31 | BA2: =AZ2+Sazonalidade5!F24 -> -34395136.82 | BB2: =BA2+Sazonalidade5!G24 -> -35052900.98 | BC2: =BB2+Sazonalidade5!H24 -> -35710308.78 | BD2: =BC2+Sazonalidade5!I24 -> -36368785.64 | BE2: =BD2+Sazonalidade5!J24 -> -37026906.15 | BF2: =BE2+Sazonalidade5!K24 -> -37684670.3 | BG2: =BF2+Sazonalidade5!L24 -> -38342078.11 | BH2: =BG2+Sazonalidade5!M24 -> -38999129.57 | BI2: =BH2+Sazonalidade5!N24 -> -39655824.67
A3: mês | B3: 1 | C3: 2 | D3: 3 | E3: 4 | F3: 5 | G3: 6 | H3: 7 | I3: 8 | J3: 9 | K3: 10 | L3: 11 | M3: 12 | N3: 13 | O3: 14 | P3: 15 | Q3: 16 | R3: 17 | S3: 18 | T3: 19 | U3: 20 | V3: 21 | W3: 22 | X3: 23 | Y3: 24 | Z3: 25 | AA3: 26 | AB3: 27 | AC3: 28 | AD3: 29 | AE3: 30 | AF3: 31 | AG3: 32 | AH3: 33 | AI3: 34 | AJ3: 35 | AK3: 36 | AL3: 37 | AM3: 38 | AN3: 39 | AO3: 40 | AP3: 41 | AQ3: 42 | AR3: 43 | AS3: 44 | AT3: 45 | AU3: 46 | AV3: 47 | AW3: 48 | AX3: 49 | AY3: 50 | AZ3: 51 | BA3: 52 | BB3: 53 | BC3: 54 | BD3: 55 | BE3: 56 | BF3: 57 | BG3: 58 | BH3: 59 | BI3: 60
A4: Financimento 1 | B4: =Financiamento!E28 -> 1150 | C4: =Financiamento!E29 -> 1167.595 | D4: =Financiamento!E30 -> 1167.595 | E4: =Financiamento!E31 -> 1167.595 | F4: =Financiamento!E32 -> 1167.595 | G4: =Financiamento!E33 -> 1167.595 | H4: =Financiamento!E34 -> 4020.865195 | I4: =Financiamento!E35 -> 4020.865195 | J4: =Financiamento!E36 -> 4020.865195 | K4: =Financiamento!E37 -> 4020.865195 | L4: =Financiamento!E38 -> 4020.865195 | M4: =Financiamento!E39 -> 4020.865195 | N4: =Financiamento!E40 -> 4020.865195 | O4: =Financiamento!E41 -> 4020.865195 | P4: =Financiamento!E42 -> 4020.865195 | Q4: =Financiamento!E43 -> 4020.865195 | R4: =Financiamento!E44 -> 4020.865195 | S4: =Financiamento!E45 -> 4020.865195 | T4: =Financiamento!E46 -> 4020.865195 | U4: =Financiamento!E47 -> 4020.865195 | V4: =Financiamento!E48 -> 4020.865195 | W4: =Financiamento!E49 -> 4020.865195 | X4: =Financiamento!E50 -> 4020.865195 | Y4: =Financiamento!E51 -> 4020.865195 | Z4: =Financiamento!E52 -> 4020.865195 | AA4: =Financiamento!E53 -> 4020.865195 | AB4: =Financiamento!E54 -> 4020.865195 | AC4: =Financiamento!E55 -> 4020.865195 | AD4: =Financiamento!E56 -> 4020.865195 | AE4: =Financiamento!E57 -> 4020.865195 | AF4: =Financiamento!E58 -> 4020.865195 | AG4: =Financiamento!E59 -> 4020.865195 | AH4: =Financiamento!E60 -> 4020.865195 | AI4: =Financiamento!E61 -> 4020.865195 | AJ4: =Financiamento!E62 -> 4020.865195 | AK4: =Financiamento!E63 -> 4020.865195 | AL4: =Financiamento!E64 -> 1.46428647e-13 | AM4: =Financiamento!E65 -> 1.46428647e-13 | AN4: =Financiamento!E66 -> 1.46428647e-13 | AO4: =Financiamento!E67 -> 1.46428647e-13 | AP4: =Financiamento!E68 -> 1.46428647e-13 | AQ4: =Financiamento!E69 -> 1.46428647e-13 | AR4: =Financiamento!E70 -> 1.46428647e-13 | AS4: =Financiamento!E71 -> 1.46428647e-13 | AT4: =Financiamento!E72 -> 1.46428647e-13 | AU4: =Financiamento!E73 -> 1.46428647e-13 | AV4: =Financiamento!E74 -> 1.46428647e-13 | AW4: =Financiamento!E75 -> 1.46428647e-13 | AX4: =Financiamento!E76 -> 1.46428647e-13 | AY4: =Financiamento!E77 -> 1.46428647e-13 | AZ4: =Financiamento!E78 -> 1.46428647e-13 | BA4: =Financiamento!E79 -> 1.46428647e-13 | BB4: =Financiamento!E80 -> 1.46428647e-13 | BC4: =Financiamento!E81 -> 1.46428647e-13 | BD4: =Financiamento!E82 -> 1.46428647e-13 | BE4: =Financiamento!E83 -> 1.46428647e-13 | BF4: =Financiamento!E84 -> 1.46428647e-13 | BG4: =Financiamento!E85 -> 1.46428647e-13 | BH4: =Financiamento!E86 -> 1.46428647e-13 | BI4: =Financiamento!E87 -> 1.46428647e-13
A5: Financiamento 2 | B5: =IF(Fin2.Prazo>=B3,Fin2.Parcela,0) -> 4305.903478 | C5: 4305.903478 | D5: 4305.903478 | E5: 4305.903478 | F5: 4305.903478 | G5: 4305.903478 | H5: 4305.903478 | I5: 4305.903478 | J5: 4305.903478 | K5: 4305.903478 | L5: 4305.903478 | M5: 4305.903478 | N5: 0 | O5: 0 | P5: 0 | Q5: 0 | R5: 0 | S5: 0 | T5: 0 | U5: 0 | V5: 0 | W5: 0 | X5: 0 | Y5: 0 | Z5: 0 | AA5: 0 | AB5: 0 | AC5: 0 | AD5: 0 | AE5: 0 | AF5: 0 | AG5: 0 | AH5: =IF(Fin2.Prazo>=AH3,Fin2.Parcela,0) -> 0 | AI5: 0 | AJ5: 0 | AK5: 0 | AL5: 0 | AM5: 0 | AN5: 0 | AO5: 0 | AP5: 0 | AQ5: 0 | AR5: 0 | AS5: 0 | AT5: 0 | AU5: 0 | AV5: 0 | AW5: 0 | AX5: 0 | AY5: 0 | AZ5: 0 | BA5: 0 | BB5: 0 | BC5: 0 | BD5: 0 | BE5: 0 | BF5: 0 | BG5: 0 | BH5: 0 | BI5: 0
A6: Financiamento 3 | B6: =IF(Fin3.Prazo>=B3,Fin3.Parcela,0) -> 0 | C6: 0 | D6: 0 | E6: 0 | F6: 0 | G6: 0 | H6: 0 | I6: 0 | J6: 0 | K6: 0 | L6: 0 | M6: 0 | N6: 0 | O6: 0 | P6: 0 | Q6: 0 | R6: 0 | S6: 0 | T6: 0 | U6: 0 | V6: 0 | W6: 0 | X6: 0 | Y6: 0 | Z6: 0 | AA6: 0 | AB6: 0 | AC6: 0 | AD6: 0 | AE6: 0 | AF6: 0 | AG6: 0 | AH6: =IF(Fin3.Prazo>=AH3,Fin3.Parcela,0) -> 0 | AI6: 0 | AJ6: 0 | AK6: 0 | AL6: 0 | AM6: 0 | AN6: 0 | AO6: 0 | AP6: 0 | AQ6: 0 | AR6: 0 | AS6: 0 | AT6: 0 | AU6: 0 | AV6: 0 | AW6: 0 | AX6: 0 | AY6: 0 | AZ6: 0 | BA6: 0 | BB6: 0 | BC6: 0 | BD6: 0 | BE6: 0 | BF6: 0 | BG6: 0 | BH6: 0 | BI6: 0
A7: Outros Financiamentos | B7: =Fin4.Parcela -> 0 | C7: 0 | D7: 0 | E7: 0 | F7: 0 | G7: 0 | H7: 0 | I7: 0 | J7: 0 | K7: 0 | L7: 0 | M7: 0 | N7: 0 | O7: 0 | P7: 0 | Q7: 0 | R7: 0 | S7: 0 | T7: 0 | U7: 0 | V7: 0 | W7: 0 | X7: 0 | Y7: 0 | Z7: 0 | AA7: 0 | AB7: 0 | AC7: 0 | AD7: 0 | AE7: 0 | AF7: 0 | AG7: 0 | AH7: =Fin4.Parcela -> 0 | AI7: 0 | AJ7: 0 | AK7: 0 | AL7: 0 | AM7: 0 | AN7: 0 | AO7: 0 | AP7: 0 | AQ7: 0 | AR7: 0 | AS7: 0 | AT7: 0 | AU7: 0 | AV7: 0 | AW7: 0 | AX7: 0 | AY7: 0 | AZ7: 0 | BA7: 0 | BB7: 0 | BC7: 0 | BD7: 0 | BE7: 0 | BF7: 0 | BG7: 0 | BH7: 0 | BI7: 0
A8: Total | B8: =SUM(B4:B7) -> 5455.903478 | C8: =SUM(C4:C7) -> 5473.498478 | D8: 5473.498478 | E8: 5473.498478 | F8: 5473.498478 | G8: 5473.498478 | H8: 8326.768673 | I8: 8326.768673 | J8: 8326.768673 | K8: 8326.768673 | L8: 8326.768673 | M8: 8326.768673 | N8: 4020.865195 | O8: 4020.865195 | P8: 4020.865195 | Q8: 4020.865195 | R8: 4020.865195 | S8: 4020.865195 | T8: 4020.865195 | U8: 4020.865195 | V8: 4020.865195 | W8: 4020.865195 | X8: 4020.865195 | Y8: 4020.865195 | Z8: 4020.865195 | AA8: 4020.865195 | AB8: 4020.865195 | AC8: 4020.865195 | AD8: 4020.865195 | AE8: 4020.865195 | AF8: 4020.865195 | AG8: 4020.865195 | AH8: 4020.865195 | AI8: 4020.865195 | AJ8: 4020.865195 | AK8: 4020.865195 | AL8: 1.46428647e-13 | AM8: 1.46428647e-13 | AN8: 1.46428647e-13 | AO8: 1.46428647e-13 | AP8: 1.46428647e-13 | AQ8: 1.46428647e-13 | AR8: 1.46428647e-13 | AS8: 1.46428647e-13 | AT8: 1.46428647e-13 | AU8: 1.46428647e-13 | AV8: 1.46428647e-13 | AW8: 1.46428647e-13 | AX8: 1.46428647e-13 | AY8: 1.46428647e-13 | AZ8: 1.46428647e-13 | BA8: 1.46428647e-13 | BB8: 1.46428647e-13 | BC8: 1.46428647e-13 | BD8: 1.46428647e-13 | BE8: 1.46428647e-13 | BF8: 1.46428647e-13 | BG8: 1.46428647e-13 | BH8: 1.46428647e-13 | BI8: 1.46428647e-13
A10: Rentabilidade Final | B10: =SUM(B2:BI2)/InvestimentoTotal -> -112694.6376
A15: =-Indicadores!C18 -> -10756 | B15: =Sazonalidade!N26 -> -7978091.988 | C15: =Sazonalidade2!N26 -> -7943558.362 | D15: =Sazonalidade3!N26 -> -7943558.362 | E15: =Sazonalidade4!N26 -> -7895307.98 | F15: =Sazonalidade5!N26 -> -7895307.98
Q33: Regular - Recomendado Verificar
Q34: Bom - De acordo porém pode ser melhorado
Q35: Ótimo - Informação completa e consistente

Sheet Plan2
